Workbook

Sheet Input Summary
D4: Please enter the following variables:
C5: 1 | D5: Corridors: Capacity (vehicles per hour) | G5: Start Year | H5: 2016
C6: 2 | D6: Termini: Capacity (vehicles per hour) | G6: End Year | H6: 2046
C7: 3 | D7: Routes: Demand (passengers in one hour)
C8: 4 | D8: Routes: Vehicle capacity (passengers per vehicle)
C10: 5
C11: 6 | D11: Enter Rules
C13: 7
C14: 8
C16: 9

Sheet Create Rules
A1: Rule # | B1: Rule Description | C1: Years to Implement | D1: Trigger Type | E1: Trigger Subject | F1: Trigger Value | G1: Action Subject Type | H1: Action Subject | I1: Action Type | J1: Updated Parameters
A2: 1 | B2: CRL construction complete | C2: 0 | D2: Year | E2: N/A | F2: 2023 | G2: Route Group | H2: West Express | I2: Remove from corridor stops | J2: Albert Street : North : All routes
G3: Route Group | H3: West Express | I3: Remove from terminus stops | J3: Britomart West : West/Northwest
G4: Route Group | H4: Green Bay | I4: Remove from corridor stops | J4: Albert Street : North : All routes, K Road (Pitt to Ponsonby) : East : All routes, Pitt Street : North : All routes, Great North Road : East : All routes
G5: Route Group | H5: Green Bay | I5: Remove from terminus stops | J5: Britomart West : West/Northwest
G6: Route | H6: 195 : Inbound | I6: Remove from corridor stops | J6: Albert Street : North : All routes, K Road (Pitt to Ponsonby) : East : All routes, Pitt Street : North : All routes, Great North Road : East : All routes
G7: Route | H7: 195 : Outbound | I7: Remove from corridor stops | J7: Albert Street : South : All routes, K Road (Pitt to Ponsonby) : West : All routes, Pitt Street : South : All routes, Great North Road : West : All routes
G8: Route | H8: 195 : Inbound | I8: Remove from terminus stops | J8: Britomart West : West/Northwest
G9: Route Group | H9: Papakura | I9: Remove from corridor stops | J9: Anzac Ave : North : All routes, Symonds Street (Anzac to Wellesley) : North : All routes, Symonds Street (Wellesley to K Rd) : North : Britomart-bound
G10: Route Group | H10: Papakura | I10: Remove from terminus stops | J10: Britomart East : AMETI
A11: 2 | B11: Reconfigure Wellesley St stop groups | C11: 1 | D11: Year | E11: N/A | F11: 2016 | G11: Route Group | H11: Takapuna / Hillcrest | I11: Remove from corridor stops | J11: Wellesley Street : East : North Shore, Wellesley Street : West : North Shore
G12: Route | H12: n4 & n4a : Inbound | I12: Add to corridor stops | J12: Wellesley Street : East : Crosstown
G13: Route | H13: n4 & n4a : Outbound | I13: Add to corridor stops | J13: Wellesley Street : West : Crosstown
G14: Route | H14: n23a & b : Inbound | I14: Add to corridor stops | J14: Wellesley Street : East : Crosstown
G15: Route | H15: n23a & b : Outbound | I15: Add to corridor stops | J15: Wellesley Street : West : Crosstown
G16: Route Group | H16: North Shore peak | I16: Remove from corridor stops | J16: Wellesley Street : East : Crosstown
G17: Route Group | H17: North Shore peak | I17: Add to corridor stops | J17: Wellesley Street : East : Isthmus
G18: Route Group | H18: Hibiscus Coast Express | I18: Remove from corridor stops | J18: Wellesley Street : East : Crosstown
G19: Route Group | H19: Hibiscus Coast Express | I19: Add to corridor stops | J19: Wellesley Street : East : Isthmus
G20: Route Group | H20: Remuera Road | I20: Remove from corridor stops | J20: Wellesley Street : West : Isthmus, Wellesley Street : East : Isthmus
G21: Route Group | H21: Gillies Ave | I21: Remove from corridor stops | J21: Wellesley Street : West : Isthmus, Wellesley Street : East : Isthmus
G22: Route Group | H22: Manukau Road | I22: Remove from corridor stops | J22: Wellesley Street : West : Isthmus, Wellesley Street : East : Isthmus
G23: Route | H23: 309 & 309X : Inbound | I23: Add to corridor stops | J23: Wellesley Street : West : North Shore
G24: Route | H24: 309 & 309X : Outbound | I24: Add to corridor stops | J24: Wellesley Street : East : North Shore
G25: Route | H25: 295 : Inbound | I25: Add to corridor stops | J25: Wellesley Street : West : North Shore
G26: Route | H26: 295 : Outbound | I26: Add to corridor stops | J26: Wellesley Street : East : North Shore
G27: Route | H27: 70 : Inbound | I27: Add to corridor stops | J27: Wellesley Street : West : North Shore
G28: Route | H28: 70 : Outbound | I28: Add to corridor stops | J28: Wellesley Street : East : North Shore
G29: Route | H29: 701 : Inbound | I29: Add to corridor stops | J29: Wellesley Street : West : North Shore
A30: 3 | B30: Remove Dominion Rd buses | C30: 0 | D30: Year | E30: N/A | F30: 2024 | G30: Route Group | H30: Dominion Road | I30: Remove from corridor stops | J30: Symonds Street (Wellesley to K Rd) : North : Wynyard-bound, Symonds Street Upper : North : All routes, Wellesley Street : West : Isthmus, Fanshawe Street (Victoria Park) : West : Isthmus/Link, Symonds Street (Wellesley to K Rd) : South : Upper Symonds, Symonds Street Upper : South : All routes, Wellesley Street : East : Isthmus, Fanshawe Street (Victoria Park) : East : Isthmus/Link
G31: Route Group | H31: Dominion Road | I31: Remove from terminus stops | J31: Wynyard Quarter : Isthmus/Link
G32: Route Group | H32: Takapuna / Hillcrest | I32: Remove from corridor stops | J32: Wellesley Street : East : Crosstown, Wellesley Street : West : Crosstown
G33: Route | H33: n4 & n4a : Inbound | I33: Add to corridor stops | J33: Wellesley Street : East : North Shore
G34: Route | H34: n4 & n4a : Outbound | I34: Add to corridor stops | J34: Wellesley Street : West : North Shore
G35: Route | H35: n23a & b : Inbound | I35: Add to corridor stops | J35: Wellesley Street : East : North Shore
G36: Route | H36: n23a & b : Outbound | I36: Add to corridor stops | J36: Wellesley Street : West : North Shore
G37: Route Group | H37: Remuera Road | I37: Remove from corridor stops | J37: Wellesley Street : West : North Shore, Wellesley Street : East : North Shore
G38: Route Group | H38: Gillies Ave | I38: Remove from corridor stops | J38: Wellesley Street : West : North Shore, Wellesley Street : East : North Shore
G39: Route Group | H39: Manukau Road | I39: Remove from corridor stops | J39: Wellesley Street : West : North Shore, Wellesley Street : East : North Shore
G40: Route | H40: 309 & 309X : Outbound | I40: Add to corridor stops | J40: Wellesley Street : East : Crosstown
G41: Route | H41: 295 : Outbound | I41: Add to corridor stops | J41: Wellesley Street : East : Crosstown
G42: Route | H42: 70 : Outbound | I42: Add to corridor stops | J42: Wellesley Street : East : Crosstown
G43: Route | H43: 309 & 309X : Inbound | I43: Add to corridor stops | J43: Wellesley Street : West : Crosstown
G44: Route | H44: 295 : Inbound | I44: Add to corridor stops | J44: Wellesley Street : West : Crosstown
G45: Route | H45: 70 : Inbound | I45: Add to corridor stops | J45: Wellesley Street : West : Isthmus
G46: Route | H46: 701 : Inbound | I46: Add to corridor stops | J46: Wellesley Street : West : Isthmus
G47: Route Group | H47: Hibiscus Coast Express | I47: Remove from corridor stops | J47: Wellesley Street : East : Isthmus
G48: Route Group | H48: Hibiscus Coast Express | I48: Add to corridor stops | J48: Wellesley Street : East : Crosstown
G49: Route | H49: Crosstown 4 : Outbound | I49: Remove from corridor stops | J49: Wellesley Street : East : Crosstown
G50: Route | H50: Crosstown 4 : Outbound | I50: Add to corridor stops | J50: Wellesley Street : East : Isthmus
G51: Route Group | H51: Jervois Road | I51: Remove from corridor stops | J51: Wellesley Street : East : Crosstown
G52: Route Group | H52: Jervois Road | I52: Add to corridor stops | J52: Wellesley Street : East : Isthmus
G53: Route Group | H53: City Link | I53: Remove from corridor stops | J53: Fanshawe Street (Halsey to Albert) : East : Link, Fanshawe Street (Halsey to Albert) : West : Link, Fanshawe Street (Victoria Park) : East : Isthmus/Link, Fanshawe Street (Victoria Park) : West : Isthmus/Link, Queen Street (Customs to Mayoral) : North : All routes, Queen Street (Customs to Mayoral) : South : All routes, Queen Street (Mayoral to K Rd) : North : All routes, Queen Street (Mayoral to K Rd) : South : All routes, K Road (Pitt to Queen) : East : All routes, Pitt Street : South : All routes
G54: Route Group | H54: City Link | I54: Remove from terminus stops | J54: Wynyard Quarter : Isthmus/Link
G55: Route Group | H55: Airbus | I55: Remove from corridor stops | J55: Queen Street (Customs to Mayoral) : North : All routes, Queen Street (Mayoral to K Rd) : North : All routes, Queen Street (Customs to Mayoral) : South : All routes, Queen Street (Mayoral to K Rd) : South : All routes
G56: Route | H56: Airbus : Inbound | I56: Add to corridor stops | J56: Albert Street : North : All routes, K Road (Queen to Symonds) : West : All routes, K Road (Pitt to Queen) : West : All routes, Pitt Street : North : All routes
G57: Route | H57: Airbus : Outbound | I57: Add to corridor stops | J57: Albert Street : South : All routes, K Road (Queen to Symonds) : East : All routes, K Road (Pitt to Queen) : East : All routes, Pitt Street : South : All routes
A58: 4 | B58: Reduce Sandringham Rd buses | C58: 0 | D58: Year | E58: N/A | F58: 2034 | G58: Route Group | H58: Remuera Road | I58: Remove from corridor stops | J58: Wellesley Street : West : Crosstown, Wellesley Street : East : Crosstown
G59: Route Group | H59: Gillies Ave | I59: Remove from corridor stops | J59: Wellesley Street : West : Crosstown, Wellesley Street : East : Crosstown
G60: Route | H60: 309 & 309X : Outbound | I60: Remove from corridor stops | J60: Wellesley Street : East : Crosstown
G61: Route | H61: 309 & 309X : Inbound | I61: Remove from corridor stops | J61: Wellesley Street : West : Crosstown
G62: Route | H62: 309 & 309X : Outbound | I62: Add to corridor stops | J62: Wellesley Street : East : Isthmus
G63: Route | H63: 295 : Outbound | I63: Add to corridor stops | J63: Wellesley Street : East : Isthmus
G64: Route | H64: 70 : Outbound | I64: Add to corridor stops | J64: Wellesley Street : East : Isthmus
G65: Route | H65: 309 & 309X : Inbound | I65: Add to corridor stops | J65: Wellesley Street : West : Isthmus
G66: Route | H66: 295 : Inbound | I66: Add to corridor stops | J66: Wellesley Street : West : Isthmus
G67: Route | H67: Crosstown 4 : Outbound | I67: Remove from corridor stops | J67: Wellesley Street : East : Isthmus
G68: Route | H68: Crosstown 4 : Outbound | I68: Add to corridor stops | J68: Wellesley Street : East : Crosstown
G69: Route Group | H69: Jervois Road | I69: Remove from corridor stops | J69: Wellesley Street : East : Isthmus
G70: Route Group | H70: Jervois Road | I70: Add to corridor stops | J70: Wellesley Street : East : Crosstown
A71: 5 | B71: Reroute Grafton buses | C71: 0 | D71: Year | E71: N/A | F71: 2039 | G71: Route Group | H71: Gillies Ave | I71: Remove from corridor stops | J71: Symonds Street (Wellesley to K Rd) : North : Wynyard-bound, Grafton Bridge : West : Wynyard/Ponsonby, Symonds Street (Wellesley to K Rd) : South : Grafton, Grafton Bridge : East : Other
G72: Route | H72: 295 : Inbound | I72: Add to corridor stops | J72: Grafton Road : North : All routes
G73: Route | H73: 295 : Outbound | I73: Add to corridor stops | J73: Grafton Road : South : All routes

Sheet Corridors
A1: Corridor Name | B1: Direction | C1: Stop Group | D1: ='Input Summary'!$H$5 -> 2016 | E1: =IF(IFERROR(D$1+1<='Input Summary'!$H$6,FALSE),D$1+1,"") -> 2017 | F1: =IF(IFERROR(E$1+1<='Input Summary'!$H$6,FALSE),E$1+1,"") -> 2018 | G1: =IF(IFERROR(F$1+1<='Input Summary'!$H$6,FALSE),F$1+1,"") -> 2019 | H1: =IF(IFERROR(G$1+1<='Input Summary'!$H$6,FALSE),G$1+1,"") -> 2020 | I1: =IF(IFERROR(H$1+1<='Input Summary'!$H$6,FALSE),H$1+1,"") -> 2021 | J1: =IF(IFERROR(I$1+1<='Input Summary'!$H$6,FALSE),I$1+1,"") -> 2022 | K1: =IF(IFERROR(J$1+1<='Input Summary'!$H$6,FALSE),J$1+1,"") -> 2023 | L1: =IF(IFERROR(K$1+1<='Input Summary'!$H$6,FALSE),K$1+1,"") -> 2024 | M1: =IF(IFERROR(L$1+1<='Input Summary'!$H$6,FALSE),L$1+1,"") -> 2025 | N1: =IF(IFERROR(M$1+1<='Input Summary'!$H$6,FALSE),M$1+1,"") -> 2026 | O1: =IF(IFERROR(N$1+1<='Input Summary'!$H$6,FALSE),N$1+1,"") -> 2027 | P1: =IF(IFERROR(O$1+1<='Input Summary'!$H$6,FALSE),O$1+1,"") -> 2028 | Q1: =IF(IFERROR(P$1+1<='Input Summary'!$H$6,FALSE),P$1+1,"") -> 2029 | R1: =IF(IFERROR(Q$1+1<='Input Summary'!$H$6,FALSE),Q$1+1,"") -> 2030 | S1: =IF(IFERROR(R$1+1<='Input Summary'!$H$6,FALSE),R$1+1,"") -> 2031 | T1: =IF(IFERROR(S$1+1<='Input Summary'!$H$6,FALSE),S$1+1,"") -> 2032 | U1: =IF(IFERROR(T$1+1<='Input Summary'!$H$6,FALSE),T$1+1,"") -> 2033 | V1: =IF(IFERROR(U$1+1<='Input Summary'!$H$6,FALSE),U$1+1,"") -> 2034 | W1: =IF(IFERROR(V$1+1<='Input Summary'!$H$6,FALSE),V$1+1,"") -> 2035 | X1: =IF(IFERROR(W$1+1<='Input Summary'!$H$6,FALSE),W$1+1,"") -> 2036 | Y1: =IF(IFERROR(X$1+1<='Input Summary'!$H$6,FALSE),X$1+1,"") -> 2037 | Z1: =IF(IFERROR(Y$1+1<='Input Summary'!$H$6,FALSE),Y$1+1,"") -> 2038 | AA1: =IF(IFERROR(Z$1+1<='Input Summary'!$H$6,FALSE),Z$1+1,"") -> 2039 | AB1: =IF(IFERROR(AA$1+1<='Input Summary'!$H$6,FALSE),AA$1+1,"") -> 2040 | AC1: =IF(IFERROR(AB$1+1<='Input Summary'!$H$6,FALSE),AB$1+1,"") -> 2041 | AD1: =IF(IFERROR(AC$1+1<='Input Summary'!$H$6,FALSE),AC$1+1,"") -> 2042 | AE1: =IF(IFERROR(AD$1+1<='Input Summary'!$H$6,FALSE),AD$1+1,"") -> 2043 | AF1: =IF(IFERROR(AE$1+1<='Input Summary'!$H$6,FALSE),AE$1+1,"") -> 2044 | AG1: =IF(IFERROR(AF$1+1<='Input Summary'!$H$6,FALSE),AF$1+1,"") -> 2045 | AH1: =IF(IFERROR(AG$1+1<='Input Summary'!$H$6,FALSE),AG$1+1,"") -> 2046
A2: Anzac Ave | B2: North | C2: All routes | D2: 53 | E2: 53 | F2: 53 | G2: 53 | H2: 53 | I2: 53 | J2: 53 | K2: 53 | L2: 53 | M2: 53 | N2: 53 | O2: 53 | P2: 53 | Q2: 53 | R2: 53 | S2: 53 | T2: 53 | U2: 53 | V2: 53 | W2: 53 | X2: 53 | Y2: 53 | Z2: 53 | AA2: 53 | AB2: 53 | AC2: 53 | AD2: 53 | AE2: 53 | AF2: 53 | AG2: 53 | AH2: 53
A3: Anzac Ave | B3: South | C3: All routes | D3: 53 | E3: 53 | F3: 53 | G3: 53 | H3: 53 | I3: 53 | J3: 53 | K3: 53 | L3: 53 | M3: 53 | N3: 53 | O3: 53 | P3: 53 | Q3: 53 | R3: 53 | S3: 53 | T3: 53 | U3: 53 | V3: 53 | W3: 53 | X3: 53 | Y3: 53 | Z3: 53 | AA3: 53 | AB3: 53 | AC3: 53 | AD3: 53 | AE3: 53 | AF3: 53 | AG3: 53 | AH3: 53
A4: Symonds Street (Anzac to Wellesley) | B4: North | C4: All routes | D4: 53 | E4: 53 | F4: 53 | G4: 53 | H4: 53 | I4: 53 | J4: 53 | K4: 53 | L4: 53 | M4: 53 | N4: 53 | O4: 53 | P4: 53 | Q4: 53 | R4: 53 | S4: 53 | T4: 53 | U4: 53 | V4: 53 | W4: 53 | X4: 53 | Y4: 53 | Z4: 53 | AA4: 53 | AB4: 53 | AC4: 53 | AD4: 53 | AE4: 53 | AF4: 53 | AG4: 53 | AH4: 53
A5: Symonds Street (Anzac to Wellesley) | B5: South | C5: All routes | D5: 53 | E5: 53 | F5: 53 | G5: 53 | H5: 53 | I5: 53 | J5: 53 | K5: 53 | L5: 53 | M5: 53 | N5: 53 | O5: 53 | P5: 53 | Q5: 53 | R5: 53 | S5: 53 | T5: 53 | U5: 53 | V5: 53 | W5: 53 | X5: 53 | Y5: 53 | Z5: 53 | AA5: 53 | AB5: 53 | AC5: 53 | AD5: 53 | AE5: 53 | AF5: 53 | AG5: 53 | AH5: 53
A6: Symonds Street (Wellesley to K Rd) | B6: North | C6: Britomart-bound | D6: 53 | E6: 53 | F6: 53 | G6: 53 | H6: 53 | I6: 53 | J6: 53 | K6: 53 | L6: 53 | M6: 53 | N6: 53 | O6: 53 | P6: 53 | Q6: 53 | R6: 53 | S6: 53 | T6: 53 | U6: 53 | V6: 53 | W6: 53 | X6: 53 | Y6: 53 | Z6: 53 | AA6: 53 | AB6: 53 | AC6: 53 | AD6: 53 | AE6: 53 | AF6: 53 | AG6: 53 | AH6: 53
A7: Symonds Street (Wellesley to K Rd) | B7: North | C7: Wynyard-bound | D7: 53 | E7: 53 | F7: 53 | G7: 53 | H7: 53 | I7: 53 | J7: 53 | K7: 53 | L7: 53 | M7: 53 | N7: 53 | O7: 53 | P7: 53 | Q7: 53 | R7: 53 | S7: 53 | T7: 53 | U7: 53 | V7: 53 | W7: 53 | X7: 53 | Y7: 53 | Z7: 53 | AA7: 53 | AB7: 53 | AC7: 53 | AD7: 53 | AE7: 53 | AF7: 53 | AG7: 53 | AH7: 53
A8: Symonds Street (Wellesley to K Rd) | B8: South | C8: Grafton | D8: 53 | E8: 53 | F8: 53 | G8: 53 | H8: 53 | I8: 53 | J8: 53 | K8: 53 | L8: 53 | M8: 53 | N8: 53 | O8: 53 | P8: 53 | Q8: 53 | R8: 53 | S8: 53 | T8: 53 | U8: 53 | V8: 53 | W8: 53 | X8: 53 | Y8: 53 | Z8: 53 | AA8: 53 | AB8: 53 | AC8: 53 | AD8: 53 | AE8: 53 | AF8: 53 | AG8: 53 | AH8: 53
A9: Symonds Street (Wellesley to K Rd) | B9: South | C9: Upper Symonds | D9: 53 | E9: 53 | F9: 53 | G9: 53 | H9: 53 | I9: 53 | J9: 53 | K9: 53 | L9: 53 | M9: 53 | N9: 53 | O9: 53 | P9: 53 | Q9: 53 | R9: 53 | S9: 53 | T9: 53 | U9: 53 | V9: 53 | W9: 53 | X9: 53 | Y9: 53 | Z9: 53 | AA9: 53 | AB9: 53 | AC9: 53 | AD9: 53 | AE9: 53 | AF9: 53 | AG9: 53 | AH9: 53
A10: Symonds Street Upper | B10: North | C10: All routes | D10: 53 | E10: 53 | F10: 53 | G10: 53 | H10: 53 | I10: 53 | J10: 53 | K10: 53 | L10: 53 | M10: 53 | N10: 53 | O10: 53 | P10: 53 | Q10: 53 | R10: 53 | S10: 53 | T10: 53 | U10: 53 | V10: 53 | W10: 53 | X10: 53 | Y10: 53 | Z10: 53 | AA10: 53 | AB10: 53 | AC10: 53 | AD10: 53 | AE10: 53 | AF10: 53 | AG10: 53 | AH10: 53
A11: Symonds Street Upper | B11: South | C11: All routes | D11: 53 | E11: 53 | F11: 53 | G11: 53 | H11: 53 | I11: 53 | J11: 53 | K11: 53 | L11: 53 | M11: 53 | N11: 53 | O11: 53 | P11: 53 | Q11: 53 | R11: 53 | S11: 53 | T11: 53 | U11: 53 | V11: 53 | W11: 53 | X11: 53 | Y11: 53 | Z11: 53 | AA11: 53 | AB11: 53 | AC11: 53 | AD11: 53 | AE11: 53 | AF11: 53 | AG11: 53 | AH11: 53
A12: Wellesley Street | B12: East | C12: North Shore | D12: 53 | E12: 53 | F12: 53 | G12: 53 | H12: 53 | I12: 53 | J12: 53 | K12: 53 | L12: 53 | M12: 53 | N12: 53 | O12: 53 | P12: 53 | Q12: 53 | R12: 53 | S12: 53 | T12: 53 | U12: 53 | V12: 53 | W12: 53 | X12: 53 | Y12: 53 | Z12: 53 | AA12: 53 | AB12: 53 | AC12: 53 | AD12: 53 | AE12: 53 | AF12: 53 | AG12: 53 | AH12: 53
A13: Wellesley Street | B13: East | C13: Isthmus | D13: 53 | E13: 53 | F13: 53 | G13: 53 | H13: 53 | I13: 53 | J13: 53 | K13: 53 | L13: 53 | M13: 53 | N13: 53 | O13: 53 | P13: 53 | Q13: 53 | R13: 53 | S13: 53 | T13: 53 | U13: 53 | V13: 53 | W13: 53 | X13: 53 | Y13: 53 | Z13: 53 | AA13: 53 | AB13: 53 | AC13: 53 | AD13: 53 | AE13: 53 | AF13: 53 | AG13: 53 | AH13: 53
A14: Wellesley Street | B14: East | C14: Crosstown | D14: 33 | E14: 33 | F14: 33 | G14: 33 | H14: 33 | I14: 33 | J14: 33 | K14: 33 | L14: 33 | M14: 33 | N14: 33 | O14: 33 | P14: 33 | Q14: 33 | R14: 33 | S14: 33 | T14: 33 | U14: 33 | V14: 33 | W14: 33 | X14: 33 | Y14: 33 | Z14: 33 | AA14: 33 | AB14: 33 | AC14: 33 | AD14: 33 | AE14: 33 | AF14: 33 | AG14: 33 | AH14: 33
A15: Wellesley Street | B15: West | C15: North Shore | D15: 53 | E15: 53 | F15: 53 | G15: 53 | H15: 53 | I15: 53 | J15: 53 | K15: 53 | L15: 53 | M15: 53 | N15: 53 | O15: 53 | P15: 53 | Q15: 53 | R15: 53 | S15: 53 | T15: 53 | U15: 53 | V15: 53 | W15: 53 | X15: 53 | Y15: 53 | Z15: 53 | AA15: 53 | AB15: 53 | AC15: 53 | AD15: 53 | AE15: 53 | AF15: 53 | AG15: 53 | AH15: 53
A16: Wellesley Street | B16: West | C16: Isthmus | D16: 53 | E16: 53 | F16: 53 | G16: 53 | H16: 53 | I16: 53 | J16: 53 | K16: 53 | L16: 53 | M16: 53 | N16: 53 | O16: 53 | P16: 53 | Q16: 53 | R16: 53 | S16: 53 | T16: 53 | U16: 53 | V16: 53 | W16: 53 | X16: 53 | Y16: 53 | Z16: 53 | AA16: 53 | AB16: 53 | AC16: 53 | AD16: 53 | AE16: 53 | AF16: 53 | AG16: 53 | AH16: 53
A17: Wellesley Street | B17: West | C17: Crosstown | D17: 33 | E17: 33 | F17: 33 | G17: 33 | H17: 33 | I17: 33 | J17: 33 | K17: 33 | L17: 33 | M17: 33 | N17: 33 | O17: 33 | P17: 33 | Q17: 33 | R17: 33 | S17: 33 | T17: 33 | U17: 33 | V17: 33 | W17: 33 | X17: 33 | Y17: 33 | Z17: 33 | AA17: 33 | AB17: 33 | AC17: 33 | AD17: 33 | AE17: 33 | AF17: 33 | AG17: 33 | AH17: 33
A18: Fanshawe Street (Halsey to Albert) | B18: East | C18: North Shore to Britomart | D18: 53 | E18: 53 | F18: 53 | G18: 53 | H18: 53 | I18: 53 | J18: 53 | K18: 53 | L18: 53 | M18: 53 | N18: 53 | O18: 53 | P18: 53 | Q18: 53 | R18: 53 | S18: 53 | T18: 53 | U18: 53 | V18: 53 | W18: 53 | X18: 53 | Y18: 53 | Z18: 53 | AA18: 53 | AB18: 53 | AC18: 53 | AD18: 53 | AE18: 53 | AF18: 53 | AG18: 53 | AH18: 53
A19: Fanshawe Street (Halsey to Albert) | B19: East | C19: Link | D19: 53 | E19: 53 | F19: 53 | G19: 53 | H19: 53 | I19: 53 | J19: 53 | K19: 53 | L19: 53 | M19: 53 | N19: 53 | O19: 53 | P19: 53 | Q19: 53 | R19: 53 | S19: 53 | T19: 53 | U19: 53 | V19: 53 | W19: 53 | X19: 53 | Y19: 53 | Z19: 53 | AA19: 53 | AB19: 53 | AC19: 53 | AD19: 53 | AE19: 53 | AF19: 53 | AG19: 53 | AH19: 53
A20: Fanshawe Street (Halsey to Albert) | B20: West | C20: North Shore | D20: 53 | E20: 53 | F20: 53 | G20: 53 | H20: 53 | I20: 53 | J20: 53 | K20: 53 | L20: 53 | M20: 53 | N20: 53 | O20: 53 | P20: 53 | Q20: 53 | R20: 53 | S20: 53 | T20: 53 | U20: 53 | V20: 53 | W20: 53 | X20: 53 | Y20: 53 | Z20: 53 | AA20: 53 | AB20: 53 | AC20: 53 | AD20: 53 | AE20: 53 | AF20: 53 | AG20: 53 | AH20: 53
A21: Fanshawe Street (Halsey to Albert) | B21: West | C21: Link | D21: 53 | E21: 53 | F21: 53 | G21: 53 | H21: 53 | I21: 53 | J21: 53 | K21: 53 | L21: 53 | M21: 53 | N21: 53 | O21: 53 | P21: 53 | Q21: 53 | R21: 53 | S21: 53 | T21: 53 | U21: 53 | V21: 53 | W21: 53 | X21: 53 | Y21: 53 | Z21: 53 | AA21: 53 | AB21: 53 | AC21: 53 | AD21: 53 | AE21: 53 | AF21: 53 | AG21: 53 | AH21: 53
A22: Fanshawe Street (Victoria Park) | B22: East | C22: NS to Britomart | D22: 53 | E22: 53 | F22: 53 | G22: 53 | H22: 53 | I22: 53 | J22: 53 | K22: 53 | L22: 53 | M22: 53 | N22: 53 | O22: 53 | P22: 53 | Q22: 53 | R22: 53 | S22: 53 | T22: 53 | U22: 53 | V22: 53 | W22: 53 | X22: 53 | Y22: 53 | Z22: 53 | AA22: 53 | AB22: 53 | AC22: 53 | AD22: 53 | AE22: 53 | AF22: 53 | AG22: 53 | AH22: 53
A23: Fanshawe Street (Victoria Park) | B23: East | C23: NS to University | D23: 53 | E23: 53 | F23: 53 | G23: 53 | H23: 53 | I23: 53 | J23: 53 | K23: 53 | L23: 53 | M23: 53 | N23: 53 | O23: 53 | P23: 53 | Q23: 53 | R23: 53 | S23: 53 | T23: 53 | U23: 53 | V23: 53 | W23: 53 | X23: 53 | Y23: 53 | Z23: 53 | AA23: 53 | AB23: 53 | AC23: 53 | AD23: 53 | AE23: 53 | AF23: 53 | AG23: 53 | AH23: 53
A24: Fanshawe Street (Victoria Park) | B24: East | C24: Isthmus/Link | D24: 33 | E24: 33 | F24: 33 | G24: 33 | H24: 33 | I24: 33 | J24: 33 | K24: 33 | L24: 33 | M24: 33 | N24: 33 | O24: 33 | P24: 33 | Q24: 33 | R24: 33 | S24: 33 | T24: 33 | U24: 33 | V24: 33 | W24: 33 | X24: 33 | Y24: 33 | Z24: 33 | AA24: 33 | AB24: 33 | AC24: 33 | AD24: 33 | AE24: 33 | AF24: 33 | AG24: 33 | AH24: 33
A25: Fanshawe Street (Victoria Park) | B25: West | C25: NEX | D25: 53 | E25: 53 | F25: 53 | G25: 53 | H25: 53 | I25: 53 | J25: 53 | K25: 53 | L25: 53 | M25: 53 | N25: 53 | O25: 53 | P25: 53 | Q25: 53 | R25: 53 | S25: 53 | T25: 53 | U25: 53 | V25: 53 | W25: 53 | X25: 53 | Y25: 53 | Z25: 53 | AA25: 53 | AB25: 53 | AC25: 53 | AD25: 53 | AE25: 53 | AF25: 53 | AG25: 53 | AH25: 53
A26: Fanshawe Street (Victoria Park) | B26: West | C26: Isthmus/Link | D26: 53 | E26: 53 | F26: 53 | G26: 53 | H26: 53 | I26: 53 | J26: 53 | K26: 53 | L26: 53 | M26: 53 | N26: 53 | O26: 53 | P26: 53 | Q26: 53 | R26: 53 | S26: 53 | T26: 53 | U26: 53 | V26: 53 | W26: 53 | X26: 53 | Y26: 53 | Z26: 53 | AA26: 53 | AB26: 53 | AC26: 53 | AD26: 53 | AE26: 53 | AF26: 53 | AG26: 53 | AH26: 53
A27: Fanshawe Street (Victoria Park) | B27: West | C27: North Shore | D27: 33 | E27: 33 | F27: 33 | G27: 33 | H27: 33 | I27: 33 | J27: 33 | K27: 33 | L27: 33 | M27: 33 | N27: 33 | O27: 33 | P27: 33 | Q27: 33 | R27: 33 | S27: 33 | T27: 33 | U27: 33 | V27: 33 | W27: 33 | X27: 33 | Y27: 33 | Z27: 33 | AA27: 33 | AB27: 33 | AC27: 33 | AD27: 33 | AE27: 33 | AF27: 33 | AG27: 33 | AH27: 33
A28: Queen Street (Customs to Mayoral) | B28: North | C28: All routes | D28: 33 | E28: 33 | F28: 33 | G28: 33 | H28: 33 | I28: 33 | J28: 33 | K28: 33 | L28: 33 | M28: 33 | N28: 33 | O28: 33 | P28: 33 | Q28: 33 | R28: 33 | S28: 33 | T28: 33 | U28: 33 | V28: 33 | W28: 33 | X28: 33 | Y28: 33 | Z28: 33 | AA28: 33 | AB28: 33 | AC28: 33 | AD28: 33 | AE28: 33 | AF28: 33 | AG28: 33 | AH28: 33
A29: Queen Street (Customs to Mayoral) | B29: South | C29: All routes | D29: 33 | E29: 33 | F29: 33 | G29: 33 | H29: 33 | I29: 33 | J29: 33 | K29: 33 | L29: 33 | M29: 33 | N29: 33 | O29: 33 | P29: 33 | Q29: 33 | R29: 33 | S29: 33 | T29: 33 | U29: 33 | V29: 33 | W29: 33 | X29: 33 | Y29: 33 | Z29: 33 | AA29: 33 | AB29: 33 | AC29: 33 | AD29: 33 | AE29: 33 | AF29: 33 | AG29: 33 | AH29: 33
A30: Queen Street (Mayoral to K Rd) | B30: North | C30: All routes | D30: 53 | E30: 53 | F30: 53 | G30: 53 | H30: 53 | I30: 53 | J30: 53 | K30: 53 | L30: 53 | M30: 53 | N30: 53 | O30: 53 | P30: 53 | Q30: 53 | R30: 53 | S30: 53 | T30: 53 | U30: 53 | V30: 53 | W30: 53 | X30: 53 | Y30: 53 | Z30: 53 | AA30: 53 | AB30: 53 | AC30: 53 | AD30: 53 | AE30: 53 | AF30: 53 | AG30: 53 | AH30: 53
A31: Queen Street (Mayoral to K Rd) | B31: South | C31: All routes | D31: 53 | E31: 53 | F31: 53 | G31: 53 | H31: 53 | I31: 53 | J31: 53 | K31: 53 | L31: 53 | M31: 53 | N31: 53 | O31: 53 | P31: 53 | Q31: 53 | R31: 53 | S31: 53 | T31: 53 | U31: 53 | V31: 53 | W31: 53 | X31: 53 | Y31: 53 | Z31: 53 | AA31: 53 | AB31: 53 | AC31: 53 | AD31: 53 | AE31: 53 | AF31: 53 | AG31: 53 | AH31: 53
A32: Albert Street | B32: North | C32: All routes | D32: 53 | E32: 53 | F32: 53 | G32: 53 | H32: 53 | I32: 53 | J32: 53 | K32: 53 | L32: 53 | M32: 53 | N32: 53 | O32: 53 | P32: 53 | Q32: 53 | R32: 53 | S32: 53 | T32: 53 | U32: 53 | V32: 53 | W32: 53 | X32: 53 | Y32: 53 | Z32: 53 | AA32: 53 | AB32: 53 | AC32: 53 | AD32: 53 | AE32: 53 | AF32: 53 | AG32: 53 | AH32: 53
A33: Albert Street | B33: South | C33: All routes | D33: 53 | E33: 53 | F33: 53 | G33: 53 | H33: 53 | I33: 53 | J33: 53 | K33: 53 | L33: 53 | M33: 53 | N33: 53 | O33: 53 | P33: 53 | Q33: 53 | R33: 53 | S33: 53 | T33: 53 | U33: 53 | V33: 53 | W33: 53 | X33: 53 | Y33: 53 | Z33: 53 | AA33: 53 | AB33: 53 | AC33: 53 | AD33: 53 | AE33: 53 | AF33: 53 | AG33: 53 | AH33: 53
A34: Beach Road | B34: East | C34: All routes | D34: 53 | E34: 53 | F34: 53 | G34: 53 | H34: 53 | I34: 53 | J34: 53 | K34: 53 | L34: 53 | M34: 53 | N34: 53 | O34: 53 | P34: 53 | Q34: 53 | R34: 53 | S34: 53 | T34: 53 | U34: 53 | V34: 53 | W34: 53 | X34: 53 | Y34: 53 | Z34: 53 | AA34: 53 | AB34: 53 | AC34: 53 | AD34: 53 | AE34: 53 | AF34: 53 | AG34: 53 | AH34: 53
A35: Beach Road | B35: West | C35: All routes | D35: 53 | E35: 53 | F35: 53 | G35: 53 | H35: 53 | I35: 53 | J35: 53 | K35: 53 | L35: 53 | M35: 53 | N35: 53 | O35: 53 | P35: 53 | Q35: 53 | R35: 53 | S35: 53 | T35: 53 | U35: 53 | V35: 53 | W35: 53 | X35: 53 | Y35: 53 | Z35: 53 | AA35: 53 | AB35: 53 | AC35: 53 | AD35: 53 | AE35: 53 | AF35: 53 | AG35: 53 | AH35: 53
A36: Victoria Street | B36: East | C36: All routes | D36: 53 | E36: 53 | F36: 53 | G36: 53 | H36: 53 | I36: 53 | J36: 53 | K36: 53 | L36: 53 | M36: 53 | N36: 53 | O36: 53 | P36: 53 | Q36: 53 | R36: 53 | S36: 53 | T36: 53 | U36: 53 | V36: 53 | W36: 53 | X36: 53 | Y36: 53 | Z36: 53 | AA36: 53 | AB36: 53 | AC36: 53 | AD36: 53 | AE36: 53 | AF36: 53 | AG36: 53 | AH36: 53
A37: Victoria Street | B37: West | C37: All routes | D37: 53 | E37: 53 | F37: 53 | G37: 53 | H37: 53 | I37: 53 | J37: 53 | K37: 53 | L37: 53 | M37: 53 | N37: 53 | O37: 53 | P37: 53 | Q37: 53 | R37: 53 | S37: 53 | T37: 53 | U37: 53 | V37: 53 | W37: 53 | X37: 53 | Y37: 53 | Z37: 53 | AA37: 53 | AB37: 53 | AC37: 53 | AD37: 53 | AE37: 53 | AF37: 53 | AG37: 53 | AH37: 53
A38: College Hill | B38: East | C38: All routes | D38: 53 | E38: 53 | F38: 53 | G38: 53 | H38: 53 | I38: 53 | J38: 53 | K38: 53 | L38: 53 | M38: 53 | N38: 53 | O38: 53 | P38: 53 | Q38: 53 | R38: 53 | S38: 53 | T38: 53 | U38: 53 | V38: 53 | W38: 53 | X38: 53 | Y38: 53 | Z38: 53 | AA38: 53 | AB38: 53 | AC38: 53 | AD38: 53 | AE38: 53 | AF38: 53 | AG38: 53 | AH38: 53
A39: College Hill | B39: West | C39: All routes | D39: 53 | E39: 53 | F39: 53 | G39: 53 | H39: 53 | I39: 53 | J39: 53 | K39: 53 | L39: 53 | M39: 53 | N39: 53 | O39: 53 | P39: 53 | Q39: 53 | R39: 53 | S39: 53 | T39: 53 | U39: 53 | V39: 53 | W39: 53 | X39: 53 | Y39: 53 | Z39: 53 | AA39: 53 | AB39: 53 | AC39: 53 | AD39: 53 | AE39: 53 | AF39: 53 | AG39: 53 | AH39: 53
A40: Beaumont Street | B40: North | C40: All routes | D40: 53 | E40: 53 | F40: 53 | G40: 53 | H40: 53 | I40: 53 | J40: 53 | K40: 53 | L40: 53 | M40: 53 | N40: 53 | O40: 53 | P40: 53 | Q40: 53 | R40: 53 | S40: 53 | T40: 53 | U40: 53 | V40: 53 | W40: 53 | X40: 53 | Y40: 53 | Z40: 53 | AA40: 53 | AB40: 53 | AC40: 53 | AD40: 53 | AE40: 53 | AF40: 53 | AG40: 53 | AH40: 53
A41: Beaumont Street | B41: South | C41: All routes | D41: 53 | E41: 53 | F41: 53 | G41: 53 | H41: 53 | I41: 53 | J41: 53 | K41: 53 | L41: 53 | M41: 53 | N41: 53 | O41: 53 | P41: 53 | Q41: 53 | R41: 53 | S41: 53 | T41: 53 | U41: 53 | V41: 53 | W41: 53 | X41: 53 | Y41: 53 | Z41: 53 | AA41: 53 | AB41: 53 | AC41: 53 | AD41: 53 | AE41: 53 | AF41: 53 | AG41: 53 | AH41: 53
A42: K Road (Pitt to Ponsonby) | B42: East | C42: All routes | D42: 53 | E42: 53 | F42: 53 | G42: 53 | H42: 53 | I42: 53 | J42: 53 | K42: 53 | L42: 53 | M42: 53 | N42: 53 | O42: 53 | P42: 53 | Q42: 53 | R42: 53 | S42: 53 | T42: 53 | U42: 53 | V42: 53 | W42: 53 | X42: 53 | Y42: 53 | Z42: 53 | AA42: 53 | AB42: 53 | AC42: 53 | AD42: 53 | AE42: 53 | AF42: 53 | AG42: 53 | AH42: 53
A43: K Road (Pitt to Ponsonby) | B43: West | C43: All routes | D43: 53 | E43: 53 | F43: 53 | G43: 53 | H43: 53 | I43: 53 | J43: 53 | K43: 53 | L43: 53 | M43: 53 | N43: 53 | O43: 53 | P43: 53 | Q43: 53 | R43: 53 | S43: 53 | T43: 53 | U43: 53 | V43: 53 | W43: 53 | X43: 53 | Y43: 53 | Z43: 53 | AA43: 53 | AB43: 53 | AC43: 53 | AD43: 53 | AE43: 53 | AF43: 53 | AG43: 53 | AH43: 53
A44: K Road (Queen to Symonds) | B44: East | C44: All routes | D44: 53 | E44: 53 | F44: 53 | G44: 53 | H44: 53 | I44: 53 | J44: 53 | K44: 53 | L44: 53 | M44: 53 | N44: 53 | O44: 53 | P44: 53 | Q44: 53 | R44: 53 | S44: 53 | T44: 53 | U44: 53 | V44: 53 | W44: 53 | X44: 53 | Y44: 53 | Z44: 53 | AA44: 53 | AB44: 53 | AC44: 53 | AD44: 53 | AE44: 53 | AF44: 53 | AG44: 53 | AH44: 53
A45: K Road (Queen to Symonds) | B45: West | C45: All routes | D45: 53 | E45: 53 | F45: 53 | G45: 53 | H45: 53 | I45: 53 | J45: 53 | K45: 53 | L45: 53 | M45: 53 | N45: 53 | O45: 53 | P45: 53 | Q45: 53 | R45: 53 | S45: 53 | T45: 53 | U45: 53 | V45: 53 | W45: 53 | X45: 53 | Y45: 53 | Z45: 53 | AA45: 53 | AB45: 53 | AC45: 53 | AD45: 53 | AE45: 53 | AF45: 53 | AG45: 53 | AH45: 53
A46: K Road (Pitt to Queen) | B46: East | C46: All routes | D46: 53 | E46: 53 | F46: 53 | G46: 53 | H46: 53 | I46: 53 | J46: 53 | K46: 53 | L46: 53 | M46: 53 | N46: 53 | O46: 53 | P46: 53 | Q46: 53 | R46: 53 | S46: 53 | T46: 53 | U46: 53 | V46: 53 | W46: 53 | X46: 53 | Y46: 53 | Z46: 53 | AA46: 53 | AB46: 53 | AC46: 53 | AD46: 53 | AE46: 53 | AF46: 53 | AG46: 53 | AH46: 53
A47: K Road (Pitt to Queen) | B47: West | C47: All routes | D47: 53 | E47: 53 | F47: 53 | G47: 53 | H47: 53 | I47: 53 | J47: 53 | K47: 53 | L47: 53 | M47: 53 | N47: 53 | O47: 53 | P47: 53 | Q47: 53 | R47: 53 | S47: 53 | T47: 53 | U47: 53 | V47: 53 | W47: 53 | X47: 53 | Y47: 53 | Z47: 53 | AA47: 53 | AB47: 53 | AC47: 53 | AD47: 53 | AE47: 53 | AF47: 53 | AG47: 53 | AH47: 53
A48: Pitt Street | B48: North | C48: All routes | D48: 53 | E48: 53 | F48: 53 | G48: 53 | H48: 53 | I48: 53 | J48: 53 | K48: 53 | L48: 53 | M48: 53 | N48: 53 | O48: 53 | P48: 53 | Q48: 53 | R48: 53 | S48: 53 | T48: 53 | U48: 53 | V48: 53 | W48: 53 | X48: 53 | Y48: 53 | Z48: 53 | AA48: 53 | AB48: 53 | AC48: 53 | AD48: 53 | AE48: 53 | AF48: 53 | AG48: 53 | AH48: 53
A49: Pitt Street | B49: South | C49: All routes | D49: 53 | E49: 53 | F49: 53 | G49: 53 | H49: 53 | I49: 53 | J49: 53 | K49: 53 | L49: 53 | M49: 53 | N49: 53 | O49: 53 | P49: 53 | Q49: 53 | R49: 53 | S49: 53 | T49: 53 | U49: 53 | V49: 53 | W49: 53 | X49: 53 | Y49: 53 | Z49: 53 | AA49: 53 | AB49: 53 | AC49: 53 | AD49: 53 | AE49: 53 | AF49: 53 | AG49: 53 | AH49: 53
A50: Great North Road | B50: East | C50: All routes | D50: 53 | E50: 53 | F50: 53 | G50: 53 | H50: 53 | I50: 53 | J50: 53 | K50: 53 | L50: 53 | M50: 53 | N50: 53 | O50: 53 | P50: 53 | Q50: 53 | R50: 53 | S50: 53 | T50: 53 | U50: 53 | V50: 53 | W50: 53 | X50: 53 | Y50: 53 | Z50: 53 | AA50: 53 | AB50: 53 | AC50: 53 | AD50: 53 | AE50: 53 | AF50: 53 | AG50: 53 | AH50: 53
A51: Great North Road | B51: West | C51: All routes | D51: 53 | E51: 53 | F51: 53 | G51: 53 | H51: 53 | I51: 53 | J51: 53 | K51: 53 | L51: 53 | M51: 53 | N51: 53 | O51: 53 | P51: 53 | Q51: 53 | R51: 53 | S51: 53 | T51: 53 | U51: 53 | V51: 53 | W51: 53 | X51: 53 | Y51: 53 | Z51: 53 | AA51: 53 | AB51: 53 | AC51: 53 | AD51: 53 | AE51: 53 | AF51: 53 | AG51: 53 | AH51: 53
A52: Grafton Bridge | B52: East | C52: Other | D52: 53 | E52: 53 | F52: 53 | G52: 53 | H52: 53 | I52: 53 | J52: 53 | K52: 53 | L52: 53 | M52: 53 | N52: 53 | O52: 53 | P52: 53 | Q52: 53 | R52: 53 | S52: 53 | T52: 53 | U52: 53 | V52: 53 | W52: 53 | X52: 53 | Y52: 53 | Z52: 53 | AA52: 53 | AB52: 53 | AC52: 53 | AD52: 53 | AE52: 53 | AF52: 53 | AG52: 53 | AH52: 53
A53: Grafton Bridge | B53: East | C53: To 277 | D53: 53 | E53: 53 | F53: 53 | G53: 53 | H53: 53 | I53: 53 | J53: 53 | K53: 53 | L53: 53 | M53: 53 | N53: 53 | O53: 53 | P53: 53 | Q53: 53 | R53: 53 | S53: 53 | T53: 53 | U53: 53 | V53: 53 | W53: 53 | X53: 53 | Y53: 53 | Z53: 53 | AA53: 53 | AB53: 53 | AC53: 53 | AD53: 53 | AE53: 53 | AF53: 53 | AG53: 53 | AH53: 53
A54: Grafton Bridge | B54: West | C54: Britomart-bound | D54: 53 | E54: 53 | F54: 53 | G54: 53 | H54: 53 | I54: 53 | J54: 53 | K54: 53 | L54: 53 | M54: 53 | N54: 53 | O54: 53 | P54: 53 | Q54: 53 | R54: 53 | S54: 53 | T54: 53 | U54: 53 | V54: 53 | W54: 53 | X54: 53 | Y54: 53 | Z54: 53 | AA54: 53 | AB54: 53 | AC54: 53 | AD54: 53 | AE54: 53 | AF54: 53 | AG54: 53 | AH54: 53
A55: Grafton Bridge | B55: West | C55: Wynyard/Ponsonby | D55: 53 | E55: 53 | F55: 53 | G55: 53 | H55: 53 | I55: 53 | J55: 53 | K55: 53 | L55: 53 | M55: 53 | N55: 53 | O55: 53 | P55: 53 | Q55: 53 | R55: 53 | S55: 53 | T55: 53 | U55: 53 | V55: 53 | W55: 53 | X55: 53 | Y55: 53 | Z55: 53 | AA55: 53 | AB55: 53 | AC55: 53 | AD55: 53 | AE55: 53 | AF55: 53 | AG55: 53 | AH55: 53
A56: Park Road | B56: East | C56: Other | D56: 53 | E56: 53 | F56: 53 | G56: 53 | H56: 53 | I56: 53 | J56: 53 | K56: 53 | L56: 53 | M56: 53 | N56: 53 | O56: 53 | P56: 53 | Q56: 53 | R56: 53 | S56: 53 | T56: 53 | U56: 53 | V56: 53 | W56: 53 | X56: 53 | Y56: 53 | Z56: 53 | AA56: 53 | AB56: 53 | AC56: 53 | AD56: 53 | AE56: 53 | AF56: 53 | AG56: 53 | AH56: 53
A57: Park Road | B57: East | C57: To 277 | D57: 53 | E57: 53 | F57: 53 | G57: 53 | H57: 53 | I57: 53 | J57: 53 | K57: 53 | L57: 53 | M57: 53 | N57: 53 | O57: 53 | P57: 53 | Q57: 53 | R57: 53 | S57: 53 | T57: 53 | U57: 53 | V57: 53 | W57: 53 | X57: 53 | Y57: 53 | Z57: 53 | AA57: 53 | AB57: 53 | AC57: 53 | AD57: 53 | AE57: 53 | AF57: 53 | AG57: 53 | AH57: 53
A58: Park Road | B58: West | C58: Britomart-bound | D58: 53 | E58: 53 | F58: 53 | G58: 53 | H58: 53 | I58: 53 | J58: 53 | K58: 53 | L58: 53 | M58: 53 | N58: 53 | O58: 53 | P58: 53 | Q58: 53 | R58: 53 | S58: 53 | T58: 53 | U58: 53 | V58: 53 | W58: 53 | X58: 53 | Y58: 53 | Z58: 53 | AA58: 53 | AB58: 53 | AC58: 53 | AD58: 53 | AE58: 53 | AF58: 53 | AG58: 53 | AH58: 53
A59: Park Road | B59: West | C59: Wynyard/Ponsonby | D59: 53 | E59: 53 | F59: 53 | G59: 53 | H59: 53 | I59: 53 | J59: 53 | K59: 53 | L59: 53 | M59: 53 | N59: 53 | O59: 53 | P59: 53 | Q59: 53 | R59: 53 | S59: 53 | T59: 53 | U59: 53 | V59: 53 | W59: 53 | X59: 53 | Y59: 53 | Z59: 53 | AA59: 53 | AB59: 53 | AC59: 53 | AD59: 53 | AE59: 53 | AF59: 53 | AG59: 53 | AH59: 53
A60: Khyber Pass | B60: East | C60: All routes | D60: 53 | E60: 53 | F60: 53 | G60: 53 | H60: 53 | I60: 53 | J60: 53 | K60: 53 | L60: 53 | M60: 53 | N60: 53 | O60: 53 | P60: 53 | Q60: 53 | R60: 53 | S60: 53 | T60: 53 | U60: 53 | V60: 53 | W60: 53 | X60: 53 | Y60: 53 | Z60: 53 | AA60: 53 | AB60: 53 | AC60: 53 | AD60: 53 | AE60: 53 | AF60: 53 | AG60: 53 | AH60: 53
A61: Khyber Pass | B61: West | C61: All routes | D61: 53 | E61: 53 | F61: 53 | G61: 53 | H61: 53 | I61: 53 | J61: 53 | K61: 53 | L61: 53 | M61: 53 | N61: 53 | O61: 53 | P61: 53 | Q61: 53 | R61: 53 | S61: 53 | T61: 53 | U61: 53 | V61: 53 | W61: 53 | X61: 53 | Y61: 53 | Z61: 53 | AA61: 53 | AB61: 53 | AC61: 53 | AD61: 53 | AE61: 53 | AF61: 53 | AG61: 53 | AH61: 53
A62: Grafton Road | B62: North | C62: All routes | D62: 53 | E62: 53 | F62: 53 | G62: 53 | H62: 53 | I62: 53 | J62: 53 | K62: 53 | L62: 53 | M62: 53 | N62: 53 | O62: 53 | P62: 53 | Q62: 53 | R62: 53 | S62: 53 | T62: 53 | U62: 53 | V62: 53 | W62: 53 | X62: 53 | Y62: 53 | Z62: 53 | AA62: 53 | AB62: 53 | AC62: 53 | AD62: 53 | AE62: 53 | AF62: 53 | AG62: 53 | AH62: 53
A63: Grafton Road | B63: South | C63: All routes | D63: 53 | E63: 53 | F63: 53 | G63: 53 | H63: 53 | I63: 53 | J63: 53 | K63: 53 | L63: 53 | M63: 53 | N63: 53 | O63: 53 | P63: 53 | Q63: 53 | R63: 53 | S63: 53 | T63: 53 | U63: 53 | V63: 53 | W63: 53 | X63: 53 | Y63: 53 | Z63: 53 | AA63: 53 | AB63: 53 | AC63: 53 | AD63: 53 | AE63: 53 | AF63: 53 | AG63: 53 | AH63: 53

Sheet Terminus
A1: Terminus Name | B1: Stop Group | C1: ='Input Summary'!$H$5 -> 2016 | D1: =IF(IFERROR(C$1+1<='Input Summary'!$H$6,FALSE),C$1+1,"") -> 2017 | E1: =IF(IFERROR(D$1+1<='Input Summary'!$H$6,FALSE),D$1+1,"") -> 2018 | F1: =IF(IFERROR(E$1+1<='Input Summary'!$H$6,FALSE),E$1+1,"") -> 2019 | G1: =IF(IFERROR(F$1+1<='Input Summary'!$H$6,FALSE),F$1+1,"") -> 2020 | H1: =IF(IFERROR(G$1+1<='Input Summary'!$H$6,FALSE),G$1+1,"") -> 2021 | I1: =IF(IFERROR(H$1+1<='Input Summary'!$H$6,FALSE),H$1+1,"") -> 2022 | J1: =IF(IFERROR(I$1+1<='Input Summary'!$H$6,FALSE),I$1+1,"") -> 2023 | K1: =IF(IFERROR(J$1+1<='Input Summary'!$H$6,FALSE),J$1+1,"") -> 2024 | L1: =IF(IFERROR(K$1+1<='Input Summary'!$H$6,FALSE),K$1+1,"") -> 2025 | M1: =IF(IFERROR(L$1+1<='Input Summary'!$H$6,FALSE),L$1+1,"") -> 2026 | N1: =IF(IFERROR(M$1+1<='Input Summary'!$H$6,FALSE),M$1+1,"") -> 2027 | O1: =IF(IFERROR(N$1+1<='Input Summary'!$H$6,FALSE),N$1+1,"") -> 2028 | P1: =IF(IFERROR(O$1+1<='Input Summary'!$H$6,FALSE),O$1+1,"") -> 2029 | Q1: =IF(IFERROR(P$1+1<='Input Summary'!$H$6,FALSE),P$1+1,"") -> 2030 | R1: =IF(IFERROR(Q$1+1<='Input Summary'!$H$6,FALSE),Q$1+1,"") -> 2031 | S1: =IF(IFERROR(R$1+1<='Input Summary'!$H$6,FALSE),R$1+1,"") -> 2032 | T1: =IF(IFERROR(S$1+1<='Input Summary'!$H$6,FALSE),S$1+1,"") -> 2033 | U1: =IF(IFERROR(T$1+1<='Input Summary'!$H$6,FALSE),T$1+1,"") -> 2034 | V1: =IF(IFERROR(U$1+1<='Input Summary'!$H$6,FALSE),U$1+1,"") -> 2035 | W1: =IF(IFERROR(V$1+1<='Input Summary'!$H$6,FALSE),V$1+1,"") -> 2036 | X1: =IF(IFERROR(W$1+1<='Input Summary'!$H$6,FALSE),W$1+1,"") -> 2037 | Y1: =IF(IFERROR(X$1+1<='Input Summary'!$H$6,FALSE),X$1+1,"") -> 2038 | Z1: =IF(IFERROR(Y$1+1<='Input Summary'!$H$6,FALSE),Y$1+1,"") -> 2039 | AA1: =IF(IFERROR(Z$1+1<='Input Summary'!$H$6,FALSE),Z$1+1,"") -> 2040 | AB1: =IF(IFERROR(AA$1+1<='Input Summary'!$H$6,FALSE),AA$1+1,"") -> 2041 | AC1: =IF(IFERROR(AB$1+1<='Input Summary'!$H$6,FALSE),AB$1+1,"") -> 2042 | AD1: =IF(IFERROR(AC$1+1<='Input Summary'!$H$6,FALSE),AC$1+1,"") -> 2043 | AE1: =IF(IFERROR(AD$1+1<='Input Summary'!$H$6,FALSE),AD$1+1,"") -> 2044 | AF1: =IF(IFERROR(AE$1+1<='Input Summary'!$H$6,FALSE),AE$1+1,"") -> 2045 | AG1: =IF(IFERROR(AF$1+1<='Input Summary'!$H$6,FALSE),AF$1+1,"") -> 2046
A2: Wynyard Quarter | B2: Isthmus/Link | C2: 53 | D2: 53 | E2: 53 | F2: 53 | G2: 53 | H2: 53 | I2: 53 | J2: 53 | K2: 53 | L2: 53 | M2: 53 | N2: 53 | O2: 53 | P2: 53 | Q2: 53 | R2: 53 | S2: 53 | T2: 53 | U2: 53 | V2: 53 | W2: 53 | X2: 53 | Y2: 53 | Z2: 53 | AA2: 53 | AB2: 53 | AC2: 53 | AD2: 53 | AE2: 53 | AF2: 53 | AG2: 53
A3: Britomart West | B3: West/Northwest | C3: 74 | D3: 74 | E3: 74 | F3: 74 | G3: 74 | H3: 74 | I3: 74 | J3: 74 | K3: 74 | L3: 74 | M3: 74 | N3: 74 | O3: 74 | P3: 74 | Q3: 74 | R3: 74 | S3: 74 | T3: 74 | U3: 74 | V3: 74 | W3: 74 | X3: 74 | Y3: 74 | Z3: 74 | AA3: 74 | AB3: 74 | AC3: 74 | AD3: 74 | AE3: 74 | AF3: 74 | AG3: 74
A4: Britomart West | B4: North Shore | C4: 77 | D4: 77 | E4: 77 | F4: 77 | G4: 77 | H4: 77 | I4: 77 | J4: 77 | K4: 77 | L4: 77 | M4: 77 | N4: 77 | O4: 77 | P4: 77 | Q4: 77 | R4: 77 | S4: 77 | T4: 77 | U4: 77 | V4: 77 | W4: 77 | X4: 77 | Y4: 77 | Z4: 77 | AA4: 77 | AB4: 77 | AC4: 77 | AD4: 77 | AE4: 77 | AF4: 77 | AG4: 77
A5: Britomart East | B5: Mt Eden/Hospitals | C5: 25 | D5: 25 | E5: 25 | F5: 25 | G5: 25 | H5: 25 | I5: 25 | J5: 25 | K5: 25 | L5: 25 | M5: 25 | N5: 25 | O5: 25 | P5: 25 | Q5: 25 | R5: 25 | S5: 25 | T5: 25 | U5: 25 | V5: 25 | W5: 25 | X5: 25 | Y5: 25 | Z5: 25 | AA5: 25 | AB5: 25 | AC5: 25 | AD5: 25 | AE5: 25 | AF5: 25 | AG5: 25
A6: Britomart East | B6: Tamaki Drive | C6: 25 | D6: 25 | E6: 25 | F6: 25 | G6: 25 | H6: 25 | I6: 25 | J6: 25 | K6: 25 | L6: 25 | M6: 25 | N6: 25 | O6: 25 | P6: 25 | Q6: 25 | R6: 25 | S6: 25 | T6: 25 | U6: 25 | V6: 25 | W6: 25 | X6: 25 | Y6: 25 | Z6: 25 | AA6: 25 | AB6: 25 | AC6: 25 | AD6: 25 | AE6: 25 | AF6: 25 | AG6: 25
A7: Britomart East | B7: AMETI | C7: 25 | D7: 25 | E7: 25 | F7: 25 | G7: 25 | H7: 25 | I7: 25 | J7: 25 | K7: 25 | L7: 25 | M7: 25 | N7: 25 | O7: 25 | P7: 25 | Q7: 25 | R7: 25 | S7: 25 | T7: 25 | U7: 25 | V7: 25 | W7: 25 | X7: 25 | Y7: 25 | Z7: 25 | AA7: 25 | AB7: 25 | AC7: 25 | AD7: 25 | AE7: 25 | AF7: 25 | AG7: 25
A8: University | B8: All routes | C8: 53 | D8: 53 | E8: 53 | F8: 53 | G8: 53 | H8: 53 | I8: 53 | J8: 53 | K8: 53 | L8: 53 | M8: 53 | N8: 53 | O8: 53 | P8: 53 | Q8: 53 | R8: 53 | S8: 53 | T8: 53 | U8: 53 | V8: 53 | W8: 53 | X8: 53 | Y8: 53 | Z8: 53 | AA8: 53 | AB8: 53 | AC8: 53 | AD8: 53 | AE8: 53 | AF8: 53 | AG8: 53
A9: Victoria Park | B9: All routes | C9: 53 | D9: 53 | E9: 53 | F9: 53 | G9: 53 | H9: 53 | I9: 53 | J9: 53 | K9: 53 | L9: 53 | M9: 53 | N9: 53 | O9: 53 | P9: 53 | Q9: 53 | R9: 53 | S9: 53 | T9: 53 | U9: 53 | V9: 53 | W9: 53 | X9: 53 | Y9: 53 | Z9: 53 | AA9: 53 | AB9: 53 | AC9: 53 | AD9: 53 | AE9: 53 | AF9: 53 | AG9: 53

Sheet Routes - Passenger Demand
A1: Route Name | B1: Direction | C1: Route Group | D1: ='Input Summary'!$H$5 -> 2016 | E1: =IF(IFERROR(D$1+1<='Input Summary'!$H$6,FALSE),D$1+1,"") -> 2017 | F1: =IF(IFERROR(E$1+1<='Input Summary'!$H$6,FALSE),E$1+1,"") -> 2018 | G1: =IF(IFERROR(F$1+1<='Input Summary'!$H$6,FALSE),F$1+1,"") -> 2019 | H1: =IF(IFERROR(G$1+1<='Input Summary'!$H$6,FALSE),G$1+1,"") -> 2020 | I1: =IF(IFERROR(H$1+1<='Input Summary'!$H$6,FALSE),H$1+1,"") -> 2021 | J1: =IF(IFERROR(I$1+1<='Input Summary'!$H$6,FALSE),I$1+1,"") -> 2022 | K1: =IF(IFERROR(J$1+1<='Input Summary'!$H$6,FALSE),J$1+1,"") -> 2023 | L1: =IF(IFERROR(K$1+1<='Input Summary'!$H$6,FALSE),K$1+1,"") -> 2024 | M1: =IF(IFERROR(L$1+1<='Input Summary'!$H$6,FALSE),L$1+1,"") -> 2025 | N1: =IF(IFERROR(M$1+1<='Input Summary'!$H$6,FALSE),M$1+1,"") -> 2026 | O1: =IF(IFERROR(N$1+1<='Input Summary'!$H$6,FALSE),N$1+1,"") -> 2027 | P1: =IF(IFERROR(O$1+1<='Input Summary'!$H$6,FALSE),O$1+1,"") -> 2028 | Q1: =IF(IFERROR(P$1+1<='Input Summary'!$H$6,FALSE),P$1+1,"") -> 2029 | R1: =IF(IFERROR(Q$1+1<='Input Summary'!$H$6,FALSE),Q$1+1,"") -> 2030 | S1: =IF(IFERROR(R$1+1<='Input Summary'!$H$6,FALSE),R$1+1,"") -> 2031 | T1: =IF(IFERROR(S$1+1<='Input Summary'!$H$6,FALSE),S$1+1,"") -> 2032 | U1: =IF(IFERROR(T$1+1<='Input Summary'!$H$6,FALSE),T$1+1,"") -> 2033 | V1: =IF(IFERROR(U$1+1<='Input Summary'!$H$6,FALSE),U$1+1,"") -> 2034 | W1: =IF(IFERROR(V$1+1<='Input Summary'!$H$6,FALSE),V$1+1,"") -> 2035 | X1: =IF(IFERROR(W$1+1<='Input Summary'!$H$6,FALSE),W$1+1,"") -> 2036 | Y1: =IF(IFERROR(X$1+1<='Input Summary'!$H$6,FALSE),X$1+1,"") -> 2037 | Z1: =IF(IFERROR(Y$1+1<='Input Summary'!$H$6,FALSE),Y$1+1,"") -> 2038 | AA1: =IF(IFERROR(Z$1+1<='Input Summary'!$H$6,FALSE),Z$1+1,"") -> 2039 | AB1: =IF(IFERROR(AA$1+1<='Input Summary'!$H$6,FALSE),AA$1+1,"") -> 2040 | AC1: =IF(IFERROR(AB$1+1<='Input Summary'!$H$6,FALSE),AB$1+1,"") -> 2041 | AD1: =IF(IFERROR(AC$1+1<='Input Summary'!$H$6,FALSE),AC$1+1,"") -> 2042 | AE1: =IF(IFERROR(AD$1+1<='Input Summary'!$H$6,FALSE),AD$1+1,"") -> 2043 | AF1: =IF(IFERROR(AE$1+1<='Input Summary'!$H$6,FALSE),AE$1+1,"") -> 2044 | AG1: =IF(IFERROR(AF$1+1<='Input Summary'!$H$6,FALSE),AF$1+1,"") -> 2045 | AH1: =IF(IFERROR(AG$1+1<='Input Summary'!$H$6,FALSE),AG$1+1,"") -> 2046
A2: Airbus | B2: Inbound | C2: Airbus | D2: 420 | E2: 420 | F2: 420 | G2: 420 | H2: 420 | I2: 420 | J2: 420 | K2: 420 | L2: 420 | M2: 420 | N2: 420 | O2: 420 | P2: 420 | Q2: 420 | R2: 420 | S2: 420 | T2: 420 | U2: 420 | V2: 420 | W2: 420 | X2: 420 | Y2: 420 | Z2: 420 | AA2: 420 | AB2: 420 | AC2: 420 | AD2: 420 | AE2: 420 | AF2: 420 | AG2: 420 | AH2: 420
A3: Airbus | B3: Outbound | C3: Airbus | D3: 420 | E3: 420 | F3: 420 | G3: 420 | H3: 420 | I3: 420 | J3: 420 | K3: 420 | L3: 420 | M3: 420 | N3: 420 | O3: 420 | P3: 420 | Q3: 420 | R3: 420 | S3: 420 | T3: 420 | U3: 420 | V3: 420 | W3: 420 | X3: 420 | Y3: 420 | Z3: 420 | AA3: 420 | AB3: 420 | AC3: 420 | AD3: 420 | AE3: 420 | AF3: 420 | AG3: 420 | AH3: 420
A4: City Link | B4: Inbound | C4: City Link | D4: 605 | E4: 646.5 | F4: 688 | G4: 729.5 | H4: 729.5 | I4: 729.5 | J4: 771 | K4: 812.5 | L4: 854 | M4: 895.5 | N4: 937 | O4: 978.5 | P4: 1020 | Q4: 1040.4 | R4: 1060.8 | S4: 1081.2 | T4: 1101.6 | U4: 1122 | V4: 1142.4 | W4: 1162.8 | X4: 1183.2 | Y4: 1203.6 | Z4: 1224 | AA4: 1244.4 | AB4: 1264.8 | AC4: 1285.2 | AD4: 1305.6 | AE4: 1326 | AF4: 1346.4 | AG4: 1366.8 | AH4: 1387.2
A5: Inner Link | B5: Inbound | C5: Inner Link | D5: 605 | E5: 646.5 | F5: 688 | G5: 729.5 | H5: 729.5 | I5: 729.5 | J5: 771 | K5: 812.5 | L5: 854 | M5: 895.5 | N5: 937 | O5: 978.5 | P5: 1020 | Q5: 1040.4 | R5: 1060.8 | S5: 1081.2 | T5: 1101.6 | U5: 1122 | V5: 1142.4 | W5: 1162.8 | X5: 1183.2 | Y5: 1203.6 | Z5: 1224 | AA5: 1244.4 | AB5: 1264.8 | AC5: 1285.2 | AD5: 1305.6 | AE5: 1326 | AF5: 1346.4 | AG5: 1366.8 | AH5: 1387.2
A6: Inner Link | B6: Outbound | C6: Inner Link | D6: 605 | E6: 646.5 | F6: 688 | G6: 729.5 | H6: 729.5 | I6: 729.5 | J6: 771 | K6: 812.5 | L6: 854 | M6: 895.5 | N6: 937 | O6: 978.5 | P6: 1020 | Q6: 1040.4 | R6: 1060.8 | S6: 1081.2 | T6: 1101.6 | U6: 1122 | V6: 1142.4 | W6: 1162.8 | X6: 1183.2 | Y6: 1203.6 | Z6: 1224 | AA6: 1244.4 | AB6: 1264.8 | AC6: 1285.2 | AD6: 1305.6 | AE6: 1326 | AF6: 1346.4 | AG6: 1366.8 | AH6: 1387.2
A7: Crosstown 4 peak | B7: Inbound | C7: Manukau Road | D7: 385 | E7: 402.5 | F7: 420 | G7: 437.5 | H7: 437.5 | I7: 437.5 | J7: 455 | K7: 472.5 | L7: 490 | M7: 507.5 | N7: 525 | O7: 542.5 | P7: 560 | Q7: 574 | R7: 588 | S7: 602 | T7: 616 | U7: 630 | V7: 644 | W7: 658 | X7: 672 | Y7: 686 | Z7: 700 | AA7: 714 | AB7: 728 | AC7: 742 | AD7: 756 | AE7: 770 | AF7: 784 | AG7: 798 | AH7: 812
A8: Crosstown 4 | B8: Inbound | C8: Manukau Road / Jervois Road | D8: 605 | E8: 632.5 | F8: 660 | G8: 687.5 | H8: 687.5 | I8: 687.5 | J8: 715 | K8: 742.5 | L8: 770 | M8: 797.5 | N8: 825 | O8: 852.5 | P8: 880 | Q8: 902 | R8: 924 | S8: 946 | T8: 968 | U8: 990 | V8: 1012 | W8: 1034 | X8: 1056 | Y8: 1078 | Z8: 1100 | AA8: 1122 | AB8: 1144 | AC8: 1166 | AD8: 1188 | AE8: 1210 | AF8: 1232 | AG8: 1254 | AH8: 1276
A9: Crosstown 4 | B9: Outbound | C9: Manukau Road / Jervois Road | D9: 605 | E9: 632.5 | F9: 660 | G9: 687.5 | H9: 687.5 | I9: 687.5 | J9: 715 | K9: 742.5 | L9: 770 | M9: 797.5 | N9: 825 | O9: 852.5 | P9: 880 | Q9: 902 | R9: 924 | S9: 946 | T9: 968 | U9: 990 | V9: 1012 | W9: 1034 | X9: 1056 | Y9: 1078 | Z9: 1100 | AA9: 1122 | AB9: 1144 | AC9: 1166 | AD9: 1188 | AE9: 1210 | AF9: 1232 | AG9: 1254 | AH9: 1276
A10: 309 & 309X | B10: Inbound | C10: Manukau Road | D10: 420 | E10: 420 | F10: 420 | G10: 420 | H10: 420 | I10: 420 | J10: 420 | K10: 420 | L10: 420 | M10: 420 | N10: 420 | O10: 420 | P10: 420 | Q10: 420 | R10: 420 | S10: 420 | T10: 420 | U10: 420 | V10: 420 | W10: 420 | X10: 420 | Y10: 420 | Z10: 420 | AA10: 420 | AB10: 420 | AC10: 420 | AD10: 420 | AE10: 420 | AF10: 420 | AG10: 420 | AH10: 420
A11: 309 & 309X | B11: Outbound | C11: Manukau Road | D11: 122.5 | E11: 131.25 | F11: 140 | G11: 148.75 | H11: 148.75 | I11: 148.75 | J11: 157.5 | K11: 166.25 | L11: 175 | M11: 183.75 | N11: 192.5 | O11: 201.25 | P11: 210 | Q11: 217 | R11: 224 | S11: 231 | T11: 238 | U11: 245 | V11: 252 | W11: 259 | X11: 266 | Y11: 273 | Z11: 280 | AA11: 287 | AB11: 294 | AC11: 301 | AD11: 308 | AE11: 315 | AF11: 322 | AG11: 329 | AH11: 336
A12: 101 | B12: Inbound | C12: Jervois Road | D12: 157.5 | E12: 183.75 | F12: 210 | G12: 236.25 | H12: 236.25 | I12: 236.25 | J12: 262.5 | K12: 288.75 | L12: 315 | M12: 341.25 | N12: 367.5 | O12: 393.75 | P12: 420 | Q12: 434 | R12: 448 | S12: 462 | T12: 476 | U12: 490 | V12: 504 | W12: 518 | X12: 532 | Y12: 546 | Z12: 560 | AA12: 574 | AB12: 588 | AC12: 602 | AD12: 616 | AE12: 630 | AF12: 644 | AG12: 658 | AH12: 672
A13: 105 | B13: Inbound | C13: Richmond Road | D13: 420 | E13: 420 | F13: 420 | G13: 420 | H13: 420 | I13: 420 | J13: 420 | K13: 420 | L13: 420 | M13: 420 | N13: 420 | O13: 420 | P13: 420 | Q13: 434 | R13: 448 | S13: 462 | T13: 476 | U13: 490 | V13: 504 | W13: 518 | X13: 532 | Y13: 546 | Z13: 560 | AA13: 574 | AB13: 588 | AC13: 602 | AD13: 616 | AE13: 630 | AF13: 644 | AG13: 658 | AH13: 672
A14: 105 | B14: Outbound | C14: Richmond Road | D14: 192.5 | E14: 201.25 | F14: 210 | G14: 218.75 | H14: 218.75 | I14: 218.75 | J14: 227.5 | K14: 236.25 | L14: 245 | M14: 253.75 | N14: 262.5 | O14: 271.25 | P14: 280 | Q14: 294 | R14: 308 | S14: 322 | T14: 336 | U14: 350 | V14: 364 | W14: 378 | X14: 392 | Y14: 406 | Z14: 420 | AA14: 434 | AB14: 448 | AC14: 462 | AD14: 476 | AE14: 490 | AF14: 504 | AG14: 518 | AH14: 532
A15: 106 | B15: Inbound | C15: Freemans Bay | D15: 82.5 | E15: 96.25 | F15: 110 | G15: 123.75 | H15: 123.75 | I15: 123.75 | J15: 137.5 | K15: 151.25 | L15: 165 | M15: 178.75 | N15: 192.5 | O15: 206.25 | P15: 220 | Q15: 220 | R15: 220 | S15: 220 | T15: 220 | U15: 220 | V15: 220 | W15: 220 | X15: 220 | Y15: 220 | Z15: 220 | AA15: 220 | AB15: 220 | AC15: 220 | AD15: 220 | AE15: 220 | AF15: 220 | AG15: 220 | AH15: 220
A16: 106 | B16: Outbound | C16: Freemans Bay | D16: 96.25 | E16: 103.125 | F16: 110 | G16: 116.875 | H16: 116.875 | I16: 116.875 | J16: 123.75 | K16: 130.625 | L16: 137.5 | M16: 144.375 | N16: 151.25 | O16: 158.125 | P16: 165 | Q16: 170.5 | R16: 176 | S16: 181.5 | T16: 187 | U16: 192.5 | V16: 198 | W16: 203.5 | X16: 209 | Y16: 214.5 | Z16: 220 | AA16: 220 | AB16: 220 | AC16: 220 | AD16: 220 | AE16: 220 | AF16: 220 | AG16: 220 | AH16: 220
A17: Crosstown 5 | B17: Inbound | C17: Mount Eden Crosstown | D17: 245 | E17: 262.5 | F17: 280 | G17: 297.5 | H17: 297.5 | I17: 297.5 | J17: 315 | K17: 332.5 | L17: 350 | M17: 367.5 | N17: 385 | O17: 402.5 | P17: 420 | Q17: 420 | R17: 420 | S17: 420 | T17: 420 | U17: 420 | V17: 420 | W17: 420 | X17: 420 | Y17: 420 | Z17: 420 | AA17: 420 | AB17: 420 | AC17: 420 | AD17: 420 | AE17: 420 | AF17: 420 | AG17: 420 | AH17: 420
A18: Crosstown 5 | B18: Outbound | C18: Mount Eden Crosstown | D18: 192.5 | E18: 201.25 | F18: 210 | G18: 218.75 | H18: 218.75 | I18: 218.75 | J18: 227.5 | K18: 236.25 | L18: 245 | M18: 253.75 | N18: 262.5 | O18: 271.25 | P18: 280 | Q18: 294 | R18: 308 | S18: 322 | T18: 336 | U18: 350 | V18: 364 | W18: 378 | X18: 392 | Y18: 406 | Z18: 420 | AA18: 420 | AB18: 420 | AC18: 420 | AD18: 420 | AE18: 420 | AF18: 420 | AG18: 420 | AH18: 420
A19: 18 | B19: Inbound | C19: Great North Road | D19: 1020 | E19: 1050 | F19: 1080 | G19: 1110 | H19: 1110 | I19: 1110 | J19: 1140 | K19: 1170 | L19: 1200 | M19: 1230 | N19: 1260 | O19: 1290 | P19: 1320 | Q19: 1320 | R19: 1320 | S19: 1320 | T19: 1320 | U19: 1320 | V19: 1320 | W19: 1320 | X19: 1320 | Y19: 1320 | Z19: 1320 | AA19: 1320 | AB19: 1320 | AC19: 1320 | AD19: 1320 | AE19: 1320 | AF19: 1320 | AG19: 1320 | AH19: 1320
A20: 18 | B20: Outbound | C20: Great North Road | D20: 660 | E20: 660 | F20: 660 | G20: 660 | H20: 660 | I20: 660 | J20: 660 | K20: 660 | L20: 660 | M20: 660 | N20: 660 | O20: 660 | P20: 660 | Q20: 682 | R20: 704 | S20: 726 | T20: 748 | U20: 770 | V20: 792 | W20: 814 | X20: 836 | Y20: 858 | Z20: 880 | AA20: 902 | AB20: 924 | AC20: 946 | AD20: 968 | AE20: 990 | AF20: 1012 | AG20: 1034 | AH20: 1056
A21: 22a & b | B21: Inbound | C21: New North Road | D21: 1020 | E21: 1050 | F21: 1080 | G21: 1110 | H21: 1110 | I21: 1110 | J21: 1140 | K21: 1170 | L21: 1200 | M21: 1230 | N21: 1260 | O21: 1290 | P21: 1320 | Q21: 1320 | R21: 1320 | S21: 1320 | T21: 1320 | U21: 1320 | V21: 1320 | W21: 1320 | X21: 1320 | Y21: 1320 | Z21: 1320 | AA21: 1320 | AB21: 1320 | AC21: 1320 | AD21: 1320 | AE21: 1320 | AF21: 1320 | AG21: 1320 | AH21: 1320
A22: 22a & b | B22: Outbound | C22: New North Road | D22: 660 | E22: 660 | F22: 660 | G22: 660 | H22: 660 | I22: 660 | J22: 660 | K22: 660 | L22: 660 | M22: 660 | N22: 660 | O22: 660 | P22: 660 | Q22: 660 | R22: 660 | S22: 660 | T22: 660 | U22: 660 | V22: 660 | W22: 660 | X22: 660 | Y22: 660 | Z22: 660 | AA22: 660 | AB22: 660 | AC22: 660 | AD22: 660 | AE22: 660 | AF22: 660 | AG22: 660 | AH22: 660
A23: 24a & b | B23: Inbound | C23: Sandringham Road | D23: 1380 | E23: 1440 | F23: 1500 | G23: 1560 | H23: 1560 | I23: 1560 | J23: 1620 | K23: 1680 | L23: 1740 | M23: 1800 | N23: 1860 | O23: 1920 | P23: 1980 | Q23: 2002 | R23: 2024 | S23: 2046 | T23: 2068 | U23: 2090 | V23: 1056 | W23: 1067 | X23: 1078 | Y23: 1089 | Z23: 1100 | AA23: 1111 | AB23: 1122 | AC23: 1133 | AD23: 1144 | AE23: 1155 | AF23: 1166 | AG23: 1177 | AH23: 1188
A24: 24a & b | B24: Outbound | C24: Sandringham Road | D24: 605 | E24: 632.5 | F24: 660 | G24: 687.5 | H24: 687.5 | I24: 687.5 | J24: 715 | K24: 1320 | L24: 1320 | M24: 1320 | N24: 1320 | O24: 1320 | P24: 1320 | Q24: 1320 | R24: 1320 | S24: 1320 | T24: 1320 | U24: 1320 | V24: 660 | W24: 660 | X24: 660 | Y24: 660 | Z24: 660 | AA24: 660 | AB24: 660 | AC24: 660 | AD24: 660 | AE24: 660 | AF24: 660 | AG24: 660 | AH24: 660
A25: 25 & 26 | B25: Inbound | C25: Dominion Road | D25: 2040 | E25: 2100 | F25: 2160 | G25: 2220 | H25: 2220 | I25: 2220 | J25: 2280 | K25: 2340 | L25: 2400 | M25: 2460 | N25: 2520 | O25: 2580 | P25: 2640 | Q25: 2684 | R25: 2728 | S25: 2772 | T25: 2816 | U25: 2860 | V25: 2904 | W25: 2948 | X25: 2992 | Y25: 3036 | Z25: 3080 | AA25: 3124 | AB25: 3168 | AC25: 3212 | AD25: 3256 | AE25: 3300 | AF25: 3344 | AG25: 3388 | AH25: 3432
A26: 25 & 26 | B26: Outbound | C26: Dominion Road | D26: 1320 | E26: 1320 | F26: 1320 | G26: 1320 | H26: 1320 | I26: 1320 | J26: 1320 | K26: 1320 | L26: 1320 | M26: 1320 | N26: 1320 | O26: 1320 | P26: 1320 | Q26: 1320 | R26: 1320 | S26: 1320 | T26: 1320 | U26: 1320 | V26: 1320 | W26: 1320 | X26: 1320 | Y26: 1320 | Z26: 1320 | AA26: 1320 | AB26: 1320 | AC26: 1320 | AD26: 1320 | AE26: 1320 | AF26: 1320 | AG26: 1320 | AH26: 1320
A27: 27 | B27: Inbound | C27: Mount Eden Road | D27: 1430 | E27: 1535 | F27: 1640 | G27: 1745 | H27: 1745 | I27: 1745 | J27: 1850 | K27: 1955 | L27: 2060 | M27: 2165 | N27: 2270 | O27: 2375 | P27: 2480 | Q27: 2496 | R27: 2512 | S27: 2528 | T27: 2544 | U27: 2560 | V27: 2576 | W27: 2592 | X27: 2608 | Y27: 2624 | Z27: 2640 | AA27: 2656 | AB27: 2672 | AC27: 2688 | AD27: 2704 | AE27: 2720 | AF27: 2736 | AG27: 2752 | AH27: 2768
A28: 27 | B28: Outbound | C28: Mount Eden Road | D28: 605 | E28: 632.5 | F28: 660 | G28: 687.5 | H28: 687.5 | I28: 687.5 | J28: 715 | K28: 742.5 | L28: 770 | M28: 797.5 | N28: 825 | O28: 852.5 | P28: 880 | Q28: 880 | R28: 880 | S28: 880 | T28: 880 | U28: 880 | V28: 880 | W28: 880 | X28: 880 | Y28: 880 | Z28: 880 | AA28: 880 | AB28: 880 | AC28: 880 | AD28: 880 | AE28: 880 | AF28: 880 | AG28: 880 | AH28: 880
A29: 321 | B29: Inbound | C29: Otahuhu to City via Hospitals | D29: 280 | E29: 280 | F29: 280 | G29: 280 | H29: 280 | I29: 280 | J29: 280 | K29: 280 | L29: 280 | M29: 280 | N29: 280 | O29: 280 | P29: 280 | Q29: 280 | R29: 280 | S29: 280 | T29: 280 | U29: 280 | V29: 280 | W29: 280 | X29: 280 | Y29: 280 | Z29: 280 | AA29: 280 | AB29: 280 | AC29: 280 | AD29: 280 | AE29: 280 | AF29: 280 | AG29: 280 | AH29: 280
A30: 321 | B30: Outbound | C30: Otahuhu to City via Hospitals | D30: 122.5 | E30: 131.25 | F30: 140 | G30: 148.75 | H30: 148.75 | I30: 148.75 | J30: 157.5 | K30: 166.25 | L30: 175 | M30: 183.75 | N30: 192.5 | O30: 201.25 | P30: 210 | Q30: 217 | R30: 224 | S30: 231 | T30: 238 | U30: 245 | V30: 252 | W30: 259 | X30: 266 | Y30: 273 | Z30: 280 | AA30: 280 | AB30: 280 | AC30: 280 | AD30: 280 | AE30: 280 | AF30: 280 | AG30: 280 | AH30: 280
A31: 295 | B31: Inbound | C31: Gillies Ave | D31: 280 | E31: 280 | F31: 280 | G31: 280 | H31: 280 | I31: 280 | J31: 280 | K31: 280 | L31: 280 | M31: 280 | N31: 280 | O31: 280 | P31: 280 | Q31: 294 | R31: 308 | S31: 322 | T31: 336 | U31: 350 | V31: 364 | W31: 378 | X31: 392 | Y31: 406 | Z31: 420 | AA31: 434 | AB31: 448 | AC31: 462 | AD31: 476 | AE31: 490 | AF31: 504 | AG31: 518 | AH31: 532
A32: 295 | B32: Outbound | C32: Gillies Ave | D32: 122.5 | E32: 131.25 | F32: 140 | G32: 148.75 | H32: 148.75 | I32: 148.75 | J32: 157.5 | K32: 166.25 | L32: 175 | M32: 183.75 | N32: 192.5 | O32: 201.25 | P32: 210 | Q32: 217 | R32: 224 | S32: 231 | T32: 238 | U32: 245 | V32: 252 | W32: 259 | X32: 266 | Y32: 273 | Z32: 280 | AA32: 287 | AB32: 294 | AC32: 301 | AD32: 308 | AE32: 315 | AF32: 322 | AG32: 329 | AH32: 336
A33: 70 | B33: Inbound | C33: Remuera Road | D33: 525 | E33: 542.5 | F33: 560 | G33: 577.5 | H33: 577.5 | I33: 577.5 | J33: 595 | K33: 612.5 | L33: 630 | M33: 647.5 | N33: 665 | O33: 682.5 | P33: 700 | Q33: 714 | R33: 728 | S33: 742 | T33: 756 | U33: 770 | V33: 784 | W33: 798 | X33: 812 | Y33: 826 | Z33: 840 | AA33: 854 | AB33: 868 | AC33: 882 | AD33: 896 | AE33: 910 | AF33: 924 | AG33: 938 | AH33: 952
A34: 70 | B34: Outbound | C34: Remuera Road | D34: 245 | E34: 262.5 | F34: 280 | G34: 297.5 | H34: 297.5 | I34: 297.5 | J34: 315 | K34: 332.5 | L34: 350 | M34: 367.5 | N34: 385 | O34: 402.5 | P34: 420 | Q34: 420 | R34: 420 | S34: 420 | T34: 420 | U34: 420 | V34: 420 | W34: 420 | X34: 420 | Y34: 420 | Z34: 420 | AA34: 420 | AB34: 420 | AC34: 420 | AD34: 420 | AE34: 420 | AF34: 420 | AG34: 420 | AH34: 420
A35: 701 | B35: Inbound | C35: Remuera Road | D35: 262.5 | E35: 271.25 | F35: 280 | G35: 288.75 | H35: 288.75 | I35: 288.75 | J35: 297.5 | K35: 306.25 | L35: 315 | M35: 323.75 | N35: 332.5 | O35: 341.25 | P35: 350 | Q35: 357 | R35: 364 | S35: 371 | T35: 378 | U35: 385 | V35: 392 | W35: 399 | X35: 406 | Y35: 413 | Z35: 420 | AA35: 427 | AB35: 434 | AC35: 441 | AD35: 448 | AE35: 455 | AF35: 462 | AG35: 469 | AH35: 476
A36: 703 | B36: Inbound | C36: Portland Road | D36: 140 | E36: 140 | F36: 140 | G36: 140 | H36: 140 | I36: 140 | J36: 140 | K36: 140 | L36: 140 | M36: 140 | N36: 140 | O36: 140 | P36: 140 | Q36: 140 | R36: 140 | S36: 140 | T36: 140 | U36: 140 | V36: 140 | W36: 140 | X36: 140 | Y36: 140 | Z36: 140 | AA36: 140 | AB36: 140 | AC36: 140 | AD36: 140 | AE36: 140 | AF36: 140 | AG36: 140 | AH36: 140
A37: 703 | B37: Outbound | C37: Portland Road | D37: 70 | E37: 70 | F37: 70 | G37: 70 | H37: 70 | I37: 70 | J37: 70 | K37: 70 | L37: 70 | M37: 70 | N37: 70 | O37: 70 | P37: 70 | Q37: 70 | R37: 70 | S37: 70 | T37: 70 | U37: 70 | V37: 70 | W37: 70 | X37: 70 | Y37: 70 | Z37: 70 | AA37: 70 | AB37: 70 | AC37: 70 | AD37: 70 | AE37: 70 | AF37: 70 | AG37: 70 | AH37: 70
A38: 761 | B38: Inbound | C38: Kepa Road | D38: 192.5 | E38: 201.25 | F38: 210 | G38: 218.75 | H38: 218.75 | I38: 218.75 | J38: 227.5 | K38: 236.25 | L38: 245 | M38: 253.75 | N38: 262.5 | O38: 271.25 | P38: 280 | Q38: 294 | R38: 308 | S38: 322 | T38: 336 | U38: 350 | V38: 364 | W38: 378 | X38: 392 | Y38: 406 | Z38: 420 | AA38: 434 | AB38: 448 | AC38: 462 | AD38: 476 | AE38: 490 | AF38: 504 | AG38: 518 | AH38: 532
A39: 77 | B39: Inbound | C39: Tamaki Drive | D39: 385 | E39: 402.5 | F39: 420 | G39: 437.5 | H39: 437.5 | I39: 437.5 | J39: 455 | K39: 472.5 | L39: 490 | M39: 507.5 | N39: 525 | O39: 542.5 | P39: 560 | Q39: 574 | R39: 588 | S39: 602 | T39: 616 | U39: 630 | V39: 644 | W39: 658 | X39: 672 | Y39: 686 | Z39: 700 | AA39: 714 | AB39: 728 | AC39: 742 | AD39: 756 | AE39: 770 | AF39: 784 | AG39: 798 | AH39: 812
A40: 77 | B40: Outbound | C40: Tamaki Drive | D40: 245 | E40: 262.5 | F40: 280 | G40: 297.5 | H40: 297.5 | I40: 297.5 | J40: 315 | K40: 332.5 | L40: 350 | M40: 367.5 | N40: 385 | O40: 402.5 | P40: 420 | Q40: 434 | R40: 448 | S40: 462 | T40: 476 | U40: 490 | V40: 504 | W40: 518 | X40: 532 | Y40: 546 | Z40: 560 | AA40: 574 | AB40: 588 | AC40: 602 | AD40: 616 | AE40: 630 | AF40: 644 | AG40: 658 | AH40: 672
A41: 774 & 775 | B41: Inbound | C41: Tamaki Drive | D41: 560 | E41: 560 | F41: 560 | G41: 560 | H41: 560 | I41: 560 | J41: 560 | K41: 560 | L41: 560 | M41: 560 | N41: 560 | O41: 560 | P41: 560 | Q41: 574 | R41: 588 | S41: 602 | T41: 616 | U41: 630 | V41: 644 | W41: 658 | X41: 672 | Y41: 686 | Z41: 700 | AA41: 714 | AB41: 728 | AC41: 742 | AD41: 756 | AE41: 770 | AF41: 784 | AG41: 798 | AH41: 812
A42: 55 | B42: Inbound | C42: Howick | D42: 1650 | E42: 1650 | F42: 1650 | G42: 1650 | H42: 1650 | I42: 1650 | J42: 1650 | K42: 1650 | L42: 1650 | M42: 1650 | N42: 1650 | O42: 1650 | P42: 1650 | Q42: 1650 | R42: 1650 | S42: 1650 | T42: 1650 | U42: 1650 | V42: 1650 | W42: 1650 | X42: 1650 | Y42: 1650 | Z42: 1650 | AA42: 1650 | AB42: 1650 | AC42: 1650 | AD42: 1650 | AE42: 1650 | AF42: 1650 | AG42: 1650 | AH42: 1650
A43: 55 | B43: Outbound | C43: Howick | D43: 880 | E43: 880 | F43: 880 | G43: 880 | H43: 880 | I43: 880 | J43: 880 | K43: 880 | L43: 880 | M43: 880 | N43: 880 | O43: 880 | P43: 880 | Q43: 880 | R43: 880 | S43: 880 | T43: 880 | U43: 880 | V43: 880 | W43: 880 | X43: 880 | Y43: 880 | Z43: 880 | AA43: 880 | AB43: 880 | AC43: 880 | AD43: 880 | AE43: 880 | AF43: 880 | AG43: 880 | AH43: 880
A44: 55 peak | B44: Inbound | C44: Howick | D44: 420 | E44: 420 | F44: 420 | G44: 420 | H44: 420 | I44: 420 | J44: 420 | K44: 420 | L44: 420 | M44: 420 | N44: 420 | O44: 420 | P44: 420 | Q44: 420 | R44: 420 | S44: 420 | T44: 420 | U44: 420 | V44: 420 | W44: 420 | X44: 420 | Y44: 420 | Z44: 420 | AA44: 420 | AB44: 420 | AC44: 420 | AD44: 420 | AE44: 420 | AF44: 420 | AG44: 420 | AH44: 420
A45: 360X | B45: Inbound | C45: Papakura | D45: 165 | E45: 165 | F45: 165 | G45: 165 | H45: 165 | I45: 165 | J45: 165 | K45: 165 | L45: 165 | M45: 165 | N45: 165 | O45: 165 | P45: 165 | Q45: 165 | R45: 165 | S45: 165 | T45: 165 | U45: 165 | V45: 165 | W45: 165 | X45: 165 | Y45: 165 | Z45: 165 | AA45: 165 | AB45: 165 | AC45: 165 | AD45: 165 | AE45: 165 | AF45: 165 | AG45: 165 | AH45: 165
A46: NX1 | B46: Inbound | C46: NEX | D46: 2200 | E46: 2310 | F46: 2420 | G46: 2530 | H46: 2530 | I46: 2530 | J46: 2640 | K46: 2750 | L46: 2860 | M46: 2970 | N46: 3080 | O46: 3190 | P46: 3300 | Q46: 3300 | R46: 3300 | S46: 3300 | T46: 3300 | U46: 3300 | V46: 3300 | W46: 3300 | X46: 3300 | Y46: 3300 | Z46: 3300 | AA46: 3300 | AB46: 3300 | AC46: 3300 | AD46: 3300 | AE46: 3300 | AF46: 3300 | AG46: 3300 | AH46: 3300
A47: NX1 | B47: Outbound | C47: NEX | D47: 825 | E47: 852.5 | F47: 880 | G47: 907.5 | H47: 907.5 | I47: 907.5 | J47: 935 | K47: 962.5 | L47: 990 | M47: 1017.5 | N47: 1045 | O47: 1072.5 | P47: 1100 | Q47: 1100 | R47: 1100 | S47: 1100 | T47: 1100 | U47: 1100 | V47: 1100 | W47: 1100 | X47: 1100 | Y47: 1100 | Z47: 1100 | AA47: 1100 | AB47: 1100 | AC47: 1100 | AD47: 1100 | AE47: 1100 | AF47: 1100 | AG47: 1100 | AH47: 1100
A48: NX2 | B48: Inbound | C48: NEX | D48: 2200 | E48: 2310 | F48: 2420 | G48: 2530 | H48: 2530 | I48: 2530 | J48: 2640 | K48: 2750 | L48: 2860 | M48: 2970 | N48: 3080 | O48: 3190 | P48: 3300 | Q48: 3300 | R48: 3300 | S48: 3300 | T48: 3300 | U48: 3300 | V48: 3300 | W48: 3300 | X48: 3300 | Y48: 3300 | Z48: 3300 | AA48: 3300 | AB48: 3300 | AC48: 3300 | AD48: 3300 | AE48: 3300 | AF48: 3300 | AG48: 3300 | AH48: 3300
A49: NX2 | B49: Outbound | C49: NEX | D49: 825 | E49: 852.5 | F49: 880 | G49: 907.5 | H49: 907.5 | I49: 907.5 | J49: 935 | K49: 962.5 | L49: 990 | M49: 1017.5 | N49: 1045 | O49: 1072.5 | P49: 1100 | Q49: 1100 | R49: 1100 | S49: 1100 | T49: 1100 | U49: 1100 | V49: 1100 | W49: 1100 | X49: 1100 | Y49: 1100 | Z49: 1100 | AA49: 1100 | AB49: 1100 | AC49: 1100 | AD49: 1100 | AE49: 1100 | AF49: 1100 | AG49: 1100 | AH49: 1100
A50: Hibiscus Coast | B50: Inbound | C50: Hibiscus Coast Express | D50: 525 | E50: 542.5 | F50: 560 | G50: 577.5 | H50: 577.5 | I50: 577.5 | J50: 595 | K50: 612.5 | L50: 630 | M50: 647.5 | N50: 665 | O50: 682.5 | P50: 700 | Q50: 714 | R50: 728 | S50: 742 | T50: 756 | U50: 770 | V50: 784 | W50: 798 | X50: 812 | Y50: 826 | Z50: 840 | AA50: 854 | AB50: 868 | AC50: 882 | AD50: 896 | AE50: 910 | AF50: 924 | AG50: 938 | AH50: 952
A51: NX3 | B51: Inbound | C51: NEX | D51: 305 | E51: 362.5 | F51: 420 | G51: 477.5 | H51: 477.5 | I51: 477.5 | J51: 535 | K51: 592.5 | L51: 650 | M51: 707.5 | N51: 765 | O51: 822.5 | P51: 880 | Q51: 902 | R51: 924 | S51: 946 | T51: 968 | U51: 990 | V51: 1012 | W51: 1034 | X51: 1056 | Y51: 1078 | Z51: 1100 | AA51: 1122 | AB51: 1144 | AC51: 1166 | AD51: 1188 | AE51: 1210 | AF51: 1232 | AG51: 1254 | AH51: 1276
A52: NX3 | B52: Outbound | C52: NEX | D52: 185 | E52: 232.5 | F52: 280 | G52: 327.5 | H52: 327.5 | I52: 327.5 | J52: 375 | K52: 422.5 | L52: 470 | M52: 517.5 | N52: 565 | O52: 612.5 | P52: 660 | Q52: 682 | R52: 704 | S52: 726 | T52: 748 | U52: 770 | V52: 792 | W52: 814 | X52: 836 | Y52: 858 | Z52: 880 | AA52: 902 | AB52: 924 | AC52: 946 | AD52: 968 | AE52: 990 | AF52: 1012 | AG52: 1034 | AH52: 1056
A53: n4 & n4a | B53: Inbound | C53: Takapuna / Hillcrest | D53: 525 | E53: 542.5 | F53: 560 | G53: 577.5 | H53: 577.5 | I53: 577.5 | J53: 595 | K53: 612.5 | L53: 630 | M53: 647.5 | N53: 665 | O53: 682.5 | P53: 700 | Q53: 700 | R53: 700 | S53: 700 | T53: 700 | U53: 700 | V53: 700 | W53: 700 | X53: 700 | Y53: 700 | Z53: 700 | AA53: 700 | AB53: 700 | AC53: 700 | AD53: 700 | AE53: 700 | AF53: 700 | AG53: 700 | AH53: 700
A54: n4 & n4a | B54: Outbound | C54: Takapuna / Hillcrest | D54: 385 | E54: 402.5 | F54: 420 | G54: 437.5 | H54: 437.5 | I54: 437.5 | J54: 455 | K54: 472.5 | L54: 490 | M54: 507.5 | N54: 525 | O54: 542.5 | P54: 560 | Q54: 560 | R54: 560 | S54: 560 | T54: 560 | U54: 560 | V54: 560 | W54: 560 | X54: 560 | Y54: 560 | Z54: 560 | AA54: 560 | AB54: 560 | AC54: 560 | AD54: 560 | AE54: 560 | AF54: 560 | AG54: 560 | AH54: 560
A55: n23a & b | B55: Inbound | C55: Takapuna / Hillcrest | D55: 385 | E55: 402.5 | F55: 420 | G55: 437.5 | H55: 437.5 | I55: 437.5 | J55: 455 | K55: 472.5 | L55: 490 | M55: 507.5 | N55: 525 | O55: 542.5 | P55: 560 | Q55: 560 | R55: 560 | S55: 560 | T55: 560 | U55: 560 | V55: 560 | W55: 560 | X55: 560 | Y55: 560 | Z55: 560 | AA55: 560 | AB55: 560 | AC55: 560 | AD55: 560 | AE55: 560 | AF55: 560 | AG55: 560 | AH55: 560
A56: n23a & b | B56: Outbound | C56: Takapuna / Hillcrest | D56: 192.5 | E56: 201.25 | F56: 210 | G56: 218.75 | H56: 218.75 | I56: 218.75 | J56: 227.5 | K56: 236.25 | L56: 245 | M56: 253.75 | N56: 262.5 | O56: 271.25 | P56: 280 | Q56: 280 | R56: 280 | S56: 280 | T56: 280 | U56: 280 | V56: 280 | W56: 280 | X56: 280 | Y56: 280 | Z56: 280 | AA56: 280 | AB56: 280 | AC56: 280 | AD56: 280 | AE56: 280 | AF56: 280 | AG56: 280 | AH56: 280
A57: n11 | B57: Inbound | C57: North Shore peak | D57: 110 | E57: 110 | F57: 110 | G57: 110 | H57: 110 | I57: 110 | J57: 110 | K57: 110 | L57: 110 | M57: 110 | N57: 0 | O57: 0 | P57: 0 | Q57: 0 | R57: 0 | S57: 0 | T57: 0 | U57: 0 | V57: 0 | W57: 0 | X57: 0 | Y57: 0 | Z57: 0 | AA57: 0 | AB57: 0 | AC57: 0 | AD57: 0 | AE57: 0 | AF57: 0 | AG57: 0 | AH57: 0
A58: n8a & b | B58: Inbound | C58: Onewa Road | D58: 762.5 | E58: 796.25 | F58: 830 | G58: 863.75 | H58: 863.75 | I58: 863.75 | J58: 897.5 | K58: 931.25 | L58: 965 | M58: 998.75 | N58: 1032.5 | O58: 1066.25 | P58: 1100 | Q58: 1122 | R58: 1144 | S58: 1166 | T58: 1188 | U58: 1210 | V58: 1232 | W58: 1254 | X58: 1276 | Y58: 1298 | Z58: 1320 | AA58: 1342 | AB58: 1364 | AC58: 1386 | AD58: 1408 | AE58: 1430 | AF58: 1452 | AG58: 1474 | AH58: 1496
A59: n8a & b | B59: Outbound | C59: Onewa Road | D59: 522.5 | E59: 536.25 | F59: 550 | G59: 563.75 | H59: 563.75 | I59: 563.75 | J59: 577.5 | K59: 591.25 | L59: 605 | M59: 618.75 | N59: 632.5 | O59: 646.25 | P59: 660 | Q59: 660 | R59: 660 | S59: 660 | T59: 660 | U59: 660 | V59: 660 | W59: 660 | X59: 660 | Y59: 660 | Z59: 660 | AA59: 660 | AB59: 660 | AC59: 660 | AD59: 660 | AE59: 660 | AF59: 660 | AG59: 660 | AH59: 660
A60: n81 | B60: Inbound | C60: North Shore peak | D60: 332.5 | E60: 341.25 | F60: 350 | G60: 358.75 | H60: 358.75 | I60: 358.75 | J60: 367.5 | K60: 376.25 | L60: 385 | M60: 393.75 | N60: 402.5 | O60: 411.25 | P60: 420 | Q60: 434 | R60: 448 | S60: 462 | T60: 476 | U60: 490 | V60: 504 | W60: 518 | X60: 532 | Y60: 546 | Z60: 560 | AA60: 574 | AB60: 588 | AC60: 602 | AD60: 616 | AE60: 630 | AF60: 644 | AG60: 658 | AH60: 672
A61: n9a & b | B61: Inbound | C61: Onewa Road | D61: 675 | E61: 717.5 | F61: 760 | G61: 802.5 | H61: 802.5 | I61: 802.5 | J61: 845 | K61: 887.5 | L61: 930 | M61: 972.5 | N61: 1015 | O61: 1057.5 | P61: 1100 | Q61: 1122 | R61: 1144 | S61: 1166 | T61: 1188 | U61: 1210 | V61: 1232 | W61: 1254 | X61: 1276 | Y61: 1298 | Z61: 1320 | AA61: 1342 | AB61: 1364 | AC61: 1386 | AD61: 1408 | AE61: 1430 | AF61: 1452 | AG61: 1474 | AH61: 1496
A62: n9a & b | B62: Outbound | C62: Onewa Road | D62: 522.5 | E62: 536.25 | F62: 550 | G62: 563.75 | H62: 563.75 | I62: 563.75 | J62: 577.5 | K62: 591.25 | L62: 605 | M62: 618.75 | N62: 632.5 | O62: 646.25 | P62: 660 | Q62: 660 | R62: 660 | S62: 660 | T62: 660 | U62: 660 | V62: 660 | W62: 660 | X62: 660 | Y62: 660 | Z62: 660 | AA62: 660 | AB62: 660 | AC62: 660 | AD62: 660 | AE62: 660 | AF62: 660 | AG62: 660 | AH62: 660
A63: n91 | B63: Inbound | C63: North Shore peak | D63: 332.5 | E63: 341.25 | F63: 350 | G63: 358.75 | H63: 358.75 | I63: 358.75 | J63: 367.5 | K63: 376.25 | L63: 385 | M63: 393.75 | N63: 402.5 | O63: 411.25 | P63: 420 | Q63: 434 | R63: 448 | S63: 462 | T63: 476 | U63: 490 | V63: 504 | W63: 518 | X63: 532 | Y63: 546 | Z63: 560 | AA63: 574 | AB63: 588 | AC63: 602 | AD63: 616 | AE63: 630 | AF63: 644 | AG63: 658 | AH63: 672
A64: n92 | B64: Inbound | C64: North Shore peak | D64: 332.5 | E64: 341.25 | F64: 350 | G64: 358.75 | H64: 358.75 | I64: 358.75 | J64: 367.5 | K64: 376.25 | L64: 385 | M64: 393.75 | N64: 402.5 | O64: 411.25 | P64: 420 | Q64: 434 | R64: 448 | S64: 462 | T64: 476 | U64: 490 | V64: 504 | W64: 518 | X64: 532 | Y64: 546 | Z64: 560 | AA64: 574 | AB64: 588 | AC64: 602 | AD64: 616 | AE64: 630 | AF64: 644 | AG64: 658 | AH64: 672
A65: n93 | B65: Inbound | C65: Onewa Road | D65: 245 | E65: 262.5 | F65: 280 | G65: 297.5 | H65: 297.5 | I65: 297.5 | J65: 315 | K65: 332.5 | L65: 350 | M65: 367.5 | N65: 385 | O65: 402.5 | P65: 420 | Q65: 434 | R65: 448 | S65: 462 | T65: 476 | U65: 490 | V65: 504 | W65: 518 | X65: 532 | Y65: 546 | Z65: 560 | AA65: 574 | AB65: 588 | AC65: 602 | AD65: 616 | AE65: 630 | AF65: 644 | AG65: 658 | AH65: 672
A66: n93 | B66: Outbound | C66: Onewa Road | D66: 105 | E66: 122.5 | F66: 140 | G66: 157.5 | H66: 157.5 | I66: 157.5 | J66: 175 | K66: 192.5 | L66: 210 | M66: 227.5 | N66: 245 | O66: 262.5 | P66: 280 | Q66: 280 | R66: 280 | S66: 280 | T66: 280 | U66: 280 | V66: 280 | W66: 280 | X66: 280 | Y66: 280 | Z66: 280 | AA66: 280 | AB66: 280 | AC66: 280 | AD66: 280 | AE66: 280 | AF66: 280 | AG66: 280 | AH66: 280
A67: 110 | B67: Inbound | C67: Westgate | D67: 605 | E67: 632.5 | F67: 660 | G67: 687.5 | H67: 687.5 | I67: 687.5 | J67: 715 | K67: 742.5 | L67: 770 | M67: 797.5 | N67: 825 | O67: 852.5 | P67: 880 | Q67: 924 | R67: 968 | S67: 1012 | T67: 1056 | U67: 1100 | V67: 1144 | W67: 1188 | X67: 1232 | Y67: 1276 | Z67: 1320 | AA67: 1364 | AB67: 1408 | AC67: 1452 | AD67: 1496 | AE67: 1540 | AF67: 1584 | AG67: 1628 | AH67: 1672
A68: 110 | B68: Outbound | C68: Westgate | D68: 605 | E68: 632.5 | F68: 660 | G68: 687.5 | H68: 687.5 | I68: 687.5 | J68: 715 | K68: 742.5 | L68: 770 | M68: 797.5 | N68: 825 | O68: 852.5 | P68: 880 | Q68: 924 | R68: 968 | S68: 1012 | T68: 1056 | U68: 1100 | V68: 1144 | W68: 1188 | X68: 1232 | Y68: 1276 | Z68: 1320 | AA68: 1364 | AB68: 1408 | AC68: 1452 | AD68: 1496 | AE68: 1540 | AF68: 1584 | AG68: 1628 | AH68: 1672
A69: 125X | B69: Inbound | C69: Westgate | D69: 185 | E69: 232.5 | F69: 280 | G69: 327.5 | H69: 327.5 | I69: 327.5 | J69: 375 | K69: 422.5 | L69: 470 | M69: 517.5 | N69: 565 | O69: 612.5 | P69: 660 | Q69: 682 | R69: 704 | S69: 726 | T69: 748 | U69: 770 | V69: 792 | W69: 814 | X69: 836 | Y69: 858 | Z69: 880 | AA69: 902 | AB69: 924 | AC69: 946 | AD69: 968 | AE69: 990 | AF69: 1012 | AG69: 1034 | AH69: 1056
A70: 129 | B70: Inbound | C70: Massey West | D70: 210 | E70: 245 | F70: 280 | G70: 315 | H70: 315 | I70: 315 | J70: 350 | K70: 385 | L70: 420 | M70: 455 | N70: 490 | O70: 525 | P70: 560 | Q70: 574 | R70: 588 | S70: 602 | T70: 616 | U70: 630 | V70: 644 | W70: 658 | X70: 672 | Y70: 686 | Z70: 700 | AA70: 714 | AB70: 728 | AC70: 742 | AD70: 756 | AE70: 770 | AF70: 784 | AG70: 798 | AH70: 812
A71: Red Hills | B71: Inbound | C71: Red Hills | D71: 0 | E71: 0 | F71: 0 | G71: 0 | H71: 0 | I71: 0 | J71: 0 | K71: 0 | L71: 0 | M71: 0 | N71: 420 | O71: 420 | P71: 420 | Q71: 434 | R71: 448 | S71: 462 | T71: 476 | U71: 490 | V71: 504 | W71: 518 | X71: 532 | Y71: 546 | Z71: 560 | AA71: 574 | AB71: 588 | AC71: 602 | AD71: 616 | AE71: 630 | AF71: 644 | AG71: 658 | AH71: 672
A72: 132X | B72: Inbound | C72: Te Atatu Peninsula | D72: 385 | E72: 402.5 | F72: 420 | G72: 437.5 | H72: 437.5 | I72: 437.5 | J72: 455 | K72: 472.5 | L72: 490 | M72: 507.5 | N72: 525 | O72: 542.5 | P72: 560 | Q72: 574 | R72: 588 | S72: 602 | T72: 616 | U72: 630 | V72: 644 | W72: 658 | X72: 672 | Y72: 686 | Z72: 700 | AA72: 714 | AB72: 728 | AC72: 742 | AD72: 756 | AE72: 770 | AF72: 784 | AG72: 798 | AH72: 812
A73: 133X | B73: Inbound | C73: Henderson | D73: 385 | E73: 402.5 | F73: 420 | G73: 437.5 | H73: 437.5 | I73: 437.5 | J73: 455 | K73: 472.5 | L73: 490 | M73: 507.5 | N73: 525 | O73: 542.5 | P73: 560 | Q73: 574 | R73: 588 | S73: 602 | T73: 616 | U73: 630 | V73: 644 | W73: 658 | X73: 672 | Y73: 686 | Z73: 700 | AA73: 714 | AB73: 728 | AC73: 742 | AD73: 756 | AE73: 770 | AF73: 784 | AG73: 798 | AH73: 812
A74: 151X | B74: Inbound | C74: West Express | D74: 280 | E74: 280 | F74: 280 | G74: 280 | H74: 280 | I74: 280 | J74: 280 | K74: 280 | L74: 280 | M74: 280 | N74: 280 | O74: 280 | P74: 280 | Q74: 280 | R74: 280 | S74: 280 | T74: 280 | U74: 280 | V74: 280 | W74: 280 | X74: 280 | Y74: 280 | Z74: 280 | AA74: 280 | AB74: 280 | AC74: 280 | AD74: 280 | AE74: 280 | AF74: 280 | AG74: 280 | AH74: 280
A75: 171X & 172X | B75: Inbound | C75: West Express | D75: 280 | E75: 280 | F75: 280 | G75: 280 | H75: 280 | I75: 280 | J75: 280 | K75: 280 | L75: 280 | M75: 280 | N75: 280 | O75: 280 | P75: 280 | Q75: 280 | R75: 280 | S75: 280 | T75: 280 | U75: 280 | V75: 280 | W75: 280 | X75: 280 | Y75: 280 | Z75: 280 | AA75: 280 | AB75: 280 | AC75: 280 | AD75: 280 | AE75: 280 | AF75: 280 | AG75: 280 | AH75: 280
A76: 195 | B76: Inbound | C76: Great North Road | D76: 280 | E76: 280 | F76: 280 | G76: 280 | H76: 280 | I76: 280 | J76: 280 | K76: 280 | L76: 280 | M76: 280 | N76: 280 | O76: 280 | P76: 280 | Q76: 280 | R76: 280 | S76: 280 | T76: 280 | U76: 280 | V76: 280 | W76: 280 | X76: 280 | Y76: 280 | Z76: 280 | AA76: 280 | AB76: 280 | AC76: 280 | AD76: 280 | AE76: 280 | AF76: 280 | AG76: 280 | AH76: 280
A77: 195 | B77: Outbound | C77: Great North Road | D77: 140 | E77: 140 | F77: 140 | G77: 140 | H77: 140 | I77: 140 | J77: 140 | K77: 140 | L77: 140 | M77: 140 | N77: 140 | O77: 140 | P77: 140 | Q77: 140 | R77: 140 | S77: 140 | T77: 140 | U77: 140 | V77: 140 | W77: 140 | X77: 140 | Y77: 140 | Z77: 140 | AA77: 140 | AB77: 140 | AC77: 140 | AD77: 140 | AE77: 140 | AF77: 140 | AG77: 140 | AH77: 140
A78: 209 | B78: Inbound | C78: Green Bay | D78: 210 | E78: 210 | F78: 210 | G78: 210 | H78: 210 | I78: 210 | J78: 210 | K78: 210 | L78: 210 | M78: 210 | N78: 210 | O78: 210 | P78: 210 | Q78: 210 | R78: 210 | S78: 210 | T78: 210 | U78: 210 | V78: 210 | W78: 210 | X78: 210 | Y78: 210 | Z78: 210 | AA78: 210 | AB78: 210 | AC78: 210 | AD78: 210 | AE78: 210 | AF78: 210 | AG78: 210 | AH78: 210

Sheet Routes - Vehicle Capacity
A1: Route Name | B1: Direction | C1: Route Group | D1: ='Input Summary'!$H$5 -> 2016 | E1: =IF(IFERROR(D$1+1<='Input Summary'!$H$6,FALSE),D$1+1,"") -> 2017 | F1: =IF(IFERROR(E$1+1<='Input Summary'!$H$6,FALSE),E$1+1,"") -> 2018 | G1: =IF(IFERROR(F$1+1<='Input Summary'!$H$6,FALSE),F$1+1,"") -> 2019 | H1: =IF(IFERROR(G$1+1<='Input Summary'!$H$6,FALSE),G$1+1,"") -> 2020 | I1: =IF(IFERROR(H$1+1<='Input Summary'!$H$6,FALSE),H$1+1,"") -> 2021 | J1: =IF(IFERROR(I$1+1<='Input Summary'!$H$6,FALSE),I$1+1,"") -> 2022 | K1: =IF(IFERROR(J$1+1<='Input Summary'!$H$6,FALSE),J$1+1,"") -> 2023 | L1: =IF(IFERROR(K$1+1<='Input Summary'!$H$6,FALSE),K$1+1,"") -> 2024 | M1: =IF(IFERROR(L$1+1<='Input Summary'!$H$6,FALSE),L$1+1,"") -> 2025 | N1: =IF(IFERROR(M$1+1<='Input Summary'!$H$6,FALSE),M$1+1,"") -> 2026 | O1: =IF(IFERROR(N$1+1<='Input Summary'!$H$6,FALSE),N$1+1,"") -> 2027 | P1: =IF(IFERROR(O$1+1<='Input Summary'!$H$6,FALSE),O$1+1,"") -> 2028 | Q1: =IF(IFERROR(P$1+1<='Input Summary'!$H$6,FALSE),P$1+1,"") -> 2029 | R1: =IF(IFERROR(Q$1+1<='Input Summary'!$H$6,FALSE),Q$1+1,"") -> 2030 | S1: =IF(IFERROR(R$1+1<='Input Summary'!$H$6,FALSE),R$1+1,"") -> 2031 | T1: =IF(IFERROR(S$1+1<='Input Summary'!$H$6,FALSE),S$1+1,"") -> 2032 | U1: =IF(IFERROR(T$1+1<='Input Summary'!$H$6,FALSE),T$1+1,"") -> 2033 | V1: =IF(IFERROR(U$1+1<='Input Summary'!$H$6,FALSE),U$1+1,"") -> 2034 | W1: =IF(IFERROR(V$1+1<='Input Summary'!$H$6,FALSE),V$1+1,"") -> 2035 | X1: =IF(IFERROR(W$1+1<='Input Summary'!$H$6,FALSE),W$1+1,"") -> 2036 | Y1: =IF(IFERROR(X$1+1<='Input Summary'!$H$6,FALSE),X$1+1,"") -> 2037 | Z1: =IF(IFERROR(Y$1+1<='Input Summary'!$H$6,FALSE),Y$1+1,"") -> 2038 | AA1: =IF(IFERROR(Z$1+1<='Input Summary'!$H$6,FALSE),Z$1+1,"") -> 2039 | AB1: =IF(IFERROR(AA$1+1<='Input Summary'!$H$6,FALSE),AA$1+1,"") -> 2040 | AC1: =IF(IFERROR(AB$1+1<='Input Summary'!$H$6,FALSE),AB$1+1,"") -> 2041 | AD1: =IF(IFERROR(AC$1+1<='Input Summary'!$H$6,FALSE),AC$1+1,"") -> 2042 | AE1: =IF(IFERROR(AD$1+1<='Input Summary'!$H$6,FALSE),AD$1+1,"") -> 2043 | AF1: =IF(IFERROR(AE$1+1<='Input Summary'!$H$6,FALSE),AE$1+1,"") -> 2044 | AG1: =IF(IFERROR(AF$1+1<='Input Summary'!$H$6,FALSE),AF$1+1,"") -> 2045 | AH1: =IF(IFERROR(AG$1+1<='Input Summary'!$H$6,FALSE),AG$1+1,"") -> 2046
A2: Airbus | B2: Inbound | C2: Airbus | D2: 70 | E2: 70 | F2: 70 | G2: 70 | H2: 70 | I2: 70 | J2: 70 | K2: 70 | L2: 70 | M2: 70 | N2: 70 | O2: 70 | P2: 70 | Q2: 70 | R2: 70 | S2: 70 | T2: 70 | U2: 70 | V2: 70 | W2: 70 | X2: 70 | Y2: 70 | Z2: 70 | AA2: 70 | AB2: 70 | AC2: 70 | AD2: 70 | AE2: 70 | AF2: 70 | AG2: 70 | AH2: 70
A3: Airbus | B3: Outbound | C3: Airbus | D3: 70 | E3: 70 | F3: 70 | G3: 70 | H3: 70 | I3: 70 | J3: 70 | K3: 70 | L3: 70 | M3: 70 | N3: 70 | O3: 70 | P3: 70 | Q3: 70 | R3: 70 | S3: 70 | T3: 70 | U3: 70 | V3: 70 | W3: 70 | X3: 70 | Y3: 70 | Z3: 70 | AA3: 70 | AB3: 70 | AC3: 70 | AD3: 70 | AE3: 70 | AF3: 70 | AG3: 70 | AH3: 70
A4: City Link | B4: Inbound | C4: City Link | D4: 82 | E4: 84 | F4: 86 | G4: 88 | H4: 88 | I4: 88 | J4: 90 | K4: 92 | L4: 94 | M4: 96 | N4: 98 | O4: 100 | P4: 102 | Q4: 102 | R4: 102 | S4: 102 | T4: 102 | U4: 102 | V4: 102 | W4: 102 | X4: 102 | Y4: 102 | Z4: 102 | AA4: 102 | AB4: 102 | AC4: 102 | AD4: 102 | AE4: 102 | AF4: 102 | AG4: 102 | AH4: 102
A5: Inner Link | B5: Inbound | C5: Inner Link | D5: 82 | E5: 84 | F5: 86 | G5: 88 | H5: 88 | I5: 88 | J5: 90 | K5: 92 | L5: 94 | M5: 96 | N5: 98 | O5: 100 | P5: 102 | Q5: 102 | R5: 102 | S5: 102 | T5: 102 | U5: 102 | V5: 102 | W5: 102 | X5: 102 | Y5: 102 | Z5: 102 | AA5: 102 | AB5: 102 | AC5: 102 | AD5: 102 | AE5: 102 | AF5: 102 | AG5: 102 | AH5: 102
A6: Inner Link | B6: Outbound | C6: Inner Link | D6: 82 | E6: 84 | F6: 86 | G6: 88 | H6: 88 | I6: 88 | J6: 90 | K6: 92 | L6: 94 | M6: 96 | N6: 98 | O6: 100 | P6: 102 | Q6: 102 | R6: 102 | S6: 102 | T6: 102 | U6: 102 | V6: 102 | W6: 102 | X6: 102 | Y6: 102 | Z6: 102 | AA6: 102 | AB6: 102 | AC6: 102 | AD6: 102 | AE6: 102 | AF6: 102 | AG6: 102 | AH6: 102
A7: Crosstown 4 peak | B7: Inbound | C7: Manukau Road | D7: 70 | E7: 70 | F7: 70 | G7: 70 | H7: 70 | I7: 70 | J7: 70 | K7: 70 | L7: 70 | M7: 70 | N7: 70 | O7: 70 | P7: 70 | Q7: 70 | R7: 70 | S7: 70 | T7: 70 | U7: 70 | V7: 70 | W7: 70 | X7: 70 | Y7: 70 | Z7: 70 | AA7: 70 | AB7: 70 | AC7: 70 | AD7: 70 | AE7: 70 | AF7: 70 | AG7: 70 | AH7: 70
A8: Crosstown 4 | B8: Inbound | C8: Manukau Road / Jervois Road | D8: 110 | E8: 110 | F8: 110 | G8: 110 | H8: 110 | I8: 110 | J8: 110 | K8: 110 | L8: 110 | M8: 110 | N8: 110 | O8: 110 | P8: 110 | Q8: 110 | R8: 110 | S8: 110 | T8: 110 | U8: 110 | V8: 110 | W8: 110 | X8: 110 | Y8: 110 | Z8: 110 | AA8: 110 | AB8: 110 | AC8: 110 | AD8: 110 | AE8: 110 | AF8: 110 | AG8: 110 | AH8: 110
A9: Crosstown 4 | B9: Outbound | C9: Manukau Road / Jervois Road | D9: 110 | E9: 110 | F9: 110 | G9: 110 | H9: 110 | I9: 110 | J9: 110 | K9: 110 | L9: 110 | M9: 110 | N9: 110 | O9: 110 | P9: 110 | Q9: 110 | R9: 110 | S9: 110 | T9: 110 | U9: 110 | V9: 110 | W9: 110 | X9: 110 | Y9: 110 | Z9: 110 | AA9: 110 | AB9: 110 | AC9: 110 | AD9: 110 | AE9: 110 | AF9: 110 | AG9: 110 | AH9: 110
A10: 309 & 309X | B10: Inbound | C10: Manukau Road | D10: 70 | E10: 70 | F10: 70 | G10: 70 | H10: 70 | I10: 70 | J10: 70 | K10: 70 | L10: 70 | M10: 70 | N10: 70 | O10: 70 | P10: 70 | Q10: 70 | R10: 70 | S10: 70 | T10: 70 | U10: 70 | V10: 70 | W10: 70 | X10: 70 | Y10: 70 | Z10: 70 | AA10: 70 | AB10: 70 | AC10: 70 | AD10: 70 | AE10: 70 | AF10: 70 | AG10: 70 | AH10: 70
A11: 309 & 309X | B11: Outbound | C11: Manukau Road | D11: 70 | E11: 70 | F11: 70 | G11: 70 | H11: 70 | I11: 70 | J11: 70 | K11: 70 | L11: 70 | M11: 70 | N11: 70 | O11: 70 | P11: 70 | Q11: 70 | R11: 70 | S11: 70 | T11: 70 | U11: 70 | V11: 70 | W11: 70 | X11: 70 | Y11: 70 | Z11: 70 | AA11: 70 | AB11: 70 | AC11: 70 | AD11: 70 | AE11: 70 | AF11: 70 | AG11: 70 | AH11: 70
A12: 101 | B12: Inbound | C12: Jervois Road | D12: 70 | E12: 70 | F12: 70 | G12: 70 | H12: 70 | I12: 70 | J12: 70 | K12: 70 | L12: 70 | M12: 70 | N12: 70 | O12: 70 | P12: 70 | Q12: 70 | R12: 70 | S12: 70 | T12: 70 | U12: 70 | V12: 70 | W12: 70 | X12: 70 | Y12: 70 | Z12: 70 | AA12: 70 | AB12: 70 | AC12: 70 | AD12: 70 | AE12: 70 | AF12: 70 | AG12: 70 | AH12: 70
A13: 105 | B13: Inbound | C13: Richmond Road | D13: 70 | E13: 70 | F13: 70 | G13: 70 | H13: 70 | I13: 70 | J13: 70 | K13: 70 | L13: 70 | M13: 70 | N13: 70 | O13: 70 | P13: 70 | Q13: 70 | R13: 70 | S13: 70 | T13: 70 | U13: 70 | V13: 70 | W13: 70 | X13: 70 | Y13: 70 | Z13: 70 | AA13: 70 | AB13: 70 | AC13: 70 | AD13: 70 | AE13: 70 | AF13: 70 | AG13: 70 | AH13: 70
A14: 105 | B14: Outbound | C14: Richmond Road | D14: 70 | E14: 70 | F14: 70 | G14: 70 | H14: 70 | I14: 70 | J14: 70 | K14: 70 | L14: 70 | M14: 70 | N14: 70 | O14: 70 | P14: 70 | Q14: 70 | R14: 70 | S14: 70 | T14: 70 | U14: 70 | V14: 70 | W14: 70 | X14: 70 | Y14: 70 | Z14: 70 | AA14: 70 | AB14: 70 | AC14: 70 | AD14: 70 | AE14: 70 | AF14: 70 | AG14: 70 | AH14: 70
A15: 106 | B15: Inbound | C15: Freemans Bay | D15: 55 | E15: 55 | F15: 55 | G15: 55 | H15: 55 | I15: 55 | J15: 55 | K15: 55 | L15: 55 | M15: 55 | N15: 55 | O15: 55 | P15: 55 | Q15: 55 | R15: 55 | S15: 55 | T15: 55 | U15: 55 | V15: 55 | W15: 55 | X15: 55 | Y15: 55 | Z15: 55 | AA15: 55 | AB15: 55 | AC15: 55 | AD15: 55 | AE15: 55 | AF15: 55 | AG15: 55 | AH15: 55
A16: 106 | B16: Outbound | C16: Freemans Bay | D16: 55 | E16: 55 | F16: 55 | G16: 55 | H16: 55 | I16: 55 | J16: 55 | K16: 55 | L16: 55 | M16: 55 | N16: 55 | O16: 55 | P16: 55 | Q16: 55 | R16: 55 | S16: 55 | T16: 55 | U16: 55 | V16: 55 | W16: 55 | X16: 55 | Y16: 55 | Z16: 55 | AA16: 55 | AB16: 55 | AC16: 55 | AD16: 55 | AE16: 55 | AF16: 55 | AG16: 55 | AH16: 55
A17: Crosstown 5 | B17: Inbound | C17: Mount Eden Crosstown | D17: 70 | E17: 70 | F17: 70 | G17: 70 | H17: 70 | I17: 70 | J17: 70 | K17: 70 | L17: 70 | M17: 70 | N17: 70 | O17: 70 | P17: 70 | Q17: 70 | R17: 70 | S17: 70 | T17: 70 | U17: 70 | V17: 70 | W17: 70 | X17: 70 | Y17: 70 | Z17: 70 | AA17: 70 | AB17: 70 | AC17: 70 | AD17: 70 | AE17: 70 | AF17: 70 | AG17: 70 | AH17: 70
A18: Crosstown 5 | B18: Outbound | C18: Mount Eden Crosstown | D18: 70 | E18: 70 | F18: 70 | G18: 70 | H18: 70 | I18: 70 | J18: 70 | K18: 70 | L18: 70 | M18: 70 | N18: 70 | O18: 70 | P18: 70 | Q18: 70 | R18: 70 | S18: 70 | T18: 70 | U18: 70 | V18: 70 | W18: 70 | X18: 70 | Y18: 70 | Z18: 70 | AA18: 70 | AB18: 70 | AC18: 70 | AD18: 70 | AE18: 70 | AF18: 70 | AG18: 70 | AH18: 70
A19: 18 | B19: Inbound | C19: Great North Road | D19: 85 | E19: 88 | F19: 90 | G19: 93 | H19: 93 | I19: 93 | J19: 95 | K19: 98 | L19: 100 | M19: 103 | N19: 105 | O19: 108 | P19: 110 | Q19: 110 | R19: 110 | S19: 110 | T19: 110 | U19: 110 | V19: 110 | W19: 110 | X19: 110 | Y19: 110 | Z19: 110 | AA19: 110 | AB19: 110 | AC19: 110 | AD19: 110 | AE19: 110 | AF19: 110 | AG19: 110 | AH19: 110
A20: 18 | B20: Outbound | C20: Great North Road | D20: 110 | E20: 110 | F20: 110 | G20: 110 | H20: 110 | I20: 110 | J20: 110 | K20: 110 | L20: 110 | M20: 110 | N20: 110 | O20: 110 | P20: 110 | Q20: 110 | R20: 110 | S20: 110 | T20: 110 | U20: 110 | V20: 110 | W20: 110 | X20: 110 | Y20: 110 | Z20: 110 | AA20: 110 | AB20: 110 | AC20: 110 | AD20: 110 | AE20: 110 | AF20: 110 | AG20: 110 | AH20: 110
A21: 22a & b | B21: Inbound | C21: New North Road | D21: 85 | E21: 88 | F21: 90 | G21: 93 | H21: 93 | I21: 93 | J21: 95 | K21: 98 | L21: 100 | M21: 103 | N21: 105 | O21: 108 | P21: 110 | Q21: 110 | R21: 110 | S21: 110 | T21: 110 | U21: 110 | V21: 110 | W21: 110 | X21: 110 | Y21: 110 | Z21: 110 | AA21: 110 | AB21: 110 | AC21: 110 | AD21: 110 | AE21: 110 | AF21: 110 | AG21: 110 | AH21: 110
A22: 22a & b | B22: Outbound | C22: New North Road | D22: 110 | E22: 110 | F22: 110 | G22: 110 | H22: 110 | I22: 110 | J22: 110 | K22: 110 | L22: 110 | M22: 110 | N22: 110 | O22: 110 | P22: 110 | Q22: 110 | R22: 110 | S22: 110 | T22: 110 | U22: 110 | V22: 110 | W22: 110 | X22: 110 | Y22: 110 | Z22: 110 | AA22: 110 | AB22: 110 | AC22: 110 | AD22: 110 | AE22: 110 | AF22: 110 | AG22: 110 | AH22: 110
A23: 24a & b | B23: Inbound | C23: Sandringham Road | D23: 77 | E23: 80 | F23: 83.33333333 | G23: 87 | H23: 87 | I23: 87 | J23: 90 | K23: 94 | L23: 97 | M23: 100 | N23: 104 | O23: 107 | P23: 110 | Q23: 110 | R23: 110 | S23: 110 | T23: 110 | U23: 110 | V23: 110 | W23: 110 | X23: 110 | Y23: 110 | Z23: 110 | AA23: 110 | AB23: 110 | AC23: 110 | AD23: 110 | AE23: 110 | AF23: 110 | AG23: 110 | AH23: 110
A24: 24a & b | B24: Outbound | C24: Sandringham Road | D24: 110 | E24: 110 | F24: 110 | G24: 110 | H24: 110 | I24: 110 | J24: 110 | K24: 110 | L24: 110 | M24: 110 | N24: 110 | O24: 110 | P24: 110 | Q24: 110 | R24: 110 | S24: 110 | T24: 110 | U24: 110 | V24: 110 | W24: 110 | X24: 110 | Y24: 110 | Z24: 110 | AA24: 110 | AB24: 110 | AC24: 110 | AD24: 110 | AE24: 110 | AF24: 110 | AG24: 110 | AH24: 110
A25: 25 & 26 | B25: Inbound | C25: Dominion Road | D25: 85 | E25: 88 | F25: 90 | G25: 93 | H25: 93 | I25: 93 | J25: 95 | K25: 98 | L25: 100 | M25: 103 | N25: 105 | O25: 108 | P25: 110 | Q25: 110 | R25: 110 | S25: 110 | T25: 110 | U25: 110 | V25: 110 | W25: 110 | X25: 110 | Y25: 110 | Z25: 110 | AA25: 110 | AB25: 110 | AC25: 110 | AD25: 110 | AE25: 110 | AF25: 110 | AG25: 110 | AH25: 110
A26: 25 & 26 | B26: Outbound | C26: Dominion Road | D26: 110 | E26: 110 | F26: 110 | G26: 110 | H26: 110 | I26: 110 | J26: 110 | K26: 110 | L26: 110 | M26: 110 | N26: 110 | O26: 110 | P26: 110 | Q26: 110 | R26: 110 | S26: 110 | T26: 110 | U26: 110 | V26: 110 | W26: 110 | X26: 110 | Y26: 110 | Z26: 110 | AA26: 110 | AB26: 110 | AC26: 110 | AD26: 110 | AE26: 110 | AF26: 110 | AG26: 110 | AH26: 110
A27: 27 | B27: Inbound | C27: Mount Eden Road | D27: 77 | E27: 80 | F27: 82 | G27: 85 | H27: 85 | I27: 85 | J27: 88 | K27: 90 | L27: 93 | M27: 96 | N27: 98 | O27: 101 | P27: 103.3333333 | Q27: 104 | R27: 105 | S27: 106 | T27: 106 | U27: 107 | V27: 108 | W27: 108 | X27: 109 | Y27: 110 | Z27: 110 | AA27: 110 | AB27: 110 | AC27: 110 | AD27: 110 | AE27: 110 | AF27: 110 | AG27: 110 | AH27: 110
A28: 27 | B28: Outbound | C28: Mount Eden Road | D28: 110 | E28: 110 | F28: 110 | G28: 110 | H28: 110 | I28: 110 | J28: 110 | K28: 110 | L28: 110 | M28: 110 | N28: 110 | O28: 110 | P28: 110 | Q28: 110 | R28: 110 | S28: 110 | T28: 110 | U28: 110 | V28: 110 | W28: 110 | X28: 110 | Y28: 110 | Z28: 110 | AA28: 110 | AB28: 110 | AC28: 110 | AD28: 110 | AE28: 110 | AF28: 110 | AG28: 110 | AH28: 110
A29: 321 | B29: Inbound | C29: Otahuhu to City via Hospitals | D29: 70 | E29: 70 | F29: 70 | G29: 70 | H29: 70 | I29: 70 | J29: 70 | K29: 70 | L29: 70 | M29: 70 | N29: 70 | O29: 70 | P29: 70 | Q29: 70 | R29: 70 | S29: 70 | T29: 70 | U29: 70 | V29: 70 | W29: 70 | X29: 70 | Y29: 70 | Z29: 70 | AA29: 70 | AB29: 70 | AC29: 70 | AD29: 70 | AE29: 70 | AF29: 70 | AG29: 70 | AH29: 70
A30: 321 | B30: Outbound | C30: Otahuhu to City via Hospitals | D30: 70 | E30: 70 | F30: 70 | G30: 70 | H30: 70 | I30: 70 | J30: 70 | K30: 70 | L30: 70 | M30: 70 | N30: 70 | O30: 70 | P30: 70 | Q30: 70 | R30: 70 | S30: 70 | T30: 70 | U30: 70 | V30: 70 | W30: 70 | X30: 70 | Y30: 70 | Z30: 70 | AA30: 70 | AB30: 70 | AC30: 70 | AD30: 70 | AE30: 70 | AF30: 70 | AG30: 70 | AH30: 70
A31: 295 | B31: Inbound | C31: Gillies Ave | D31: 70 | E31: 70 | F31: 70 | G31: 70 | H31: 70 | I31: 70 | J31: 70 | K31: 70 | L31: 70 | M31: 70 | N31: 70 | O31: 70 | P31: 70 | Q31: 70 | R31: 70 | S31: 70 | T31: 70 | U31: 70 | V31: 70 | W31: 70 | X31: 70 | Y31: 70 | Z31: 70 | AA31: 70 | AB31: 70 | AC31: 70 | AD31: 70 | AE31: 70 | AF31: 70 | AG31: 70 | AH31: 70
A32: 295 | B32: Outbound | C32: Gillies Ave | D32: 70 | E32: 70 | F32: 70 | G32: 70 | H32: 70 | I32: 70 | J32: 70 | K32: 70 | L32: 70 | M32: 70 | N32: 70 | O32: 70 | P32: 70 | Q32: 70 | R32: 70 | S32: 70 | T32: 70 | U32: 70 | V32: 70 | W32: 70 | X32: 70 | Y32: 70 | Z32: 70 | AA32: 70 | AB32: 70 | AC32: 70 | AD32: 70 | AE32: 70 | AF32: 70 | AG32: 70 | AH32: 70
A33: 70 | B33: Inbound | C33: Remuera Road | D33: 70 | E33: 70 | F33: 70 | G33: 70 | H33: 70 | I33: 70 | J33: 70 | K33: 70 | L33: 70 | M33: 70 | N33: 70 | O33: 70 | P33: 70 | Q33: 70 | R33: 70 | S33: 70 | T33: 70 | U33: 70 | V33: 70 | W33: 70 | X33: 70 | Y33: 70 | Z33: 70 | AA33: 70 | AB33: 70 | AC33: 70 | AD33: 70 | AE33: 70 | AF33: 70 | AG33: 70 | AH33: 70
A34: 70 | B34: Outbound | C34: Remuera Road | D34: 70 | E34: 70 | F34: 70 | G34: 70 | H34: 70 | I34: 70 | J34: 70 | K34: 70 | L34: 70 | M34: 70 | N34: 70 | O34: 70 | P34: 70 | Q34: 70 | R34: 70 | S34: 70 | T34: 70 | U34: 70 | V34: 70 | W34: 70 | X34: 70 | Y34: 70 | Z34: 70 | AA34: 70 | AB34: 70 | AC34: 70 | AD34: 70 | AE34: 70 | AF34: 70 | AG34: 70 | AH34: 70
A35: 701 | B35: Inbound | C35: Remuera Road | D35: 70 | E35: 70 | F35: 70 | G35: 70 | H35: 70 | I35: 70 | J35: 70 | K35: 70 | L35: 70 | M35: 70 | N35: 70 | O35: 70 | P35: 70 | Q35: 70 | R35: 70 | S35: 70 | T35: 70 | U35: 70 | V35: 70 | W35: 70 | X35: 70 | Y35: 70 | Z35: 70 | AA35: 70 | AB35: 70 | AC35: 70 | AD35: 70 | AE35: 70 | AF35: 70 | AG35: 70 | AH35: 70
A36: 703 | B36: Inbound | C36: Portland Road | D36: 70 | E36: 70 | F36: 70 | G36: 70 | H36: 70 | I36: 70 | J36: 70 | K36: 70 | L36: 70 | M36: 70 | N36: 70 | O36: 70 | P36: 70 | Q36: 70 | R36: 70 | S36: 70 | T36: 70 | U36: 70 | V36: 70 | W36: 70 | X36: 70 | Y36: 70 | Z36: 70 | AA36: 70 | AB36: 70 | AC36: 70 | AD36: 70 | AE36: 70 | AF36: 70 | AG36: 70 | AH36: 70
A37: 703 | B37: Outbound | C37: Portland Road | D37: 70 | E37: 70 | F37: 70 | G37: 70 | H37: 70 | I37: 70 | J37: 70 | K37: 70 | L37: 70 | M37: 70 | N37: 70 | O37: 70 | P37: 70 | Q37: 70 | R37: 70 | S37: 70 | T37: 70 | U37: 70 | V37: 70 | W37: 70 | X37: 70 | Y37: 70 | Z37: 70 | AA37: 70 | AB37: 70 | AC37: 70 | AD37: 70 | AE37: 70 | AF37: 70 | AG37: 70 | AH37: 70
A38: 761 | B38: Inbound | C38: Kepa Road | D38: 70 | E38: 70 | F38: 70 | G38: 70 | H38: 70 | I38: 70 | J38: 70 | K38: 70 | L38: 70 | M38: 70 | N38: 70 | O38: 70 | P38: 70 | Q38: 70 | R38: 70 | S38: 70 | T38: 70 | U38: 70 | V38: 70 | W38: 70 | X38: 70 | Y38: 70 | Z38: 70 | AA38: 70 | AB38: 70 | AC38: 70 | AD38: 70 | AE38: 70 | AF38: 70 | AG38: 70 | AH38: 70
A39: 77 | B39: Inbound | C39: Tamaki Drive | D39: 70 | E39: 70 | F39: 70 | G39: 70 | H39: 70 | I39: 70 | J39: 70 | K39: 70 | L39: 70 | M39: 70 | N39: 70 | O39: 70 | P39: 70 | Q39: 70 | R39: 70 | S39: 70 | T39: 70 | U39: 70 | V39: 70 | W39: 70 | X39: 70 | Y39: 70 | Z39: 70 | AA39: 70 | AB39: 70 | AC39: 70 | AD39: 70 | AE39: 70 | AF39: 70 | AG39: 70 | AH39: 70
A40: 77 | B40: Outbound | C40: Tamaki Drive | D40: 70 | E40: 70 | F40: 70 | G40: 70 | H40: 70 | I40: 70 | J40: 70 | K40: 70 | L40: 70 | M40: 70 | N40: 70 | O40: 70 | P40: 70 | Q40: 70 | R40: 70 | S40: 70 | T40: 70 | U40: 70 | V40: 70 | W40: 70 | X40: 70 | Y40: 70 | Z40: 70 | AA40: 70 | AB40: 70 | AC40: 70 | AD40: 70 | AE40: 70 | AF40: 70 | AG40: 70 | AH40: 70
A41: 774 & 775 | B41: Inbound | C41: Tamaki Drive | D41: 70 | E41: 70 | F41: 70 | G41: 70 | H41: 70 | I41: 70 | J41: 70 | K41: 70 | L41: 70 | M41: 70 | N41: 70 | O41: 70 | P41: 70 | Q41: 70 | R41: 70 | S41: 70 | T41: 70 | U41: 70 | V41: 70 | W41: 70 | X41: 70 | Y41: 70 | Z41: 70 | AA41: 70 | AB41: 70 | AC41: 70 | AD41: 70 | AE41: 70 | AF41: 70 | AG41: 70 | AH41: 70
A42: 55 | B42: Inbound | C42: Howick | D42: 110 | E42: 110 | F42: 110 | G42: 110 | H42: 110 | I42: 110 | J42: 110 | K42: 110 | L42: 110 | M42: 110 | N42: 110 | O42: 110 | P42: 110 | Q42: 110 | R42: 110 | S42: 110 | T42: 110 | U42: 110 | V42: 110 | W42: 110 | X42: 110 | Y42: 110 | Z42: 110 | AA42: 110 | AB42: 110 | AC42: 110 | AD42: 110 | AE42: 110 | AF42: 110 | AG42: 110 | AH42: 110
A43: 55 | B43: Outbound | C43: Howick | D43: 110 | E43: 110 | F43: 110 | G43: 110 | H43: 110 | I43: 110 | J43: 110 | K43: 110 | L43: 110 | M43: 110 | N43: 110 | O43: 110 | P43: 110 | Q43: 110 | R43: 110 | S43: 110 | T43: 110 | U43: 110 | V43: 110 | W43: 110 | X43: 110 | Y43: 110 | Z43: 110 | AA43: 110 | AB43: 110 | AC43: 110 | AD43: 110 | AE43: 110 | AF43: 110 | AG43: 110 | AH43: 110
A44: 55 peak | B44: Inbound | C44: Howick | D44: 70 | E44: 70 | F44: 70 | G44: 70 | H44: 70 | I44: 70 | J44: 70 | K44: 70 | L44: 70 | M44: 70 | N44: 70 | O44: 70 | P44: 70 | Q44: 70 | R44: 70 | S44: 70 | T44: 70 | U44: 70 | V44: 70 | W44: 70 | X44: 70 | Y44: 70 | Z44: 70 | AA44: 70 | AB44: 70 | AC44: 70 | AD44: 70 | AE44: 70 | AF44: 70 | AG44: 70 | AH44: 70
A45: 360X | B45: Inbound | C45: Papakura | D45: 55 | E45: 55 | F45: 55 | G45: 55 | H45: 55 | I45: 55 | J45: 55 | K45: 55 | L45: 55 | M45: 55 | N45: 55 | O45: 55 | P45: 55 | Q45: 55 | R45: 55 | S45: 55 | T45: 55 | U45: 55 | V45: 55 | W45: 55 | X45: 55 | Y45: 55 | Z45: 55 | AA45: 55 | AB45: 55 | AC45: 55 | AD45: 55 | AE45: 55 | AF45: 55 | AG45: 55 | AH45: 55
A46: NX1 | B46: Inbound | C46: NEX | D46: 74 | E46: 77 | F46: 80.66666667 | G46: 85 | H46: 85 | I46: 85 | J46: 88 | K46: 92 | L46: 96 | M46: 99 | N46: 103 | O46: 107 | P46: 110 | Q46: 110 | R46: 110 | S46: 110 | T46: 110 | U46: 110 | V46: 110 | W46: 110 | X46: 110 | Y46: 110 | Z46: 110 | AA46: 110 | AB46: 110 | AC46: 110 | AD46: 110 | AE46: 110 | AF46: 110 | AG46: 110 | AH46: 110
A47: NX1 | B47: Outbound | C47: NEX | D47: 110 | E47: 110 | F47: 110 | G47: 110 | H47: 110 | I47: 110 | J47: 110 | K47: 110 | L47: 110 | M47: 110 | N47: 110 | O47: 110 | P47: 110 | Q47: 110 | R47: 110 | S47: 110 | T47: 110 | U47: 110 | V47: 110 | W47: 110 | X47: 110 | Y47: 110 | Z47: 110 | AA47: 110 | AB47: 110 | AC47: 110 | AD47: 110 | AE47: 110 | AF47: 110 | AG47: 110 | AH47: 110
A48: NX2 | B48: Inbound | C48: NEX | D48: 74 | E48: 77 | F48: 80.66666667 | G48: 85 | H48: 85 | I48: 85 | J48: 88 | K48: 92 | L48: 96 | M48: 99 | N48: 103 | O48: 107 | P48: 110 | Q48: 110 | R48: 110 | S48: 110 | T48: 110 | U48: 110 | V48: 110 | W48: 110 | X48: 110 | Y48: 110 | Z48: 110 | AA48: 110 | AB48: 110 | AC48: 110 | AD48: 110 | AE48: 110 | AF48: 110 | AG48: 110 | AH48: 110
A49: NX2 | B49: Outbound | C49: NEX | D49: 110 | E49: 110 | F49: 110 | G49: 110 | H49: 110 | I49: 110 | J49: 110 | K49: 110 | L49: 110 | M49: 110 | N49: 110 | O49: 110 | P49: 110 | Q49: 110 | R49: 110 | S49: 110 | T49: 110 | U49: 110 | V49: 110 | W49: 110 | X49: 110 | Y49: 110 | Z49: 110 | AA49: 110 | AB49: 110 | AC49: 110 | AD49: 110 | AE49: 110 | AF49: 110 | AG49: 110 | AH49: 110
A50: Hibiscus Coast | B50: Inbound | C50: Hibiscus Coast Express | D50: 70 | E50: 70 | F50: 70 | G50: 70 | H50: 70 | I50: 70 | J50: 70 | K50: 70 | L50: 70 | M50: 70 | N50: 70 | O50: 70 | P50: 70 | Q50: 70 | R50: 70 | S50: 70 | T50: 70 | U50: 70 | V50: 70 | W50: 70 | X50: 70 | Y50: 70 | Z50: 70 | AA50: 70 | AB50: 70 | AC50: 70 | AD50: 70 | AE50: 70 | AF50: 70 | AG50: 70 | AH50: 70
A51: NX3 | B51: Inbound | C51: NEX | D51: 70 | E51: 70 | F51: 70 | G51: 75 | H51: 75 | I51: 75 | J51: 80 | K51: 85 | L51: 90 | M51: 95 | N51: 100 | O51: 105 | P51: 110 | Q51: 110 | R51: 110 | S51: 110 | T51: 110 | U51: 110 | V51: 110 | W51: 110 | X51: 110 | Y51: 110 | Z51: 110 | AA51: 110 | AB51: 110 | AC51: 110 | AD51: 110 | AE51: 110 | AF51: 110 | AG51: 110 | AH51: 110
A52: NX3 | B52: Outbound | C52: NEX | D52: 70 | E52: 70 | F52: 70 | G52: 75 | H52: 75 | I52: 75 | J52: 80 | K52: 85 | L52: 90 | M52: 95 | N52: 100 | O52: 105 | P52: 110 | Q52: 110 | R52: 110 | S52: 110 | T52: 110 | U52: 110 | V52: 110 | W52: 110 | X52: 110 | Y52: 110 | Z52: 110 | AA52: 110 | AB52: 110 | AC52: 110 | AD52: 110 | AE52: 110 | AF52: 110 | AG52: 110 | AH52: 110
A53: n4 & n4a | B53: Inbound | C53: Takapuna / Hillcrest | D53: 70 | E53: 70 | F53: 70 | G53: 70 | H53: 70 | I53: 70 | J53: 70 | K53: 70 | L53: 70 | M53: 70 | N53: 70 | O53: 70 | P53: 70 | Q53: 70 | R53: 70 | S53: 70 | T53: 70 | U53: 70 | V53: 70 | W53: 70 | X53: 70 | Y53: 70 | Z53: 70 | AA53: 70 | AB53: 70 | AC53: 70 | AD53: 70 | AE53: 70 | AF53: 70 | AG53: 70 | AH53: 70
A54: n4 & n4a | B54: Outbound | C54: Takapuna / Hillcrest | D54: 70 | E54: 70 | F54: 70 | G54: 70 | H54: 70 | I54: 70 | J54: 70 | K54: 70 | L54: 70 | M54: 70 | N54: 70 | O54: 70 | P54: 70 | Q54: 70 | R54: 70 | S54: 70 | T54: 70 | U54: 70 | V54: 70 | W54: 70 | X54: 70 | Y54: 70 | Z54: 70 | AA54: 70 | AB54: 70 | AC54: 70 | AD54: 70 | AE54: 70 | AF54: 70 | AG54: 70 | AH54: 70
A55: n23a & b | B55: Inbound | C55: Takapuna / Hillcrest | D55: 70 | E55: 70 | F55: 70 | G55: 70 | H55: 70 | I55: 70 | J55: 70 | K55: 70 | L55: 70 | M55: 70 | N55: 70 | O55: 70 | P55: 70 | Q55: 70 | R55: 70 | S55: 70 | T55: 70 | U55: 70 | V55: 70 | W55: 70 | X55: 70 | Y55: 70 | Z55: 70 | AA55: 70 | AB55: 70 | AC55: 70 | AD55: 70 | AE55: 70 | AF55: 70 | AG55: 70 | AH55: 70
A56: n23a & b | B56: Outbound | C56: Takapuna / Hillcrest | D56: 70 | E56: 70 | F56: 70 | G56: 70 | H56: 70 | I56: 70 | J56: 70 | K56: 70 | L56: 70 | M56: 70 | N56: 70 | O56: 70 | P56: 70 | Q56: 70 | R56: 70 | S56: 70 | T56: 70 | U56: 70 | V56: 70 | W56: 70 | X56: 70 | Y56: 70 | Z56: 70 | AA56: 70 | AB56: 70 | AC56: 70 | AD56: 70 | AE56: 70 | AF56: 70 | AG56: 70 | AH56: 70
A57: n11 | B57: Inbound | C57: North Shore peak | D57: 55 | E57: 55 | F57: 55 | G57: 55 | H57: 55 | I57: 55 | J57: 55 | K57: 55 | L57: 55 | M57: 55 | N57: 55 | O57: 55 | P57: 55 | Q57: 55 | R57: 55 | S57: 55 | T57: 55 | U57: 55 | V57: 55 | W57: 55 | X57: 55 | Y57: 55 | Z57: 55 | AA57: 55 | AB57: 55 | AC57: 55 | AD57: 55 | AE57: 55 | AF57: 55 | AG57: 55 | AH57: 55
A58: n8a & b | B58: Inbound | C58: Onewa Road | D58: 88 | E58: 90 | F58: 92.22222222 | G58: 95 | H58: 95 | I58: 95 | J58: 97 | K58: 99 | L58: 102 | M58: 104 | N58: 106 | O58: 108 | P58: 110 | Q58: 110 | R58: 110 | S58: 110 | T58: 110 | U58: 110 | V58: 110 | W58: 110 | X58: 110 | Y58: 110 | Z58: 110 | AA58: 110 | AB58: 110 | AC58: 110 | AD58: 110 | AE58: 110 | AF58: 110 | AG58: 110 | AH58: 110
A59: n8a & b | B59: Outbound | C59: Onewa Road | D59: 110 | E59: 110 | F59: 110 | G59: 110 | H59: 110 | I59: 110 | J59: 110 | K59: 110 | L59: 110 | M59: 110 | N59: 110 | O59: 110 | P59: 110 | Q59: 110 | R59: 110 | S59: 110 | T59: 110 | U59: 110 | V59: 110 | W59: 110 | X59: 110 | Y59: 110 | Z59: 110 | AA59: 110 | AB59: 110 | AC59: 110 | AD59: 110 | AE59: 110 | AF59: 110 | AG59: 110 | AH59: 110
A60: n81 | B60: Inbound | C60: North Shore peak | D60: 70 | E60: 70 | F60: 70 | G60: 70 | H60: 70 | I60: 70 | J60: 70 | K60: 70 | L60: 70 | M60: 70 | N60: 70 | O60: 70 | P60: 70 | Q60: 70 | R60: 70 | S60: 70 | T60: 70 | U60: 70 | V60: 70 | W60: 70 | X60: 70 | Y60: 70 | Z60: 70 | AA60: 70 | AB60: 70 | AC60: 70 | AD60: 70 | AE60: 70 | AF60: 70 | AG60: 70 | AH60: 70
A61: n9a & b | B61: Inbound | C61: Onewa Road | D61: 92 | E61: 94 | F61: 95 | G61: 97 | H61: 97 | I61: 97 | J61: 99 | K61: 101 | L61: 103 | M61: 105 | N61: 107 | O61: 109 | P61: 110 | Q61: 110 | R61: 110 | S61: 110 | T61: 110 | U61: 110 | V61: 110 | W61: 110 | X61: 110 | Y61: 110 | Z61: 110 | AA61: 110 | AB61: 110 | AC61: 110 | AD61: 110 | AE61: 110 | AF61: 110 | AG61: 110 | AH61: 110
A62: n9a & b | B62: Outbound | C62: Onewa Road | D62: 110 | E62: 110 | F62: 110 | G62: 110 | H62: 110 | I62: 110 | J62: 110 | K62: 110 | L62: 110 | M62: 110 | N62: 110 | O62: 110 | P62: 110 | Q62: 110 | R62: 110 | S62: 110 | T62: 110 | U62: 110 | V62: 110 | W62: 110 | X62: 110 | Y62: 110 | Z62: 110 | AA62: 110 | AB62: 110 | AC62: 110 | AD62: 110 | AE62: 110 | AF62: 110 | AG62: 110 | AH62: 110
A63: n91 | B63: Inbound | C63: North Shore peak | D63: 70 | E63: 70 | F63: 70 | G63: 70 | H63: 70 | I63: 70 | J63: 70 | K63: 70 | L63: 70 | M63: 70 | N63: 70 | O63: 70 | P63: 70 | Q63: 70 | R63: 70 | S63: 70 | T63: 70 | U63: 70 | V63: 70 | W63: 70 | X63: 70 | Y63: 70 | Z63: 70 | AA63: 70 | AB63: 70 | AC63: 70 | AD63: 70 | AE63: 70 | AF63: 70 | AG63: 70 | AH63: 70
A64: n92 | B64: Inbound | C64: North Shore peak | D64: 70 | E64: 70 | F64: 70 | G64: 70 | H64: 70 | I64: 70 | J64: 70 | K64: 70 | L64: 70 | M64: 70 | N64: 70 | O64: 70 | P64: 70 | Q64: 70 | R64: 70 | S64: 70 | T64: 70 | U64: 70 | V64: 70 | W64: 70 | X64: 70 | Y64: 70 | Z64: 70 | AA64: 70 | AB64: 70 | AC64: 70 | AD64: 70 | AE64: 70 | AF64: 70 | AG64: 70 | AH64: 70
A65: n93 | B65: Inbound | C65: Onewa Road | D65: 70 | E65: 70 | F65: 70 | G65: 70 | H65: 70 | I65: 70 | J65: 70 | K65: 70 | L65: 70 | M65: 70 | N65: 70 | O65: 70 | P65: 70 | Q65: 70 | R65: 70 | S65: 70 | T65: 70 | U65: 70 | V65: 70 | W65: 70 | X65: 70 | Y65: 70 | Z65: 70 | AA65: 70 | AB65: 70 | AC65: 70 | AD65: 70 | AE65: 70 | AF65: 70 | AG65: 70 | AH65: 70
A66: n93 | B66: Outbound | C66: Onewa Road | D66: 70 | E66: 70 | F66: 70 | G66: 70 | H66: 70 | I66: 70 | J66: 70 | K66: 70 | L66: 70 | M66: 70 | N66: 70 | O66: 70 | P66: 70 | Q66: 70 | R66: 70 | S66: 70 | T66: 70 | U66: 70 | V66: 70 | W66: 70 | X66: 70 | Y66: 70 | Z66: 70 | AA66: 70 | AB66: 70 | AC66: 70 | AD66: 70 | AE66: 70 | AF66: 70 | AG66: 70 | AH66: 70
A67: 110 | B67: Inbound | C67: Westgate | D67: 110 | E67: 110 | F67: 110 | G67: 110 | H67: 110 | I67: 110 | J67: 110 | K67: 110 | L67: 110 | M67: 110 | N67: 110 | O67: 110 | P67: 110 | Q67: 110 | R67: 110 | S67: 110 | T67: 110 | U67: 110 | V67: 110 | W67: 110 | X67: 110 | Y67: 110 | Z67: 110 | AA67: 110 | AB67: 110 | AC67: 110 | AD67: 110 | AE67: 110 | AF67: 110 | AG67: 110 | AH67: 110
A68: 110 | B68: Outbound | C68: Westgate | D68: 110 | E68: 110 | F68: 110 | G68: 110 | H68: 110 | I68: 110 | J68: 110 | K68: 110 | L68: 110 | M68: 110 | N68: 110 | O68: 110 | P68: 110 | Q68: 110 | R68: 110 | S68: 110 | T68: 110 | U68: 110 | V68: 110 | W68: 110 | X68: 110 | Y68: 110 | Z68: 110 | AA68: 110 | AB68: 110 | AC68: 110 | AD68: 110 | AE68: 110 | AF68: 110 | AG68: 110 | AH68: 110
A69: 125X | B69: Inbound | C69: Westgate | D69: 70 | E69: 70 | F69: 70 | G69: 75 | H69: 75 | I69: 75 | J69: 80 | K69: 85 | L69: 90 | M69: 95 | N69: 100 | O69: 105 | P69: 110 | Q69: 110 | R69: 110 | S69: 110 | T69: 110 | U69: 110 | V69: 110 | W69: 110 | X69: 110 | Y69: 110 | Z69: 110 | AA69: 110 | AB69: 110 | AC69: 110 | AD69: 110 | AE69: 110 | AF69: 110 | AG69: 110 | AH69: 110
A70: 129 | B70: Inbound | C70: Massey West | D70: 70 | E70: 70 | F70: 70 | G70: 70 | H70: 70 | I70: 70 | J70: 70 | K70: 70 | L70: 70 | M70: 70 | N70: 70 | O70: 70 | P70: 70 | Q70: 70 | R70: 70 | S70: 70 | T70: 70 | U70: 70 | V70: 70 | W70: 70 | X70: 70 | Y70: 70 | Z70: 70 | AA70: 70 | AB70: 70 | AC70: 70 | AD70: 70 | AE70: 70 | AF70: 70 | AG70: 70 | AH70: 70
A71: Red Hills | B71: Inbound | C71: Red Hills | D71: 70 | E71: 70 | F71: 70 | G71: 70 | H71: 70 | I71: 70 | J71: 70 | K71: 70 | L71: 70 | M71: 70 | N71: 70 | O71: 70 | P71: 70 | Q71: 70 | R71: 70 | S71: 70 | T71: 70 | U71: 70 | V71: 70 | W71: 70 | X71: 70 | Y71: 70 | Z71: 70 | AA71: 70 | AB71: 70 | AC71: 70 | AD71: 70 | AE71: 70 | AF71: 70 | AG71: 70 | AH71: 70
A72: 132X | B72: Inbound | C72: Te Atatu Peninsula | D72: 70 | E72: 70 | F72: 70 | G72: 70 | H72: 70 | I72: 70 | J72: 70 | K72: 70 | L72: 70 | M72: 70 | N72: 70 | O72: 70 | P72: 70 | Q72: 70 | R72: 70 | S72: 70 | T72: 70 | U72: 70 | V72: 70 | W72: 70 | X72: 70 | Y72: 70 | Z72: 70 | AA72: 70 | AB72: 70 | AC72: 70 | AD72: 70 | AE72: 70 | AF72: 70 | AG72: 70 | AH72: 70
A73: 133X | B73: Inbound | C73: Henderson | D73: 70 | E73: 70 | F73: 70 | G73: 70 | H73: 70 | I73: 70 | J73: 70 | K73: 70 | L73: 70 | M73: 70 | N73: 70 | O73: 70 | P73: 70 | Q73: 70 | R73: 70 | S73: 70 | T73: 70 | U73: 70 | V73: 70 | W73: 70 | X73: 70 | Y73: 70 | Z73: 70 | AA73: 70 | AB73: 70 | AC73: 70 | AD73: 70 | AE73: 70 | AF73: 70 | AG73: 70 | AH73: 70
A74: 151X | B74: Inbound | C74: West Express | D74: 70 | E74: 70 | F74: 70 | G74: 70 | H74: 70 | I74: 70 | J74: 70 | K74: 70 | L74: 70 | M74: 70 | N74: 70 | O74: 70 | P74: 70 | Q74: 70 | R74: 70 | S74: 70 | T74: 70 | U74: 70 | V74: 70 | W74: 70 | X74: 70 | Y74: 70 | Z74: 70 | AA74: 70 | AB74: 70 | AC74: 70 | AD74: 70 | AE74: 70 | AF74: 70 | AG74: 70 | AH74: 70
A75: 171X & 172X | B75: Inbound | C75: West Express | D75: 70 | E75: 70 | F75: 70 | G75: 70 | H75: 70 | I75: 70 | J75: 70 | K75: 70 | L75: 70 | M75: 70 | N75: 70 | O75: 70 | P75: 70 | Q75: 70 | R75: 70 | S75: 70 | T75: 70 | U75: 70 | V75: 70 | W75: 70 | X75: 70 | Y75: 70 | Z75: 70 | AA75: 70 | AB75: 70 | AC75: 70 | AD75: 70 | AE75: 70 | AF75: 70 | AG75: 70 | AH75: 70
A76: 195 | B76: Inbound | C76: Great North Road | D76: 70 | E76: 70 | F76: 70 | G76: 70 | H76: 70 | I76: 70 | J76: 70 | K76: 70 | L76: 70 | M76: 70 | N76: 70 | O76: 70 | P76: 70 | Q76: 70 | R76: 70 | S76: 70 | T76: 70 | U76: 70 | V76: 70 | W76: 70 | X76: 70 | Y76: 70 | Z76: 70 | AA76: 70 | AB76: 70 | AC76: 70 | AD76: 70 | AE76: 70 | AF76: 70 | AG76: 70 | AH76: 70
A77: 195 | B77: Outbound | C77: Great North Road | D77: 70 | E77: 70 | F77: 70 | G77: 70 | H77: 70 | I77: 70 | J77: 70 | K77: 70 | L77: 70 | M77: 70 | N77: 70 | O77: 70 | P77: 70 | Q77: 70 | R77: 70 | S77: 70 | T77: 70 | U77: 70 | V77: 70 | W77: 70 | X77: 70 | Y77: 70 | Z77: 70 | AA77: 70 | AB77: 70 | AC77: 70 | AD77: 70 | AE77: 70 | AF77: 70 | AG77: 70 | AH77: 70
A78: 209 | B78: Inbound | C78: Green Bay | D78: 70 | E78: 70 | F78: 70 | G78: 70 | H78: 70 | I78: 70 | J78: 70 | K78: 70 | L78: 70 | M78: 70 | N78: 70 | O78: 70 | P78: 70 | Q78: 70 | R78: 70 | S78: 70 | T78: 70 | U78: 70 | V78: 70 | W78: 70 | X78: 70 | Y78: 70 | Z78: 70 | AA78: 70 | AB78: 70 | AC78: 70 | AD78: 70 | AE78: 70 | AF78: 70 | AG78: 70 | AH78: 70

Sheet Routes - Corridors
C1: Corridor Name | D1: Anzac Ave | E1: Anzac Ave | F1: Symonds Street (Anzac to Wellesley) | G1: Symonds Street (Anzac to Wellesley) | H1: Symonds Street (Wellesley to K Rd) | I1: Symonds Street (Wellesley to K Rd) | J1: Symonds Street (Wellesley to K Rd) | K1: Symonds Street (Wellesley to K Rd) | L1: Symonds Street Upper | M1: Symonds Street Upper | N1: Wellesley Street | O1: Wellesley Street | P1: Wellesley Street | Q1: Wellesley Street | R1: Wellesley Street | S1: Wellesley Street | T1: Fanshawe Street (Halsey to Albert) | U1: Fanshawe Street (Halsey to Albert) | V1: Fanshawe Street (Halsey to Albert) | W1: Fanshawe Street (Halsey to Albert) | X1: Fanshawe Street (Victoria Park) | Y1: Fanshawe Street (Victoria Park) | Z1: Fanshawe Street (Victoria Park) | AA1: Fanshawe Street (Victoria Park) | AB1: Fanshawe Street (Victoria Park) | AC1: Fanshawe Street (Victoria Park) | AD1: Queen Street (Customs to Mayoral) | AE1: Queen Street (Customs to Mayoral) | AF1: Queen Street (Mayoral to K Rd) | AG1: Queen Street (Mayoral to K Rd) | AH1: Albert Street | AI1: Albert Street | AJ1: Beach Road | AK1: Beach Road | AL1: Victoria Street | AM1: Victoria Street | AN1: College Hill | AO1: College Hill | AP1: Beaumont Street | AQ1: Beaumont Street | AR1: K Road (Pitt to Ponsonby) | AS1: K Road (Pitt to Ponsonby) | AT1: K Road (Queen to Symonds) | AU1: K Road (Queen to Symonds) | AV1: K Road (Pitt to Queen) | AW1: K Road (Pitt to Queen) | AX1: Pitt Street | AY1: Pitt Street | AZ1: Great North Road | BA1: Great North Road | BB1: Grafton Bridge | BC1: Grafton Bridge | BD1: Grafton Bridge | BE1: Grafton Bridge | BF1: Park Road | BG1: Park Road | BH1: Park Road | BI1: Park Road | BJ1: Khyber Pass | BK1: Khyber Pass | BL1: Grafton Road | BM1: Grafton Road
C2: Direction | D2: North | E2: South | F2: North | G2: South | H2: North | I2: North | J2: South | K2: South | L2: North | M2: South | N2: East | O2: East | P2: East | Q2: West | R2: West | S2: West | T2: East | U2: East | V2: West | W2: West | X2: East | Y2: East | Z2: East | AA2: West | AB2: West | AC2: West | AD2: North | AE2: South | AF2: North | AG2: South | AH2: North | AI2: South | AJ2: East | AK2: West | AL2: East | AM2: West | AN2: East | AO2: West | AP2: North | AQ2: South | AR2: East | AS2: West | AT2: East | AU2: West | AV2: East | AW2: West | AX2: North | AY2: South | AZ2: East | BA2: West | BB2: East | BC2: East | BD2: West | BE2: West | BF2: East | BG2: East | BH2: West | BI2: West | BJ2: East | BK2: West | BL2: North | BM2: South
A3: Route Name | B3: Direction | C3: Group | D3: All routes | E3: All routes | F3: All routes | G3: All routes | H3: Britomart-bound | I3: Wynyard-bound | J3: Grafton | K3: Upper Symonds | L3: All routes | M3: All routes | N3: North Shore | O3: Isthmus | P3: Crosstown | Q3: North Shore | R3: Isthmus | S3: Crosstown | T3: North Shore to Britomart | U3: Link | V3: North Shore | W3: Link | X3: NS to Britomart | Y3: NS to University | Z3: Isthmus/Link | AA3: NEX | AB3: Isthmus/Link | AC3: North Shore | AD3: All routes | AE3: All routes | AF3: All routes | AG3: All routes | AH3: All routes | AI3: All routes | AJ3: All routes | AK3: All routes | AL3: All routes | AM3: All routes | AN3: All routes | AO3: All routes | AP3: All routes | AQ3: All routes | AR3: All routes | AS3: All routes | AT3: All routes | AU3: All routes | AV3: All routes | AW3: All routes | AX3: All routes | AY3: All routes | AZ3: All routes | BA3: All routes | BB3: Other | BC3: To 277 | BD3: Britomart-bound | BE3: Wynyard/Ponsonby | BF3: Other | BG3: To 277 | BH3: Britomart-bound | BI3: Wynyard/Ponsonby | BJ3: All routes | BK3: All routes | BL3: All routes | BM3: All routes
A4: Airbus | B4: Inbound | C4: Airbus | D4: No | E4: No | F4: No | G4: No | H4: No | I4: No | J4: No | K4: No | L4: No | M4: No | N4: No | O4: No | P4: No | Q4: No | R4: No | S4: No | T4: No | U4: No | V4: No | W4: No | X4: No | Y4: No | Z4: No | AA4: No | AB4: No | AC4: No | AD4: Yes | AE4: No | AF4: Yes | AG4: No | AH4: No | AI4: No | AJ4: No | AK4: No | AL4: No | AM4: No | AN4: No | AO4: No | AP4: No | AQ4: No | AR4: No | AS4: No | AT4: No | AU4: No | AV4: No | AW4: No | AX4: No | AY4: No | AZ4: No | BA4: No | BB4: No | BC4: No | BD4: No | BE4: No | BF4: No | BG4: No | BH4: No | BI4: No | BJ4: No | BK4: No | BL4: No | BM4: No
A5: Airbus | B5: Outbound | C5: Airbus | D5: No | E5: No | F5: No | G5: No | H5: No | I5: No | J5: No | K5: No | L5: No | M5: No | N5: No | O5: No | P5: No | Q5: No | R5: No | S5: No | T5: No | U5: No | V5: No | W5: No | X5: No | Y5: No | Z5: No | AA5: No | AB5: No | AC5: No | AD5: No | AE5: Yes | AF5: No | AG5: Yes | AH5: No | AI5: No | AJ5: No | AK5: No | AL5: No | AM5: No | AN5: No | AO5: No | AP5: No | AQ5: No | AR5: No | AS5: No | AT5: No | AU5: No | AV5: No | AW5: No | AX5: No | AY5: No | AZ5: No | BA5: No | BB5: No | BC5: No | BD5: No | BE5: No | BF5: No | BG5: No | BH5: No | BI5: No | BJ5: No | BK5: No | BL5: No | BM5: No
A6: City Link | B6: Inbound | C6: City Link | D6: No | E6: No | F6: No | G6: No | H6: No | I6: No | J6: No | K6: No | L6: No | M6: No | N6: No | O6: No | P6: No | Q6: No | R6: No | S6: No | T6: No | U6: Yes | V6: No | W6: Yes | X6: No | Y6: No | Z6: Yes | AA6: No | AB6: Yes | AC6: No | AD6: Yes | AE6: Yes | AF6: Yes | AG6: Yes | AH6: No | AI6: No | AJ6: No | AK6: No | AL6: No | AM6: No | AN6: No | AO6: No | AP6: No | AQ6: No | AR6: No | AS6: No | AT6: No | AU6: No | AV6: Yes | AW6: No | AX6: No | AY6: Yes | AZ6: No | BA6: No | BB6: No | BC6: No | BD6: No | BE6: No | BF6: No | BG6: No | BH6: No | BI6: No | BJ6: No | BK6: No | BL6: No | BM6: No
A7: Inner Link | B7: Inbound | C7: Inner Link | D7: No | E7: No | F7: No | G7: No | H7: No | I7: No | J7: No | K7: No | L7: No | M7: No | N7: No | O7: No | P7: No | Q7: No | R7: No | S7: No | T7: No | U7: Yes | V7: No | W7: No | X7: No | Y7: No | Z7: Yes | AA7: No | AB7: No | AC7: No | AD7: No | AE7: No | AF7: No | AG7: No | AH7: No | AI7: No | AJ7: Yes | AK7: No | AL7: No | AM7: No | AN7: Yes | AO7: No | AP7: Yes | AQ7: No | AR7: No | AS7: Yes | AT7: No | AU7: Yes | AV7: No | AW7: Yes | AX7: No | AY7: No | AZ7: No | BA7: No | BB7: No | BC7: No | BD7: Yes | BE7: No | BF7: No | BG7: No | BH7: Yes | BI7: No | BJ7: No | BK7: No | BL7: No | BM7: No
A8: Inner Link | B8: Outbound | C8: Inner Link | D8: No | E8: No | F8: No | G8: No | H8: No | I8: No | J8: No | K8: No | L8: No | M8: No | N8: No | O8: No | P8: No | Q8: No | R8: No | S8: No | T8: No | U8: No | V8: No | W8: Yes | X8: No | Y8: No | Z8: No | AA8: No | AB8: Yes | AC8: No | AD8: No | AE8: No | AF8: No | AG8: No | AH8: No | AI8: No | AJ8: No | AK8: Yes | AL8: No | AM8: No | AN8: No | AO8: Yes | AP8: No | AQ8: Yes | AR8: Yes | AS8: No | AT8: Yes | AU8: No | AV8: Yes | AW8: No | AX8: No | AY8: No | AZ8: No | BA8: No | BB8: No | BC8: Yes | BD8: No | BE8: No | BF8: No | BG8: Yes | BH8: No | BI8: No | BJ8: No | BK8: No | BL8: No | BM8: No
A9: Crosstown 4 peak | B9: Inbound | C9: Manukau Road | D9: No | E9: No | F9: No | G9: No | H9: No | I9: No | J9: No | K9: No | L9: No | M9: No | N9: No | O9: No | P9: No | Q9: No | R9: No | S9: Yes | T9: No | U9: No | V9: No | W9: No | X9: No | Y9: No | Z9: No | AA9: No | AB9: No | AC9: No | AD9: No | AE9: No | AF9: No | AG9: No | AH9: No | AI9: No | AJ9: No | AK9: No | AL9: No | AM9: Yes | AN9: No | AO9: No | AP9: No | AQ9: No | AR9: No | AS9: No | AT9: No | AU9: No | AV9: No | AW9: No | AX9: No | AY9: No | AZ9: No | BA9: No | BB9: No | BC9: No | BD9: No | BE9: No | BF9: No | BG9: No | BH9: No | BI9: No | BJ9: No | BK9: No | BL9: Yes | BM9: No
A10: Crosstown 4 | B10: Inbound | C10: Manukau Road / Jervois Road | D10: No | E10: No | F10: No | G10: No | H10: No | I10: No | J10: No | K10: No | L10: No | M10: No | N10: No | O10: No | P10: No | Q10: No | R10: No | S10: Yes | T10: No | U10: No | V10: No | W10: No | X10: No | Y10: No | Z10: No | AA10: No | AB10: No | AC10: No | AD10: No | AE10: No | AF10: No | AG10: No | AH10: No | AI10: No | AJ10: No | AK10: No | AL10: No | AM10: Yes | AN10: Yes | AO10: No | AP10: No | AQ10: No | AR10: No | AS10: No | AT10: No | AU10: No | AV10: No | AW10: No | AX10: No | AY10: No | AZ10: No | BA10: No | BB10: No | BC10: No | BD10: No | BE10: No | BF10: No | BG10: No | BH10: No | BI10: No | BJ10: No | BK10: No | BL10: Yes | BM10: No
A11: Crosstown 4 | B11: Outbound | C11: Manukau Road / Jervois Road | D11: No | E11: No | F11: No | G11: No | H11: No | I11: No | J11: No | K11: No | L11: No | M11: No | N11: No | O11: No | P11: Yes | Q11: No | R11: No | S11: No | T11: No | U11: No | V11: No | W11: No | X11: No | Y11: No | Z11: No | AA11: No | AB11: No | AC11: No | AD11: No | AE11: No | AF11: No | AG11: No | AH11: No | AI11: No | AJ11: No | AK11: No | AL11: Yes | AM11: No | AN11: No | AO11: Yes | AP11: No | AQ11: No | AR11: No | AS11: No | AT11: No | AU11: No | AV11: No | AW11: No | AX11: No | AY11: No | AZ11: No | BA11: No | BB11: No | BC11: No | BD11: No | BE11: No | BF11: No | BG11: No | BH11: No | BI11: No | BJ11: No | BK11: No | BL11: No | BM11: Yes
A12: 309 & 309X | B12: Inbound | C12: Manukau Road | D12: No | E12: No | F12: No | G12: No | H12: No | I12: Yes | J12: No | K12: No | L12: No | M12: No | N12: No | O12: No | P12: No | Q12: No | R12: Yes | S12: No | T12: No | U12: No | V12: No | W12: No | X12: No | Y12: No | Z12: No | AA12: No | AB12: Yes | AC12: No | AD12: No | AE12: No | AF12: No | AG12: No | AH12: No | AI12: No | AJ12: No | AK12: No | AL12: No | AM12: No | AN12: No | AO12: No | AP12: No | AQ12: No | AR12: No | AS12: No | AT12: No | AU12: No | AV12: No | AW12: No | AX12: No | AY12: No | AZ12: No | BA12: No | BB12: No | BC12: No | BD12: No | BE12: Yes | BF12: No | BG12: No | BH12: No | BI12: Yes | BJ12: No | BK12: No | BL12: No | BM12: No
A13: 309 & 309X | B13: Outbound | C13: Manukau Road | D13: No | E13: No | F13: No | G13: No | H13: No | I13: No | J13: Yes | K13: No | L13: No | M13: No | N13: No | O13: Yes | P13: No | Q13: No | R13: No | S13: No | T13: No | U13: No | V13: No | W13: No | X13: No | Y13: No | Z13: Yes | AA13: No | AB13: No | AC13: No | AD13: No | AE13: No | AF13: No | AG13: No | AH13: No | AI13: No | AJ13: No | AK13: No | AL13: No | AM13: No | AN13: No | AO13: No | AP13: No | AQ13: No | AR13: No | AS13: No | AT13: No | AU13: No | AV13: No | AW13: No | AX13: No | AY13: No | AZ13: No | BA13: No | BB13: No | BC13: Yes | BD13: No | BE13: No | BF13: No | BG13: Yes | BH13: No | BI13: No | BJ13: No | BK13: No | BL13: No | BM13: No
A14: 101 | B14: Inbound | C14: Jervois Road | D14: No | E14: No | F14: No | G14: No | H14: No | I14: No | J14: No | K14: No | L14: No | M14: No | N14: No | O14: No | P14: Yes | Q14: No | R14: No | S14: No | T14: No | U14: No | V14: No | W14: No | X14: No | Y14: No | Z14: No | AA14: No | AB14: No | AC14: No | AD14: No | AE14: No | AF14: No | AG14: No | AH14: No | AI14: No | AJ14: No | AK14: No | AL14: Yes | AM14: No | AN14: Yes | AO14: No | AP14: No | AQ14: No | AR14: No | AS14: No | AT14: No | AU14: No | AV14: No | AW14: No | AX14: No | AY14: No | AZ14: No | BA14: No | BB14: No | BC14: No | BD14: No | BE14: No | BF14: No | BG14: No | BH14: No | BI14: No | BJ14: No | BK14: No | BL14: No | BM14: No
A15: 105 | B15: Inbound | C15: Richmond Road | D15: No | E15: No | F15: No | G15: No | H15: No | I15: No | J15: No | K15: No | L15: No | M15: No | N15: No | O15: No | P15: No | Q15: No | R15: No | S15: No | T15: No | U15: No | V15: No | W15: No | X15: No | Y15: No | Z15: No | AA15: No | AB15: No | AC15: No | AD15: No | AE15: No | AF15: No | AG15: No | AH15: Yes | AI15: No | AJ15: No | AK15: No | AL15: No | AM15: No | AN15: No | AO15: No | AP15: No | AQ15: No | AR15: No | AS15: No | AT15: No | AU15: No | AV15: No | AW15: No | AX15: Yes | AY15: No | AZ15: No | BA15: No | BB15: No | BC15: No | BD15: No | BE15: No | BF15: No | BG15: No | BH15: No | BI15: No | BJ15: No | BK15: No | BL15: No | BM15: No
A16: 105 | B16: Outbound | C16: Richmond Road | D16: No | E16: No | F16: No | G16: No | H16: No | I16: No | J16: No | K16: No | L16: No | M16: No | N16: No | O16: No | P16: No | Q16: No | R16: No | S16: No | T16: No | U16: No | V16: No | W16: No | X16: No | Y16: No | Z16: No | AA16: No | AB16: No | AC16: No | AD16: No | AE16: No | AF16: No | AG16: No | AH16: No | AI16: Yes | AJ16: No | AK16: No | AL16: No | AM16: No | AN16: No | AO16: No | AP16: No | AQ16: No | AR16: No | AS16: No | AT16: No | AU16: No | AV16: No | AW16: No | AX16: No | AY16: Yes | AZ16: No | BA16: No | BB16: No | BC16: No | BD16: No | BE16: No | BF16: No | BG16: No | BH16: No | BI16: No | BJ16: No | BK16: No | BL16: No | BM16: No
A17: 106 | B17: Inbound | C17: Freemans Bay | D17: No | E17: No | F17: No | G17: No | H17: No | I17: No | J17: No | K17: No | L17: No | M17: No | N17: No | O17: No | P17: No | Q17: No | R17: No | S17: No | T17: No | U17: No | V17: No | W17: No | X17: No | Y17: No | Z17: No | AA17: No | AB17: No | AC17: No | AD17: No | AE17: No | AF17: No | AG17: No | AH17: No | AI17: No | AJ17: No | AK17: No | AL17: No | AM17: No | AN17: No | AO17: No | AP17: No | AQ17: No | AR17: Yes | AS17: No | AT17: No | AU17: No | AV17: No | AW17: No | AX17: Yes | AY17: No | AZ17: No | BA17: No | BB17: No | BC17: No | BD17: No | BE17: No | BF17: No | BG17: No | BH17: No | BI17: No | BJ17: No | BK17: No | BL17: No | BM17: No
A18: 106 | B18: Outbound | C18: Freemans Bay | D18: No | E18: No | F18: No | G18: No | H18: No | I18: No | J18: No | K18: No | L18: No | M18: No | N18: No | O18: No | P18: No | Q18: No | R18: No | S18: No | T18: No | U18: No | V18: No | W18: No | X18: No | Y18: No | Z18: No | AA18: No | AB18: No | AC18: No | AD18: No | AE18: No | AF18: No | AG18: No | AH18: No | AI18: No | AJ18: No | AK18: No | AL18: No | AM18: No | AN18: No | AO18: No | AP18: No | AQ18: No | AR18: No | AS18: No | AT18: No | AU18: No | AV18: No | AW18: No | AX18: No | AY18: No | AZ18: No | BA18: No | BB18: No | BC18: No | BD18: No | BE18: No | BF18: No | BG18: No | BH18: No | BI18: No | BJ18: No | BK18: No | BL18: No | BM18: No
A19: Crosstown 5 | B19: Inbound | C19: Mount Eden Crosstown | D19: No | E19: No | F19: No | G19: No | H19: No | I19: No | J19: No | K19: No | L19: No | M19: No | N19: No | O19: No | P19: No | Q19: No | R19: No | S19: No | T19: No | U19: No | V19: No | W19: No | X19: No | Y19: No | Z19: No | AA19: No | AB19: No | AC19: No | AD19: No | AE19: No | AF19: No | AG19: No | AH19: No | AI19: No | AJ19: No | AK19: No | AL19: No | AM19: No | AN19: Yes | AO19: No | AP19: Yes | AQ19: No | AR19: No | AS19: No | AT19: No | AU19: No | AV19: No | AW19: No | AX19: No | AY19: No | AZ19: No | BA19: No | BB19: No | BC19: No | BD19: No | BE19: No | BF19: No | BG19: No | BH19: No | BI19: No | BJ19: No | BK19: No | BL19: No | BM19: No
A20: Crosstown 5 | B20: Outbound | C20: Mount Eden Crosstown | D20: No | E20: No | F20: No | G20: No | H20: No | I20: No | J20: No | K20: No | L20: No | M20: No | N20: No | O20: No | P20: No | Q20: No | R20: No | S20: No | T20: No | U20: No | V20: No | W20: No | X20: No | Y20: No | Z20: No | AA20: No | AB20: No | AC20: No | AD20: No | AE20: No | AF20: No | AG20: No | AH20: No | AI20: No | AJ20: No | AK20: No | AL20: No | AM20: No | AN20: No | AO20: Yes | AP20: No | AQ20: Yes | AR20: No | AS20: No | AT20: No | AU20: No | AV20: No | AW20: No | AX20: No | AY20: No | AZ20: No | BA20: No | BB20: No | BC20: No | BD20: No | BE20: No | BF20: No | BG20: No | BH20: No | BI20: No | BJ20: No | BK20: No | BL20: No | BM20: No
A21: 18 | B21: Inbound | C21: Great North Road | D21: No | E21: No | F21: No | G21: No | H21: No | I21: No | J21: No | K21: No | L21: No | M21: No | N21: No | O21: No | P21: No | Q21: No | R21: No | S21: No | T21: No | U21: No | V21: No | W21: No | X21: No | Y21: No | Z21: No | AA21: No | AB21: No | AC21: No | AD21: No | AE21: No | AF21: No | AG21: No | AH21: Yes | AI21: No | AJ21: No | AK21: No | AL21: No | AM21: No | AN21: No | AO21: No | AP21: No | AQ21: No | AR21: Yes | AS21: No | AT21: No | AU21: No | AV21: No | AW21: No | AX21: Yes | AY21: No | AZ21: Yes | BA21: No | BB21: No | BC21: No | BD21: No | BE21: No | BF21: No | BG21: No | BH21: No | BI21: No | BJ21: No | BK21: No | BL21: No | BM21: No
A22: 18 | B22: Outbound | C22: Great North Road | D22: No | E22: No | F22: No | G22: No | H22: No | I22: No | J22: No | K22: No | L22: No | M22: No | N22: No | O22: No | P22: No | Q22: No | R22: No | S22: No | T22: No | U22: No | V22: No | W22: No | X22: No | Y22: No | Z22: No | AA22: No | AB22: No | AC22: No | AD22: No | AE22: No | AF22: No | AG22: No | AH22: No | AI22: Yes | AJ22: No | AK22: No | AL22: No | AM22: No | AN22: No | AO22: No | AP22: No | AQ22: No | AR22: No | AS22: Yes | AT22: No | AU22: No | AV22: No | AW22: No | AX22: No | AY22: Yes | AZ22: No | BA22: Yes | BB22: No | BC22: No | BD22: No | BE22: No | BF22: No | BG22: No | BH22: No | BI22: No | BJ22: No | BK22: No | BL22: No | BM22: No
A23: 22a & b | B23: Inbound | C23: New North Road | D23: No | E23: No | F23: No | G23: No | H23: No | I23: Yes | J23: No | K23: No | L23: Yes | M23: No | N23: No | O23: No | P23: No | Q23: No | R23: Yes | S23: No | T23: No | U23: No | V23: No | W23: No | X23: No | Y23: No | Z23: No | AA23: No | AB23: Yes | AC23: No | AD23: No | AE23: No | AF23: No | AG23: No | AH23: No | AI23: No | AJ23: No | AK23: No | AL23: No | AM23: No | AN23: No | AO23: No | AP23: No | AQ23: No | AR23: No | AS23: No | AT23: No | AU23: No | AV23: No | AW23: No | AX23: No | AY23: No | AZ23: No | BA23: No | BB23: No | BC23: No | BD23: No | BE23: No | BF23: No | BG23: No | BH23: No | BI23: No | BJ23: No | BK23: No | BL23: No | BM23: No
A24: 22a & b | B24: Outbound | C24: New North Road | D24: No | E24: No | F24: No | G24: No | H24: No | I24: No | J24: No | K24: Yes | L24: No | M24: Yes | N24: No | O24: Yes | P24: No | Q24: No | R24: No | S24: No | T24: No | U24: No | V24: No | W24: No | X24: No | Y24: No | Z24: Yes | AA24: No | AB24: No | AC24: No | AD24: No | AE24: No | AF24: No | AG24: No | AH24: No | AI24: No | AJ24: No | AK24: No | AL24: No | AM24: No | AN24: No | AO24: No | AP24: No | AQ24: No | AR24: No | AS24: No | AT24: No | AU24: No | AV24: No | AW24: No | AX24: No | AY24: No | AZ24: No | BA24: No | BB24: No | BC24: No | BD24: No | BE24: No | BF24: No | BG24: No | BH24: No | BI24: No | BJ24: No | BK24: No | BL24: No | BM24: No
A25: 24a & b | B25: Inbound | C25: Sandringham Road | D25: No | E25: No | F25: No | G25: No | H25: No | I25: Yes | J25: No | K25: No | L25: Yes | M25: No | N25: No | O25: No | P25: No | Q25: No | R25: Yes | S25: No | T25: No | U25: No | V25: No | W25: No | X25: No | Y25: No | Z25: No | AA25: No | AB25: Yes | AC25: No | AD25: No | AE25: No | AF25: No | AG25: No | AH25: No | AI25: No | AJ25: No | AK25: No | AL25: No | AM25: No | AN25: No | AO25: No | AP25: No | AQ25: No | AR25: No | AS25: No | AT25: No | AU25: No | AV25: No | AW25: No | AX25: No | AY25: No | AZ25: No | BA25: No | BB25: No | BC25: No | BD25: No | BE25: No | BF25: No | BG25: No | BH25: No | BI25: No | BJ25: No | BK25: No | BL25: No | BM25: No
A26: 24a & b | B26: Outbound | C26: Sandringham Road | D26: No | E26: No | F26: No | G26: No | H26: No | I26: No | J26: No | K26: Yes | L26: No | M26: Yes | N26: No | O26: Yes | P26: No | Q26: No | R26: No | S26: No | T26: No | U26: No | V26: No | W26: No | X26: No | Y26: No | Z26: Yes | AA26: No | AB26: No | AC26: No | AD26: No | AE26: No | AF26: No | AG26: No | AH26: No | AI26: No | AJ26: No | AK26: No | AL26: No | AM26: No | AN26: No | AO26: No | AP26: No | AQ26: No | AR26: No | AS26: No | AT26: No | AU26: No | AV26: No | AW26: No | AX26: No | AY26: No | AZ26: No | BA26: No | BB26: No | BC26: No | BD26: No | BE26: No | BF26: No | BG26: No | BH26: No | BI26: No | BJ26: No | BK26: No | BL26: No | BM26: No
A27: 25 & 26 | B27: Inbound | C27: Dominion Road | D27: No | E27: No | F27: No | G27: No | H27: No | I27: Yes | J27: No | K27: No | L27: Yes | M27: No | N27: No | O27: No | P27: No | Q27: No | R27: Yes | S27: No | T27: No | U27: No | V27: No | W27: No | X27: No | Y27: No | Z27: No | AA27: No | AB27: Yes | AC27: No | AD27: No | AE27: No | AF27: No | AG27: No | AH27: No | AI27: No | AJ27: No | AK27: No | AL27: No | AM27: No | AN27: No | AO27: No | AP27: No | AQ27: No | AR27: No | AS27: No | AT27: No | AU27: No | AV27: No | AW27: No | AX27: No | AY27: No | AZ27: No | BA27: No | BB27: No | BC27: No | BD27: No | BE27: No | BF27: No | BG27: No | BH27: No | BI27: No | BJ27: No | BK27: No | BL27: No | BM27: No
A28: 25 & 26 | B28: Outbound | C28: Dominion Road | D28: No | E28: No | F28: No | G28: No | H28: No | I28: No | J28: No | K28: Yes | L28: No | M28: Yes | N28: No | O28: Yes | P28: No | Q28: No | R28: No | S28: No | T28: No | U28: No | V28: No | W28: No | X28: No | Y28: No | Z28: Yes | AA28: No | AB28: No | AC28: No | AD28: No | AE28: No | AF28: No | AG28: No | AH28: No | AI28: No | AJ28: No | AK28: No | AL28: No | AM28: No | AN28: No | AO28: No | AP28: No | AQ28: No | AR28: No | AS28: No | AT28: No | AU28: No | AV28: No | AW28: No | AX28: No | AY28: No | AZ28: No | BA28: No | BB28: No | BC28: No | BD28: No | BE28: No | BF28: No | BG28: No | BH28: No | BI28: No | BJ28: No | BK28: No | BL28: No | BM28: No
A29: 27 | B29: Inbound | C29: Mount Eden Road | D29: Yes | E29: No | F29: Yes | G29: No | H29: Yes | I29: No | J29: No | K29: No | L29: Yes | M29: No | N29: No | O29: No | P29: No | Q29: No | R29: No | S29: No | T29: No | U29: No | V29: No | W29: No | X29: No | Y29: No | Z29: No | AA29: No | AB29: No | AC29: No | AD29: No | AE29: No | AF29: No | AG29: No | AH29: No | AI29: No | AJ29: No | AK29: No | AL29: No | AM29: No | AN29: No | AO29: No | AP29: No | AQ29: No | AR29: No | AS29: No | AT29: No | AU29: No | AV29: No | AW29: No | AX29: No | AY29: No | AZ29: No | BA29: No | BB29: No | BC29: No | BD29: No | BE29: No | BF29: No | BG29: No | BH29: No | BI29: No | BJ29: No | BK29: No | BL29: No | BM29: No
A30: 27 | B30: Outbound | C30: Mount Eden Road | D30: No | E30: Yes | F30: No | G30: Yes | H30: No | I30: No | J30: No | K30: Yes | L30: No | M30: Yes | N30: No | O30: No | P30: No | Q30: No | R30: No | S30: No | T30: No | U30: No | V30: No | W30: No | X30: No | Y30: No | Z30: No | AA30: No | AB30: No | AC30: No | AD30: No | AE30: No | AF30: No | AG30: No | AH30: No | AI30: No | AJ30: No | AK30: No | AL30: No | AM30: No | AN30: No | AO30: No | AP30: No | AQ30: No | AR30: No | AS30: No | AT30: No | AU30: No | AV30: No | AW30: No | AX30: No | AY30: No | AZ30: No | BA30: No | BB30: No | BC30: No | BD30: No | BE30: No | BF30: No | BG30: No | BH30: No | BI30: No | BJ30: No | BK30: No | BL30: No | BM30: No
A31: 321 | B31: Inbound | C31: Otahuhu to City via Hospitals | D31: Yes | E31: No | F31: Yes | G31: No | H31: No | I31: No | J31: No | K31: No | L31: No | M31: No | N31: No | O31: No | P31: No | Q31: No | R31: No | S31: No | T31: No | U31: No | V31: No | W31: No | X31: No | Y31: No | Z31: No | AA31: No | AB31: No | AC31: No | AD31: No | AE31: No | AF31: No | AG31: No | AH31: No | AI31: No | AJ31: No | AK31: No | AL31: No | AM31: No | AN31: No | AO31: No | AP31: No | AQ31: No | AR31: No | AS31: No | AT31: No | AU31: No | AV31: No | AW31: No | AX31: No | AY31: No | AZ31: No | BA31: No | BB31: No | BC31: No | BD31: No | BE31: No | BF31: No | BG31: No | BH31: Yes | BI31: No | BJ31: No | BK31: No | BL31: Yes | BM31: No
A32: 321 | B32: Outbound | C32: Otahuhu to City via Hospitals | D32: No | E32: Yes | F32: No | G32: Yes | H32: No | I32: No | J32: No | K32: No | L32: No | M32: No | N32: No | O32: No | P32: No | Q32: No | R32: No | S32: No | T32: No | U32: No | V32: No | W32: No | X32: No | Y32: No | Z32: No | AA32: No | AB32: No | AC32: No | AD32: No | AE32: No | AF32: No | AG32: No | AH32: No | AI32: No | AJ32: No | AK32: No | AL32: No | AM32: No | AN32: No | AO32: No | AP32: No | AQ32: No | AR32: No | AS32: No | AT32: No | AU32: No | AV32: No | AW32: No | AX32: No | AY32: No | AZ32: No | BA32: No | BB32: No | BC32: No | BD32: No | BE32: No | BF32: Yes | BG32: No | BH32: No | BI32: No | BJ32: No | BK32: No | BL32: No | BM32: Yes
A33: 295 | B33: Inbound | C33: Gillies Ave | D33: No | E33: No | F33: No | G33: No | H33: No | I33: Yes | J33: No | K33: No | L33: No | M33: No | N33: No | O33: No | P33: No | Q33: No | R33: Yes | S33: No | T33: No | U33: No | V33: No | W33: No | X33: No | Y33: No | Z33: No | AA33: No | AB33: Yes | AC33: No | AD33: No | AE33: No | AF33: No | AG33: No | AH33: No | AI33: No | AJ33: No | AK33: No | AL33: No | AM33: No | AN33: No | AO33: No | AP33: No | AQ33: No | AR33: No | AS33: No | AT33: No | AU33: No | AV33: No | AW33: No | AX33: No | AY33: No | AZ33: No | BA33: No | BB33: No | BC33: No | BD33: No | BE33: Yes | BF33: No | BG33: No | BH33: No | BI33: Yes | BJ33: No | BK33: No | BL33: No | BM33: No
A34: 295 | B34: Outbound | C34: Gillies Ave | D34: No | E34: No | F34: No | G34: No | H34: No | I34: No | J34: Yes | K34: No | L34: No | M34: No | N34: No | O34: Yes | P34: No | Q34: No | R34: No | S34: No | T34: No | U34: No | V34: No | W34: No | X34: No | Y34: No | Z34: Yes | AA34: No | AB34: No | AC34: No | AD34: No | AE34: No | AF34: No | AG34: No | AH34: No | AI34: No | AJ34: No | AK34: No | AL34: No | AM34: No | AN34: No | AO34: No | AP34: No | AQ34: No | AR34: No | AS34: No | AT34: No | AU34: No | AV34: No | AW34: No | AX34: No | AY34: No | AZ34: No | BA34: No | BB34: Yes | BC34: No | BD34: No | BE34: No | BF34: Yes | BG34: No | BH34: No | BI34: No | BJ34: No | BK34: No | BL34: No | BM34: No
A35: 70 | B35: Inbound | C35: Remuera Road | D35: No | E35: No | F35: No | G35: No | H35: No | I35: Yes | J35: No | K35: No | L35: No | M35: No | N35: No | O35: No | P35: No | Q35: No | R35: Yes | S35: No | T35: No | U35: No | V35: No | W35: No | X35: No | Y35: No | Z35: No | AA35: No | AB35: Yes | AC35: No | AD35: No | AE35: No | AF35: No | AG35: No | AH35: No | AI35: No | AJ35: No | AK35: No | AL35: No | AM35: No | AN35: No | AO35: No | AP35: No | AQ35: No | AR35: No | AS35: No | AT35: No | AU35: No | AV35: No | AW35: No | AX35: No | AY35: No | AZ35: No | BA35: No | BB35: No | BC35: No | BD35: No | BE35: Yes | BF35: No | BG35: No | BH35: No | BI35: Yes | BJ35: No | BK35: No | BL35: No | BM35: No
A36: 70 | B36: Outbound | C36: Remuera Road | D36: No | E36: No | F36: No | G36: No | H36: No | I36: No | J36: Yes | K36: No | L36: No | M36: No | N36: No | O36: Yes | P36: No | Q36: No | R36: No | S36: No | T36: No | U36: No | V36: No | W36: No | X36: No | Y36: No | Z36: Yes | AA36: No | AB36: No | AC36: No | AD36: No | AE36: No | AF36: No | AG36: No | AH36: No | AI36: No | AJ36: No | AK36: No | AL36: No | AM36: No | AN36: No | AO36: No | AP36: No | AQ36: No | AR36: No | AS36: No | AT36: No | AU36: No | AV36: No | AW36: No | AX36: No | AY36: No | AZ36: No | BA36: No | BB36: Yes | BC36: No | BD36: No | BE36: No | BF36: Yes | BG36: No | BH36: No | BI36: No | BJ36: No | BK36: No | BL36: No | BM36: No
A37: 701 | B37: Inbound | C37: Remuera Road | D37: No | E37: No | F37: No | G37: No | H37: No | I37: Yes | J37: No | K37: No | L37: No | M37: No | N37: No | O37: No | P37: No | Q37: No | R37: Yes | S37: No | T37: No | U37: No | V37: No | W37: No | X37: No | Y37: No | Z37: No | AA37: No | AB37: Yes | AC37: No | AD37: No | AE37: No | AF37: No | AG37: No | AH37: No | AI37: No | AJ37: No | AK37: No | AL37: No | AM37: No | AN37: No | AO37: No | AP37: No | AQ37: No | AR37: No | AS37: No | AT37: No | AU37: No | AV37: No | AW37: No | AX37: No | AY37: No | AZ37: No | BA37: No | BB37: No | BC37: No | BD37: No | BE37: Yes | BF37: No | BG37: No | BH37: No | BI37: Yes | BJ37: No | BK37: No | BL37: No | BM37: No
A38: 703 | B38: Inbound | C38: Portland Road | D38: No | E38: No | F38: No | G38: No | H38: No | I38: No | J38: No | K38: No | L38: No | M38: No | N38: No | O38: No | P38: No | Q38: No | R38: No | S38: No | T38: No | U38: No | V38: No | W38: No | X38: No | Y38: No | Z38: No | AA38: No | AB38: No | AC38: No | AD38: No | AE38: No | AF38: No | AG38: No | AH38: No | AI38: No | AJ38: No | AK38: No | AL38: No | AM38: No | AN38: No | AO38: No | AP38: No | AQ38: No | AR38: No | AS38: No | AT38: No | AU38: No | AV38: No | AW38: No | AX38: No | AY38: No | AZ38: No | BA38: No | BB38: No | BC38: No | BD38: No | BE38: No | BF38: No | BG38: No | BH38: No | BI38: No | BJ38: No | BK38: No | BL38: No | BM38: No
A39: 703 | B39: Outbound | C39: Portland Road | D39: No | E39: No | F39: No | G39: No | H39: No | I39: No | J39: No | K39: No | L39: No | M39: No | N39: No | O39: No | P39: No | Q39: No | R39: No | S39: No | T39: No | U39: No | V39: No | W39: No | X39: No | Y39: No | Z39: No | AA39: No | AB39: No | AC39: No | AD39: No | AE39: No | AF39: No | AG39: No | AH39: No | AI39: No | AJ39: No | AK39: No | AL39: No | AM39: No | AN39: No | AO39: No | AP39: No | AQ39: No | AR39: No | AS39: No | AT39: No | AU39: No | AV39: No | AW39: No | AX39: No | AY39: No | AZ39: No | BA39: No | BB39: No | BC39: No | BD39: No | BE39: No | BF39: No | BG39: No | BH39: No | BI39: No | BJ39: No | BK39: No | BL39: No | BM39: No
A40: 761 | B40: Inbound | C40: Kepa Road | D40: No | E40: No | F40: No | G40: No | H40: No | I40: No | J40: No | K40: No | L40: No | M40: No | N40: No | O40: No | P40: No | Q40: No | R40: No | S40: No | T40: No | U40: No | V40: No | W40: No | X40: No | Y40: No | Z40: No | AA40: No | AB40: No | AC40: No | AD40: No | AE40: No | AF40: No | AG40: No | AH40: No | AI40: No | AJ40: No | AK40: No | AL40: No | AM40: No | AN40: No | AO40: No | AP40: No | AQ40: No | AR40: No | AS40: No | AT40: No | AU40: No | AV40: No | AW40: No | AX40: No | AY40: No | AZ40: No | BA40: No | BB40: No | BC40: No | BD40: No | BE40: No | BF40: No | BG40: No | BH40: No | BI40: No | BJ40: No | BK40: No | BL40: No | BM40: No
A41: 77 | B41: Inbound | C41: Tamaki Drive | D41: No | E41: No | F41: No | G41: No | H41: No | I41: No | J41: No | K41: No | L41: No | M41: No | N41: No | O41: No | P41: No | Q41: No | R41: No | S41: No | T41: No | U41: No | V41: No | W41: No | X41: No | Y41: No | Z41: No | AA41: No | AB41: No | AC41: No | AD41: No | AE41: No | AF41: No | AG41: No | AH41: No | AI41: No | AJ41: No | AK41: No | AL41: No | AM41: No | AN41: No | AO41: No | AP41: No | AQ41: No | AR41: No | AS41: No | AT41: No | AU41: No | AV41: No | AW41: No | AX41: No | AY41: No | AZ41: No | BA41: No | BB41: No | BC41: No | BD41: No | BE41: No | BF41: No | BG41: No | BH41: No | BI41: No | BJ41: No | BK41: No | BL41: No | BM41: No
A42: 77 | B42: Outbound | C42: Tamaki Drive | D42: No | E42: No | F42: No | G42: No | H42: No | I42: No | J42: No | K42: No | L42: No | M42: No | N42: No | O42: No | P42: No | Q42: No | R42: No | S42: No | T42: No | U42: No | V42: No | W42: No | X42: No | Y42: No | Z42: No | AA42: No | AB42: No | AC42: No | AD42: No | AE42: No | AF42: No | AG42: No | AH42: No | AI42: No | AJ42: No | AK42: No | AL42: No | AM42: No | AN42: No | AO42: No | AP42: No | AQ42: No | AR42: No | AS42: No | AT42: No | AU42: No | AV42: No | AW42: No | AX42: No | AY42: No | AZ42: No | BA42: No | BB42: No | BC42: No | BD42: No | BE42: No | BF42: No | BG42: No | BH42: No | BI42: No | BJ42: No | BK42: No | BL42: No | BM42: No
A43: 774 & 775 | B43: Inbound | C43: Tamaki Drive | D43: No | E43: No | F43: No | G43: No | H43: No | I43: No | J43: No | K43: No | L43: No | M43: No | N43: No | O43: No | P43: No | Q43: No | R43: No | S43: No | T43: No | U43: No | V43: No | W43: No | X43: No | Y43: No | Z43: No | AA43: No | AB43: No | AC43: No | AD43: No | AE43: No | AF43: No | AG43: No | AH43: No | AI43: No | AJ43: No | AK43: No | AL43: No | AM43: No | AN43: No | AO43: No | AP43: No | AQ43: No | AR43: No | AS43: No | AT43: No | AU43: No | AV43: No | AW43: No | AX43: No | AY43: No | AZ43: No | BA43: No | BB43: No | BC43: No | BD43: No | BE43: No | BF43: No | BG43: No | BH43: No | BI43: No | BJ43: No | BK43: No | BL43: No | BM43: No
A44: 55 | B44: Inbound | C44: Howick | D44: Yes | E44: No | F44: Yes | G44: No | H44: Yes | I44: No | J44: No | K44: No | L44: No | M44: No | N44: No | O44: No | P44: No | Q44: No | R44: No | S44: No | T44: No | U44: No | V44: No | W44: No | X44: No | Y44: No | Z44: No | AA44: No | AB44: No | AC44: No | AD44: No | AE44: No | AF44: No | AG44: No | AH44: No | AI44: No | AJ44: No | AK44: No | AL44: No | AM44: No | AN44: No | AO44: No | AP44: No | AQ44: No | AR44: No | AS44: No | AT44: No | AU44: No | AV44: No | AW44: No | AX44: No | AY44: No | AZ44: No | BA44: No | BB44: No | BC44: No | BD44: Yes | BE44: No | BF44: No | BG44: No | BH44: Yes | BI44: No | BJ44: No | BK44: No | BL44: No | BM44: No
A45: 55 | B45: Outbound | C45: Howick | D45: No | E45: Yes | F45: No | G45: Yes | H45: No | I45: No | J45: Yes | K45: No | L45: No | M45: No | N45: No | O45: No | P45: No | Q45: No | R45: No | S45: No | T45: No | U45: No | V45: No | W45: No | X45: No | Y45: No | Z45: No | AA45: No | AB45: No | AC45: No | AD45: No | AE45: No | AF45: No | AG45: No | AH45: No | AI45: No | AJ45: No | AK45: No | AL45: No | AM45: No | AN45: No | AO45: No | AP45: No | AQ45: No | AR45: No | AS45: No | AT45: No | AU45: No | AV45: No | AW45: No | AX45: No | AY45: No | AZ45: No | BA45: No | BB45: No | BC45: Yes | BD45: No | BE45: No | BF45: No | BG45: Yes | BH45: No | BI45: No | BJ45: No | BK45: No | BL45: No | BM45: No
A46: 55 peak | B46: Inbound | C46: Howick | D46: Yes | E46: No | F46: Yes | G46: No | H46: Yes | I46: No | J46: No | K46: No | L46: No | M46: No | N46: No | O46: No | P46: No | Q46: No | R46: No | S46: No | T46: No | U46: No | V46: No | W46: No | X46: No | Y46: No | Z46: No | AA46: No | AB46: No | AC46: No | AD46: No | AE46: No | AF46: No | AG46: No | AH46: No | AI46: No | AJ46: No | AK46: No | AL46: No | AM46: No | AN46: No | AO46: No | AP46: No | AQ46: No | AR46: No | AS46: No | AT46: No | AU46: No | AV46: No | AW46: No | AX46: No | AY46: No | AZ46: No | BA46: No | BB46: No | BC46: No | BD46: Yes | BE46: No | BF46: No | BG46: No | BH46: Yes | BI46: No | BJ46: No | BK46: No | BL46: No | BM46: No
A47: 360X | B47: Inbound | C47: Papakura | D47: Yes | E47: No | F47: Yes | G47: No | H47: Yes | I47: No | J47: No | K47: No | L47: No | M47: No | N47: No | O47: No | P47: No | Q47: No | R47: No | S47: No | T47: No | U47: No | V47: No | W47: No | X47: No | Y47: No | Z47: No | AA47: No | AB47: No | AC47: No | AD47: No | AE47: No | AF47: No | AG47: No | AH47: No | AI47: No | AJ47: No | AK47: No | AL47: No | AM47: No | AN47: No | AO47: No | AP47: No | AQ47: No | AR47: No | AS47: No | AT47: No | AU47: No | AV47: No | AW47: No | AX47: No | AY47: No | AZ47: No | BA47: No | BB47: No | BC47: No | BD47: No | BE47: No | BF47: No | BG47: No | BH47: No | BI47: No | BJ47: No | BK47: No | BL47: No | BM47: No
A48: NX1 | B48: Inbound | C48: NEX | D48: No | E48: No | F48: No | G48: No | H48: No | I48: No | J48: No | K48: No | L48: No | M48: No | N48: No | O48: No | P48: No | Q48: No | R48: No | S48: No | T48: Yes | U48: No | V48: No | W48: No | X48: Yes | Y48: No | Z48: No | AA48: No | AB48: No | AC48: No | AD48: No | AE48: No | AF48: No | AG48: No | AH48: No | AI48: No | AJ48: No | AK48: No | AL48: No | AM48: No | AN48: No | AO48: No | AP48: No | AQ48: No | AR48: No | AS48: No | AT48: No | AU48: No | AV48: No | AW48: No | AX48: No | AY48: No | AZ48: No | BA48: No | BB48: No | BC48: No | BD48: No | BE48: No | BF48: No | BG48: No | BH48: No | BI48: No | BJ48: No | BK48: No | BL48: No | BM48: No
A49: NX1 | B49: Outbound | C49: NEX | D49: No | E49: No | F49: No | G49: No | H49: No | I49: No | J49: No | K49: No | L49: No | M49: No | N49: No | O49: No | P49: No | Q49: No | R49: No | S49: No | T49: No | U49: No | V49: Yes | W49: No | X49: No | Y49: No | Z49: No | AA49: Yes | AB49: No | AC49: No | AD49: No | AE49: No | AF49: No | AG49: No | AH49: No | AI49: No | AJ49: No | AK49: No | AL49: No | AM49: No | AN49: No | AO49: No | AP49: No | AQ49: No | AR49: No | AS49: No | AT49: No | AU49: No | AV49: No | AW49: No | AX49: No | AY49: No | AZ49: No | BA49: No | BB49: No | BC49: No | BD49: No | BE49: No | BF49: No | BG49: No | BH49: No | BI49: No | BJ49: No | BK49: No | BL49: No | BM49: No
A50: NX2 | B50: Inbound | C50: NEX | D50: No | E50: No | F50: No | G50: No | H50: No | I50: No | J50: No | K50: No | L50: No | M50: No | N50: Yes | O50: No | P50: No | Q50: No | R50: No | S50: No | T50: No | U50: No | V50: No | W50: No | X50: No | Y50: Yes | Z50: No | AA50: No | AB50: No | AC50: No | AD50: No | AE50: No | AF50: No | AG50: No | AH50: No | AI50: No | AJ50: No | AK50: No | AL50: No | AM50: No | AN50: No | AO50: No | AP50: No | AQ50: No | AR50: No | AS50: No | AT50: No | AU50: No | AV50: No | AW50: No | AX50: No | AY50: No | AZ50: No | BA50: No | BB50: No | BC50: No | BD50: No | BE50: No | BF50: No | BG50: No | BH50: No | BI50: No | BJ50: No | BK50: No | BL50: No | BM50: No
A51: NX2 | B51: Outbound | C51: NEX | D51: No | E51: No | F51: No | G51: No | H51: No | I51: No | J51: No | K51: No | L51: No | M51: No | N51: No | O51: No | P51: No | Q51: Yes | R51: No | S51: No | T51: No | U51: No | V51: No | W51: No | X51: No | Y51: No | Z51: No | AA51: Yes | AB51: No | AC51: No | AD51: No | AE51: No | AF51: No | AG51: No | AH51: No | AI51: No | AJ51: No | AK51: No | AL51: No | AM51: No | AN51: No | AO51: No | AP51: No | AQ51: No | AR51: No | AS51: No | AT51: No | AU51: No | AV51: No | AW51: No | AX51: No | AY51: No | AZ51: No | BA51: No | BB51: No | BC51: No | BD51: No | BE51: No | BF51: No | BG51: No | BH51: No | BI51: No | BJ51: No | BK51: No | BL51: No | BM51: No
A52: Hibiscus Coast | B52: Inbound | C52: Hibiscus Coast Express | D52: No | E52: No | F52: No | G52: No | H52: No | I52: No | J52: No | K52: No | L52: No | M52: No | N52: No | O52: No | P52: Yes | Q52: No | R52: No | S52: No | T52: No | U52: No | V52: No | W52: No | X52: No | Y52: Yes | Z52: No | AA52: No | AB52: No | AC52: No | AD52: No | AE52: No | AF52: No | AG52: No | AH52: No | AI52: No | AJ52: No | AK52: No | AL52: No | AM52: No | AN52: No | AO52: No | AP52: No | AQ52: No | AR52: No | AS52: No | AT52: No | AU52: No | AV52: No | AW52: No | AX52: No | AY52: No | AZ52: No | BA52: No | BB52: No | BC52: No | BD52: No | BE52: No | BF52: No | BG52: No | BH52: No | BI52: No | BJ52: No | BK52: No | BL52: No | BM52: No
A53: NX3 | B53: Inbound | C53: NEX | D53: No | E53: No | F53: No | G53: No | H53: No | I53: No | J53: No | K53: No | L53: No | M53: No | N53: No | O53: No | P53: No | Q53: No | R53: No | S53: No | T53: No | U53: No | V53: No | W53: No | X53: No | Y53: No | Z53: No | AA53: No | AB53: No | AC53: No | AD53: No | AE53: No | AF53: No | AG53: No | AH53: No | AI53: No | AJ53: No | AK53: No | AL53: No | AM53: No | AN53: No | AO53: No | AP53: No | AQ53: No | AR53: Yes | AS53: No | AT53: Yes | AU53: No | AV53: Yes | AW53: No | AX53: No | AY53: No | AZ53: No | BA53: No | BB53: No | BC53: Yes | BD53: No | BE53: No | BF53: No | BG53: Yes | BH53: No | BI53: No | BJ53: No | BK53: No | BL53: No | BM53: No
A54: NX3 | B54: Outbound | C54: NEX | D54: No | E54: No | F54: No | G54: No | H54: No | I54: No | J54: No | K54: No | L54: No | M54: No | N54: No | O54: No | P54: No | Q54: No | R54: No | S54: No | T54: No | U54: No | V54: No | W54: No | X54: No | Y54: No | Z54: No | AA54: No | AB54: No | AC54: No | AD54: No | AE54: No | AF54: No | AG54: No | AH54: No | AI54: No | AJ54: No | AK54: No | AL54: No | AM54: No | AN54: No | AO54: No | AP54: No | AQ54: No | AR54: No | AS54: Yes | AT54: No | AU54: Yes | AV54: No | AW54: Yes | AX54: No | AY54: No | AZ54: No | BA54: No | BB54: No | BC54: No | BD54: Yes | BE54: No | BF54: No | BG54: No | BH54: Yes | BI54: No | BJ54: No | BK54: No | BL54: No | BM54: No
A55: n4 & n4a | B55: Inbound | C55: Takapuna / Hillcrest | D55: No | E55: No | F55: No | G55: No | H55: No | I55: No | J55: No | K55: No | L55: No | M55: No | N55: Yes | O55: No | P55: No | Q55: No | R55: No | S55: No | T55: No | U55: No | V55: No | W55: No | X55: No | Y55: Yes | Z55: No | AA55: No | AB55: No | AC55: No | AD55: No | AE55: No | AF55: No | AG55: No | AH55: No | AI55: No | AJ55: No | AK55: No | AL55: No | AM55: No | AN55: No | AO55: No | AP55: No | AQ55: No | AR55: No | AS55: No | AT55: No | AU55: No | AV55: No | AW55: No | AX55: No | AY55: No | AZ55: No | BA55: No | BB55: No | BC55: No | BD55: No | BE55: No | BF55: No | BG55: No | BH55: No | BI55: No | BJ55: No | BK55: No | BL55: No | BM55: No
A56: n4 & n4a | B56: Outbound | C56: Takapuna / Hillcrest | D56: No | E56: No | F56: No | G56: No | H56: No | I56: No | J56: No | K56: No | L56: No | M56: No | N56: No | O56: No | P56: No | Q56: Yes | R56: No | S56: No | T56: No | U56: No | V56: No | W56: No | X56: No | Y56: No | Z56: No | AA56: No | AB56: No | AC56: Yes | AD56: No | AE56: No | AF56: No | AG56: No | AH56: No | AI56: No | AJ56: No | AK56: No | AL56: No | AM56: No | AN56: No | AO56: No | AP56: No | AQ56: No | AR56: No | AS56: No | AT56: No | AU56: No | AV56: No | AW56: No | AX56: No | AY56: No | AZ56: No | BA56: No | BB56: No | BC56: No | BD56: No | BE56: No | BF56: No | BG56: No | BH56: No | BI56: No | BJ56: No | BK56: No | BL56: No | BM56: No
A57: n23a & b | B57: Inbound | C57: Takapuna / Hillcrest | D57: No | E57: No | F57: No | G57: No | H57: No | I57: No | J57: No | K57: No | L57: No | M57: No | N57: Yes | O57: No | P57: No | Q57: No | R57: No | S57: No | T57: No | U57: No | V57: No | W57: No | X57: No | Y57: Yes | Z57: No | AA57: No | AB57: No | AC57: No | AD57: No | AE57: No | AF57: No | AG57: No | AH57: No | AI57: No | AJ57: No | AK57: No | AL57: No | AM57: No | AN57: No | AO57: No | AP57: No | AQ57: No | AR57: No | AS57: No | AT57: No | AU57: No | AV57: No | AW57: No | AX57: No | AY57: No | AZ57: No | BA57: No | BB57: No | BC57: No | BD57: No | BE57: No | BF57: No | BG57: No | BH57: No | BI57: No | BJ57: No | BK57: No | BL57: No | BM57: No
A58: n23a & b | B58: Outbound | C58: Takapuna / Hillcrest | D58: No | E58: No | F58: No | G58: No | H58: No | I58: No | J58: No | K58: No | L58: No | M58: No | N58: No | O58: No | P58: No | Q58: Yes | R58: No | S58: No | T58: No | U58: No | V58: No | W58: No | X58: No | Y58: No | Z58: No | AA58: No | AB58: No | AC58: Yes | AD58: No | AE58: No | AF58: No | AG58: No | AH58: No | AI58: No | AJ58: No | AK58: No | AL58: No | AM58: No | AN58: No | AO58: No | AP58: No | AQ58: No | AR58: No | AS58: No | AT58: No | AU58: No | AV58: No | AW58: No | AX58: No | AY58: No | AZ58: No | BA58: No | BB58: No | BC58: No | BD58: No | BE58: No | BF58: No | BG58: No | BH58: No | BI58: No | BJ58: No | BK58: No | BL58: No | BM58: No
A59: n11 | B59: Inbound | C59: North Shore peak | D59: No | E59: No | F59: No | G59: No | H59: No | I59: No | J59: No | K59: No | L59: No | M59: No | N59: No | O59: No | P59: Yes | Q59: No | R59: No | S59: No | T59: No | U59: No | V59: No | W59: No | X59: No | Y59: Yes | Z59: No | AA59: No | AB59: No | AC59: No | AD59: No | AE59: No | AF59: No | AG59: No | AH59: No | AI59: No | AJ59: No | AK59: No | AL59: No | AM59: No | AN59: No | AO59: No | AP59: No | AQ59: No | AR59: No | AS59: No | AT59: No | AU59: No | AV59: No | AW59: No | AX59: No | AY59: No | AZ59: No | BA59: No | BB59: No | BC59: No | BD59: No | BE59: No | BF59: No | BG59: No | BH59: No | BI59: No | BJ59: No | BK59: No | BL59: No | BM59: No
A60: n8a & b | B60: Inbound | C60: Onewa Road | D60: No | E60: No | F60: No | G60: No | H60: No | I60: No | J60: No | K60: No | L60: No | M60: No | N60: No | O60: No | P60: No | Q60: No | R60: No | S60: No | T60: Yes | U60: No | V60: No | W60: No | X60: Yes | Y60: No | Z60: No | AA60: No | AB60: No | AC60: No | AD60: No | AE60: No | AF60: No | AG60: No | AH60: No | AI60: No | AJ60: No | AK60: No | AL60: No | AM60: No | AN60: No | AO60: No | AP60: No | AQ60: No | AR60: No | AS60: No | AT60: No | AU60: No | AV60: No | AW60: No | AX60: No | AY60: No | AZ60: No | BA60: No | BB60: No | BC60: No | BD60: No | BE60: No | BF60: No | BG60: No | BH60: No | BI60: No | BJ60: No | BK60: No | BL60: No | BM60: No
A61: n8a & b | B61: Outbound | C61: Onewa Road | D61: No | E61: No | F61: No | G61: No | H61: No | I61: No | J61: No | K61: No | L61: No | M61: No | N61: No | O61: No | P61: No | Q61: No | R61: No | S61: No | T61: No | U61: No | V61: Yes | W61: No | X61: No | Y61: No | Z61: No | AA61: No | AB61: No | AC61: Yes | AD61: No | AE61: No | AF61: No | AG61: No | AH61: No | AI61: No | AJ61: No | AK61: No | AL61: No | AM61: No | AN61: No | AO61: No | AP61: No | AQ61: No | AR61: No | AS61: No | AT61: No | AU61: No | AV61: No | AW61: No | AX61: No | AY61: No | AZ61: No | BA61: No | BB61: No | BC61: No | BD61: No | BE61: No | BF61: No | BG61: No | BH61: No | BI61: No | BJ61: No | BK61: No | BL61: No | BM61: No
A62: n81 | B62: Inbound | C62: North Shore peak | D62: No | E62: No | F62: No | G62: No | H62: No | I62: No | J62: No | K62: No | L62: No | M62: No | N62: No | O62: No | P62: Yes | Q62: No | R62: No | S62: No | T62: No | U62: No | V62: No | W62: No | X62: No | Y62: Yes | Z62: No | AA62: No | AB62: No | AC62: No | AD62: No | AE62: No | AF62: No | AG62: No | AH62: No | AI62: No | AJ62: No | AK62: No | AL62: No | AM62: No | AN62: No | AO62: No | AP62: No | AQ62: No | AR62: No | AS62: No | AT62: No | AU62: No | AV62: No | AW62: No | AX62: No | AY62: No | AZ62: No | BA62: No | BB62: No | BC62: No | BD62: No | BE62: No | BF62: No | BG62: No | BH62: No | BI62: No | BJ62: No | BK62: No | BL62: No | BM62: No
A63: n9a & b | B63: Inbound | C63: Onewa Road | D63: No | E63: No | F63: No | G63: No | H63: No | I63: No | J63: No | K63: No | L63: No | M63: No | N63: No | O63: No | P63: No | Q63: No | R63: No | S63: No | T63: Yes | U63: No | V63: No | W63: No | X63: Yes | Y63: No | Z63: No | AA63: No | AB63: No | AC63: No | AD63: No | AE63: No | AF63: No | AG63: No | AH63: No | AI63: No | AJ63: No | AK63: No | AL63: No | AM63: No | AN63: No | AO63: No | AP63: No | AQ63: No | AR63: No | AS63: No | AT63: No | AU63: No | AV63: No | AW63: No | AX63: No | AY63: No | AZ63: No | BA63: No | BB63: No | BC63: No | BD63: No | BE63: No | BF63: No | BG63: No | BH63: No | BI63: No | BJ63: No | BK63: No | BL63: No | BM63: No
A64: n9a & b | B64: Outbound | C64: Onewa Road | D64: No | E64: No | F64: No | G64: No | H64: No | I64: No | J64: No | K64: No | L64: No | M64: No | N64: No | O64: No | P64: No | Q64: No | R64: No | S64: No | T64: No | U64: No | V64: Yes | W64: No | X64: No | Y64: No | Z64: No | AA64: No | AB64: No | AC64: Yes | AD64: No | AE64: No | AF64: No | AG64: No | AH64: No | AI64: No | AJ64: No | AK64: No | AL64: No | AM64: No | AN64: No | AO64: No | AP64: No | AQ64: No | AR64: No | AS64: No | AT64: No | AU64: No | AV64: No | AW64: No | AX64: No | AY64: No | AZ64: No | BA64: No | BB64: No | BC64: No | BD64: No | BE64: No | BF64: No | BG64: No | BH64: No | BI64: No | BJ64: No | BK64: No | BL64: No | BM64: No
A65: n91 | B65: Inbound | C65: North Shore peak | D65: No | E65: No | F65: No | G65: No | H65: No | I65: No | J65: No | K65: No | L65: No | M65: No | N65: No | O65: No | P65: Yes | Q65: No | R65: No | S65: No | T65: No | U65: No | V65: No | W65: No | X65: No | Y65: Yes | Z65: No | AA65: No | AB65: No | AC65: No | AD65: No | AE65: No | AF65: No | AG65: No | AH65: No | AI65: No | AJ65: No | AK65: No | AL65: No | AM65: No | AN65: No | AO65: No | AP65: No | AQ65: No | AR65: No | AS65: No | AT65: No | AU65: No | AV65: No | AW65: No | AX65: No | AY65: No | AZ65: No | BA65: No | BB65: No | BC65: No | BD65: No | BE65: No | BF65: No | BG65: No | BH65: No | BI65: No | BJ65: No | BK65: No | BL65: No | BM65: No
A66: n92 | B66: Inbound | C66: North Shore peak | D66: No | E66: No | F66: No | G66: No | H66: No | I66: No | J66: No | K66: No | L66: No | M66: No | N66: No | O66: No | P66: Yes | Q66: No | R66: No | S66: No | T66: No | U66: No | V66: No | W66: No | X66: No | Y66: Yes | Z66: No | AA66: No | AB66: No | AC66: No | AD66: No | AE66: No | AF66: No | AG66: No | AH66: No | AI66: No | AJ66: No | AK66: No | AL66: No | AM66: No | AN66: No | AO66: No | AP66: No | AQ66: No | AR66: No | AS66: No | AT66: No | AU66: No | AV66: No | AW66: No | AX66: No | AY66: No | AZ66: No | BA66: No | BB66: No | BC66: No | BD66: No | BE66: No | BF66: No | BG66: No | BH66: No | BI66: No | BJ66: No | BK66: No | BL66: No | BM66: No
A67: n93 | B67: Inbound | C67: Onewa Road | D67: No | E67: No | F67: No | G67: No | H67: No | I67: No | J67: No | K67: No | L67: No | M67: No | N67: No | O67: No | P67: No | Q67: No | R67: No | S67: No | T67: No | U67: No | V67: No | W67: No | X67: No | Y67: No | Z67: No | AA67: No | AB67: No | AC67: No | AD67: No | AE67: No | AF67: No | AG67: No | AH67: No | AI67: No | AJ67: No | AK67: No | AL67: No | AM67: No | AN67: No | AO67: No | AP67: No | AQ67: No | AR67: Yes | AS67: No | AT67: Yes | AU67: No | AV67: Yes | AW67: No | AX67: No | AY67: No | AZ67: No | BA67: No | BB67: No | BC67: Yes | BD67: No | BE67: No | BF67: No | BG67: Yes | BH67: No | BI67: No | BJ67: No | BK67: No | BL67: No | BM67: No
A68: n93 | B68: Outbound | C68: Onewa Road | D68: No | E68: No | F68: No | G68: No | H68: No | I68: No | J68: No | K68: No | L68: No | M68: No | N68: No | O68: No | P68: No | Q68: No | R68: No | S68: No | T68: No | U68: No | V68: No | W68: No | X68: No | Y68: No | Z68: No | AA68: No | AB68: No | AC68: No | AD68: No | AE68: No | AF68: No | AG68: No | AH68: No | AI68: No | AJ68: No | AK68: No | AL68: No | AM68: No | AN68: No | AO68: No | AP68: No | AQ68: No | AR68: No | AS68: Yes | AT68: No | AU68: Yes | AV68: No | AW68: Yes | AX68: No | AY68: No | AZ68: No | BA68: No | BB68: No | BC68: No | BD68: Yes | BE68: No | BF68: No | BG68: No | BH68: Yes | BI68: No | BJ68: No | BK68: No | BL68: No | BM68: No
A69: 110 | B69: Inbound | C69: Westgate | D69: No | E69: No | F69: No | G69: No | H69: No | I69: No | J69: No | K69: No | L69: No | M69: No | N69: No | O69: No | P69: No | Q69: No | R69: No | S69: No | T69: No | U69: No | V69: No | W69: No | X69: No | Y69: No | Z69: No | AA69: No | AB69: No | AC69: No | AD69: No | AE69: No | AF69: No | AG69: No | AH69: Yes | AI69: No | AJ69: No | AK69: No | AL69: No | AM69: No | AN69: No | AO69: No | AP69: No | AQ69: No | AR69: Yes | AS69: No | AT69: No | AU69: No | AV69: No | AW69: No | AX69: Yes | AY69: No | AZ69: Yes | BA69: No | BB69: No | BC69: No | BD69: No | BE69: No | BF69: No | BG69: No | BH69: No | BI69: No | BJ69: No | BK69: No | BL69: No | BM69: No
A70: 110 | B70: Outbound | C70: Westgate | D70: No | E70: No | F70: No | G70: No | H70: No | I70: No | J70: No | K70: No | L70: No | M70: No | N70: No | O70: No | P70: No | Q70: No | R70: No | S70: No | T70: No | U70: No | V70: No | W70: No | X70: No | Y70: No | Z70: No | AA70: No | AB70: No | AC70: No | AD70: No | AE70: No | AF70: No | AG70: No | AH70: No | AI70: Yes | AJ70: No | AK70: No | AL70: No | AM70: No | AN70: No | AO70: No | AP70: No | AQ70: No | AR70: No | AS70: Yes | AT70: No | AU70: No | AV70: No | AW70: No | AX70: No | AY70: Yes | AZ70: No | BA70: Yes | BB70: No | BC70: No | BD70: No | BE70: No | BF70: No | BG70: No | BH70: No | BI70: No | BJ70: No | BK70: No | BL70: No | BM70: No
A71: 125X | B71: Inbound | C71: Westgate | D71: No | E71: No | F71: No | G71: No | H71: No | I71: No | J71: No | K71: No | L71: No | M71: No | N71: No | O71: No | P71: No | Q71: No | R71: No | S71: No | T71: No | U71: No | V71: No | W71: No | X71: No | Y71: No | Z71: No | AA71: No | AB71: No | AC71: No | AD71: No | AE71: No | AF71: No | AG71: No | AH71: Yes | AI71: No | AJ71: No | AK71: No | AL71: No | AM71: No | AN71: No | AO71: No | AP71: No | AQ71: No | AR71: No | AS71: No | AT71: No | AU71: No | AV71: No | AW71: No | AX71: No | AY71: No | AZ71: No | BA71: No | BB71: No | BC71: No | BD71: No | BE71: No | BF71: No | BG71: No | BH71: No | BI71: No | BJ71: No | BK71: No | BL71: No | BM71: No
A72: 129 | B72: Inbound | C72: Massey West | D72: No | E72: No | F72: No | G72: No | H72: No | I72: No | J72: No | K72: No | L72: No | M72: No | N72: No | O72: No | P72: No | Q72: No | R72: No | S72: No | T72: No | U72: No | V72: No | W72: No | X72: No | Y72: No | Z72: No | AA72: No | AB72: No | AC72: No | AD72: No | AE72: No | AF72: No | AG72: No | AH72: Yes | AI72: No | AJ72: No | AK72: No | AL72: No | AM72: No | AN72: No | AO72: No | AP72: No | AQ72: No | AR72: Yes | AS72: No | AT72: No | AU72: No | AV72: No | AW72: No | AX72: Yes | AY72: No | AZ72: Yes | BA72: No | BB72: No | BC72: No | BD72: No | BE72: No | BF72: No | BG72: No | BH72: No | BI72: No | BJ72: No | BK72: No | BL72: No | BM72: No
A73: Red Hills | B73: Inbound | C73: Red Hills | D73: No | E73: No | F73: No | G73: No | H73: No | I73: No | J73: No | K73: No | L73: No | M73: No | N73: No | O73: No | P73: No | Q73: No | R73: No | S73: No | T73: No | U73: No | V73: No | W73: No | X73: No | Y73: No | Z73: No | AA73: No | AB73: No | AC73: No | AD73: No | AE73: No | AF73: No | AG73: No | AH73: Yes | AI73: No | AJ73: No | AK73: No | AL73: No | AM73: No | AN73: No | AO73: No | AP73: No | AQ73: No | AR73: No | AS73: No | AT73: No | AU73: No | AV73: No | AW73: No | AX73: No | AY73: No | AZ73: No | BA73: No | BB73: No | BC73: No | BD73: No | BE73: No | BF73: No | BG73: No | BH73: No | BI73: No | BJ73: No | BK73: No | BL73: No | BM73: No
A74: 132X | B74: Inbound | C74: Te Atatu Peninsula | D74: No | E74: No | F74: No | G74: No | H74: No | I74: No | J74: No | K74: No | L74: No | M74: No | N74: No | O74: No | P74: No | Q74: No | R74: No | S74: No | T74: No | U74: No | V74: No | W74: No | X74: No | Y74: No | Z74: No | AA74: No | AB74: No | AC74: No | AD74: No | AE74: No | AF74: No | AG74: No | AH74: Yes | AI74: No | AJ74: No | AK74: No | AL74: No | AM74: No | AN74: No | AO74: No | AP74: No | AQ74: No | AR74: No | AS74: No | AT74: No | AU74: No | AV74: No | AW74: No | AX74: No | AY74: No | AZ74: No | BA74: No | BB74: No | BC74: No | BD74: No | BE74: No | BF74: No | BG74: No | BH74: No | BI74: No | BJ74: No | BK74: No | BL74: No | BM74: No
A75: 133X | B75: Inbound | C75: Henderson | D75: No | E75: No | F75: No | G75: No | H75: No | I75: No | J75: No | K75: No | L75: No | M75: No | N75: No | O75: No | P75: No | Q75: No | R75: No | S75: No | T75: No | U75: No | V75: No | W75: No | X75: No | Y75: No | Z75: No | AA75: No | AB75: No | AC75: No | AD75: No | AE75: No | AF75: No | AG75: No | AH75: Yes | AI75: No | AJ75: No | AK75: No | AL75: No | AM75: No | AN75: No | AO75: No | AP75: No | AQ75: No | AR75: No | AS75: No | AT75: No | AU75: No | AV75: No | AW75: No | AX75: No | AY75: No | AZ75: No | BA75: No | BB75: No | BC75: No | BD75: No | BE75: No | BF75: No | BG75: No | BH75: No | BI75: No | BJ75: No | BK75: No | BL75: No | BM75: No
A76: 151X | B76: Inbound | C76: West Express | D76: No | E76: No | F76: No | G76: No | H76: No | I76: No | J76: No | K76: No | L76: No | M76: No | N76: No | O76: No | P76: No | Q76: No | R76: No | S76: No | T76: No | U76: No | V76: No | W76: No | X76: No | Y76: No | Z76: No | AA76: No | AB76: No | AC76: No | AD76: No | AE76: No | AF76: No | AG76: No | AH76: Yes | AI76: No | AJ76: No | AK76: No | AL76: No | AM76: No | AN76: No | AO76: No | AP76: No | AQ76: No | AR76: No | AS76: No | AT76: No | AU76: No | AV76: No | AW76: No | AX76: No | AY76: No | AZ76: No | BA76: No | BB76: No | BC76: No | BD76: No | BE76: No | BF76: No | BG76: No | BH76: No | BI76: No | BJ76: No | BK76: No | BL76: No | BM76: No
A77: 171X & 172X | B77: Inbound | C77: West Express | D77: No | E77: No | F77: No | G77: No | H77: No | I77: No | J77: No | K77: No | L77: No | M77: No | N77: No | O77: No | P77: No | Q77: No | R77: No | S77: No | T77: No | U77: No | V77: No | W77: No | X77: No | Y77: No | Z77: No | AA77: No | AB77: No | AC77: No | AD77: No | AE77: No | AF77: No | AG77: No | AH77: Yes | AI77: No | AJ77: No | AK77: No | AL77: No | AM77: No | AN77: No | AO77: No | AP77: No | AQ77: No | AR77: No | AS77: No | AT77: No | AU77: No | AV77: No | AW77: No | AX77: No | AY77: No | AZ77: No | BA77: No | BB77: No | BC77: No | BD77: No | BE77: No | BF77: No | BG77: No | BH77: No | BI77: No | BJ77: No | BK77: No | BL77: No | BM77: No
A78: 195 | B78: Inbound | C78: Great North Road | D78: No | E78: No | F78: No | G78: No | H78: No | I78: No | J78: No | K78: No | L78: No | M78: No | N78: No | O78: No | P78: No | Q78: No | R78: No | S78: No | T78: No | U78: No | V78: No | W78: No | X78: No | Y78: No | Z78: No | AA78: No | AB78: No | AC78: No | AD78: No | AE78: No | AF78: No | AG78: No | AH78: Yes | AI78: No | AJ78: No | AK78: No | AL78: No | AM78: No | AN78: No | AO78: No | AP78: No | AQ78: No | AR78: Yes | AS78: No | AT78: No | AU78: No | AV78: No | AW78: No | AX78: Yes | AY78: No | AZ78: Yes | BA78: No | BB78: No | BC78: No | BD78: No | BE78: No | BF78: No | BG78: No | BH78: No | BI78: No | BJ78: No | BK78: No | BL78: No | BM78: No
A79: 195 | B79: Outbound | C79: Great North Road | D79: No | E79: No | F79: No | G79: No | H79: No | I79: No | J79: No | K79: No | L79: No | M79: No | N79: No | O79: No | P79: No | Q79: No | R79: No | S79: No | T79: No | U79: No | V79: No | W79: No | X79: No | Y79: No | Z79: No | AA79: No | AB79: No | AC79: No | AD79: No | AE79: No | AF79: No | AG79: No | AH79: No | AI79: Yes | AJ79: No | AK79: No | AL79: No | AM79: No | AN79: No | AO79: No | AP79: No | AQ79: No | AR79: No | AS79: Yes | AT79: No | AU79: No | AV79: No | AW79: No | AX79: No | AY79: Yes | AZ79: No | BA79: Yes | BB79: No | BC79: No | BD79: No | BE79: No | BF79: No | BG79: No | BH79: No | BI79: No | BJ79: No | BK79: No | BL79: No | BM79: No
A80: 209 | B80: Inbound | C80: Green Bay | D80: No | E80: No | F80: No | G80: No | H80: No | I80: No | J80: No | K80: No | L80: No | M80: No | N80: No | O80: No | P80: No | Q80: No | R80: No | S80: No | T80: No | U80: No | V80: No | W80: No | X80: No | Y80: No | Z80: No | AA80: No | AB80: No | AC80: No | AD80: No | AE80: No | AF80: No | AG80: No | AH80: Yes | AI80: No | AJ80: No | AK80: No | AL80: No | AM80: No | AN80: No | AO80: No | AP80: No | AQ80: No | AR80: Yes | AS80: No | AT80: No | AU80: No | AV80: No | AW80: No | AX80: Yes | AY80: No | AZ80: Yes | BA80: No | BB80: No | BC80: No | BD80: No | BE80: No | BF80: No | BG80: No | BH80: No | BI80: No | BJ80: No | BK80: No | BL80: No | BM80: No

Sheet Routes - Termini
B1: Return to Summary Sheet | C1: Terminus Name | D1: Wynyard Quarter | E1: Britomart West | F1: Britomart West | G1: Britomart East | H1: Britomart East | I1: Britomart East | J1: University | K1: Victoria Park
A2: Route Name | B2: Direction | C2: Group | D2: Isthmus/Link | E2: West/Northwest | F2: North Shore | G2: Mt Eden/Hospitals | H2: Tamaki Drive | I2: AMETI | J2: All routes | K2: All routes
A3: Airbus | B3: Inbound | C3: Airbus | D3: No | E3: No | F3: No | G3: No | H3: No | I3: No | J3: No | K3: No
A4: Airbus | B4: Outbound | C4: Airbus | D4: No | E4: No | F4: No | G4: No | H4: No | I4: No | J4: No | K4: No
A5: City Link | B5: Inbound | C5: City Link | D5: Yes | E5: No | F5: No | G5: No | H5: No | I5: No | J5: No | K5: No
A6: Inner Link | B6: Inbound | C6: Inner Link | D6: No | E6: No | F6: No | G6: No | H6: No | I6: No | J6: No | K6: No
A7: Inner Link | B7: Outbound | C7: Inner Link | D7: No | E7: No | F7: No | G7: No | H7: No | I7: No | J7: No | K7: No
A8: Crosstown 4 peak | B8: Inbound | C8: Manukau Road | D8: No | E8: No | F8: No | G8: No | H8: No | I8: No | J8: No | K8: Yes
A9: Crosstown 4 | B9: Inbound | C9: Manukau Road / Jervois Road | D9: No | E9: No | F9: No | G9: No | H9: No | I9: No | J9: No | K9: No
A10: Crosstown 4 | B10: Outbound | C10: Manukau Road / Jervois Road | D10: No | E10: No | F10: No | G10: No | H10: No | I10: No | J10: No | K10: No
A11: 309 & 309X | B11: Inbound | C11: Manukau Road | D11: Yes | E11: No | F11: No | G11: No | H11: No | I11: No | J11: No | K11: No
A12: 309 & 309X | B12: Outbound | C12: Manukau Road | D12: No | E12: No | F12: No | G12: No | H12: No | I12: No | J12: No | K12: No
A13: 101 | B13: Inbound | C13: Jervois Road | D13: No | E13: No | F13: No | G13: No | H13: No | I13: No | J13: Yes | K13: No
A14: 105 | B14: Inbound | C14: Richmond Road | D14: No | E14: Yes | F14: No | G14: No | H14: No | I14: No | J14: No | K14: No
A15: 105 | B15: Outbound | C15: Richmond Road | D15: No | E15: No | F15: No | G15: No | H15: No | I15: No | J15: No | K15: No
A16: 106 | B16: Inbound | C16: Freemans Bay | D16: No | E16: Yes | F16: No | G16: No | H16: No | I16: No | J16: No | K16: No
A17: 106 | B17: Outbound | C17: Freemans Bay | D17: No | E17: No | F17: No | G17: No | H17: No | I17: No | J17: No | K17: No
A18: Crosstown 5 | B18: Inbound | C18: Mount Eden Crosstown | D18: No | E18: No | F18: No | G18: No | H18: No | I18: No | J18: No | K18: No
A19: Crosstown 5 | B19: Outbound | C19: Mount Eden Crosstown | D19: No | E19: No | F19: No | G19: No | H19: No | I19: No | J19: No | K19: No
A20: 18 | B20: Inbound | C20: Great North Road | D20: No | E20: Yes | F20: No | G20: No | H20: No | I20: No | J20: No | K20: No
A21: 18 | B21: Outbound | C21: Great North Road | D21: No | E21: No | F21: No | G21: No | H21: No | I21: No | J21: No | K21: No
A22: 22a & b | B22: Inbound | C22: New North Road | D22: Yes | E22: No | F22: No | G22: No | H22: No | I22: No | J22: No | K22: No
A23: 22a & b | B23: Outbound | C23: New North Road | D23: No | E23: No | F23: No | G23: No | H23: No | I23: No | J23: No | K23: No
A24: 24a & b | B24: Inbound | C24: Sandringham Road | D24: Yes | E24: No | F24: No | G24: No | H24: No | I24: No | J24: No | K24: No
A25: 24a & b | B25: Outbound | C25: Sandringham Road | D25: No | E25: No | F25: No | G25: No | H25: No | I25: No | J25: No | K25: No
A26: 25 & 26 | B26: Inbound | C26: Dominion Road | D26: Yes | E26: No | F26: No | G26: No | H26: No | I26: No | J26: No | K26: No
A27: 25 & 26 | B27: Outbound | C27: Dominion Road | D27: No | E27: No | F27: No | G27: No | H27: No | I27: No | J27: No | K27: No
A28: 27 | B28: Inbound | C28: Mount Eden Road | D28: No | E28: No | F28: No | G28: Yes | H28: No | I28: No | J28: No | K28: No
A29: 27 | B29: Outbound | C29: Mount Eden Road | D29: No | E29: No | F29: No | G29: No | H29: No | I29: No | J29: No | K29: No
A30: 321 | B30: Inbound | C30: Otahuhu to City via Hospitals | D30: No | E30: No | F30: No | G30: Yes | H30: No | I30: No | J30: No | K30: No
A31: 321 | B31: Outbound | C31: Otahuhu to City via Hospitals | D31: No | E31: No | F31: No | G31: No | H31: No | I31: No | J31: No | K31: No
A32: 295 | B32: Inbound | C32: Gillies Ave | D32: Yes | E32: No | F32: No | G32: No | H32: No | I32: No | J32: No | K32: No
A33: 295 | B33: Outbound | C33: Gillies Ave | D33: No | E33: No | F33: No | G33: No | H33: No | I33: No | J33: No | K33: No
A34: 70 | B34: Inbound | C34: Remuera Road | D34: Yes | E34: No | F34: No | G34: No | H34: No | I34: No | J34: No | K34: No
A35: 70 | B35: Outbound | C35: Remuera Road | D35: No | E35: No | F35: No | G35: No | H35: No | I35: No | J35: No | K35: No
A36: 701 | B36: Inbound | C36: Remuera Road | D36: Yes | E36: No | F36: No | G36: No | H36: No | I36: No | J36: No | K36: No
A37: 703 | B37: Inbound | C37: Portland Road | D37: No | E37: No | F37: No | G37: No | H37: Yes | I37: No | J37: No | K37: No
A38: 703 | B38: Outbound | C38: Portland Road | D38: No | E38: No | F38: No | G38: No | H38: No | I38: No | J38: No | K38: No
A39: 761 | B39: Inbound | C39: Kepa Road | D39: No | E39: No | F39: No | G39: No | H39: Yes | I39: No | J39: No | K39: No
A40: 77 | B40: Inbound | C40: Tamaki Drive | D40: No | E40: No | F40: No | G40: No | H40: Yes | I40: No | J40: No | K40: No
A41: 77 | B41: Outbound | C41: Tamaki Drive | D41: No | E41: No | F41: No | G41: No | H41: No | I41: No | J41: No | K41: No
A42: 774 & 775 | B42: Inbound | C42: Tamaki Drive | D42: No | E42: No | F42: No | G42: No | H42: Yes | I42: No | J42: No | K42: No
A43: 55 | B43: Inbound | C43: Howick | D43: No | E43: No | F43: No | G43: No | H43: No | I43: Yes | J43: No | K43: No
A44: 55 | B44: Outbound | C44: Howick | D44: No | E44: No | F44: No | G44: No | H44: No | I44: No | J44: No | K44: No
A45: 55 peak | B45: Inbound | C45: Howick | D45: No | E45: No | F45: No | G45: No | H45: No | I45: Yes | J45: No | K45: No
A46: 360X | B46: Inbound | C46: Papakura | D46: No | E46: No | F46: No | G46: No | H46: No | I46: Yes | J46: No | K46: No
A47: NX1 | B47: Inbound | C47: NEX | D47: No | E47: No | F47: Yes | G47: No | H47: No | I47: No | J47: No | K47: No
A48: NX1 | B48: Outbound | C48: NEX | D48: No | E48: No | F48: No | G48: No | H48: No | I48: No | J48: No | K48: No
A49: NX2 | B49: Inbound | C49: NEX | D49: No | E49: No | F49: No | G49: No | H49: No | I49: No | J49: Yes | K49: No
A50: NX2 | B50: Outbound | C50: NEX | D50: No | E50: No | F50: No | G50: No | H50: No | I50: No | J50: No | K50: No
A51: Hibiscus Coast | B51: Inbound | C51: Hibiscus Coast Express | D51: No | E51: No | F51: No | G51: No | H51: No | I51: No | J51: Yes | K51: No
A52: NX3 | B52: Inbound | C52: NEX | D52: No | E52: No | F52: No | G52: No | H52: No | I52: No | J52: No | K52: No
A53: NX3 | B53: Outbound | C53: NEX | D53: No | E53: No | F53: No | G53: No | H53: No | I53: No | J53: No | K53: No
A54: n4 & n4a | B54: Inbound | C54: Takapuna / Hillcrest | D54: No | E54: No | F54: No | G54: No | H54: No | I54: No | J54: Yes | K54: No
A55: n4 & n4a | B55: Outbound | C55: Takapuna / Hillcrest | D55: No | E55: No | F55: No | G55: No | H55: No | I55: No | J55: No | K55: No
A56: n23a & b | B56: Inbound | C56: Takapuna / Hillcrest | D56: No | E56: No | F56: No | G56: No | H56: No | I56: No | J56: Yes | K56: No
A57: n23a & b | B57: Outbound | C57: Takapuna / Hillcrest | D57: No | E57: No | F57: No | G57: No | H57: No | I57: No | J57: No | K57: No
A58: n11 | B58: Inbound | C58: North Shore peak | D58: No | E58: No | F58: No | G58: No | H58: No | I58: No | J58: Yes | K58: No
A59: n8a & b | B59: Inbound | C59: Onewa Road | D59: No | E59: No | F59: Yes | G59: No | H59: No | I59: No | J59: No | K59: No
A60: n8a & b | B60: Outbound | C60: Onewa Road | D60: No | E60: No | F60: No | G60: No | H60: No | I60: No | J60: No | K60: No
A61: n81 | B61: Inbound | C61: North Shore peak | D61: No | E61: No | F61: No | G61: No | H61: No | I61: No | J61: Yes | K61: No
A62: n9a & b | B62: Inbound | C62: Onewa Road | D62: No | E62: No | F62: Yes | G62: No | H62: No | I62: No | J62: No | K62: No
A63: n9a & b | B63: Outbound | C63: Onewa Road | D63: No | E63: No | F63: No | G63: No | H63: No | I63: No | J63: No | K63: No
A64: n91 | B64: Inbound | C64: North Shore peak | D64: No | E64: No | F64: No | G64: No | H64: No | I64: No | J64: Yes | K64: No
A65: n92 | B65: Inbound | C65: North Shore peak | D65: No | E65: No | F65: No | G65: No | H65: No | I65: No | J65: Yes | K65: No
A66: n93 | B66: Inbound | C66: Onewa Road | D66: No | E66: No | F66: No | G66: No | H66: No | I66: No | J66: No | K66: No
A67: n93 | B67: Outbound | C67: Onewa Road | D67: No | E67: No | F67: No | G67: No | H67: No | I67: No | J67: No | K67: No
A68: 110 | B68: Inbound | C68: Westgate | D68: No | E68: Yes | F68: No | G68: No | H68: No | I68: No | J68: No | K68: No
A69: 110 | B69: Outbound | C69: Westgate | D69: No | E69: No | F69: No | G69: No | H69: No | I69: No | J69: No | K69: No
A70: 125X | B70: Inbound | C70: Westgate | D70: No | E70: Yes | F70: No | G70: No | H70: No | I70: No | J70: No | K70: No
A71: 129 | B71: Inbound | C71: Massey West | D71: No | E71: Yes | F71: No | G71: No | H71: No | I71: No | J71: No | K71: No
A72: Red Hills | B72: Inbound | C72: Red Hills | D72: No | E72: Yes | F72: No | G72: No | H72: No | I72: No | J72: No | K72: No
A73: 132X | B73: Inbound | C73: Te Atatu Peninsula | D73: No | E73: Yes | F73: No | G73: No | H73: No | I73: No | J73: No | K73: No
A74: 133X | B74: Inbound | C74: Henderson | D74: No | E74: Yes | F74: No | G74: No | H74: No | I74: No | J74: No | K74: No
A75: 151X | B75: Inbound | C75: West Express | D75: No | E75: Yes | F75: No | G75: No | H75: No | I75: No | J75: No | K75: No
A76: 171X & 172X | B76: Inbound | C76: West Express | D76: No | E76: Yes | F76: No | G76: No | H76: No | I76: No | J76: No | K76: No
A77: 195 | B77: Inbound | C77: Great North Road | D77: No | E77: Yes | F77: No | G77: No | H77: No | I77: No | J77: No | K77: No
A78: 195 | B78: Outbound | C78: Great North Road | D78: No | E78: No | F78: No | G78: No | H78: No | I78: No | J78: No | K78: No
A79: 209 | B79: Inbound | C79: Green Bay | D79: No | E79: Yes | F79: No | G79: No | H79: No | I79: No | J79: No | K79: No

Sheet Route Colours
A1: Route Name | B1: Group | C1: Larger Group
A2: Airbus | B2: Airbus | C2: City
A3: City Link | B3: City Link | C3: City
A4: Inner Link | B4: Inner Link | C4: City
A5: Crosstown 5 | B5: Mount Eden Crosstown | C5: Central Isthmus
A6: Crosstown 4 | B6: Manukau Road / Jervois Road | C6: Central Isthmus
A7: Crosstown 4 peak | B7: Manukau Road | C7: Central Isthmus
A8: 309 & 309X | B8: Manukau Road | C8: Central Isthmus
A9: 101 | B9: Jervois Road | C9: Central Isthmus
A10: 105 | B10: Richmond Road | C10: Central Isthmus
A11: 106 | B11: Freemans Bay | C11: Central Isthmus
A12: 18 | B12: Great North Road | C12: Central Isthmus
A13: 22a & b | B13: New North Road | C13: Central Isthmus
A14: 24a & b | B14: Sandringham Road | C14: Central Isthmus
A15: 25 & 26 | B15: Dominion Road | C15: Central Isthmus
A16: 27 | B16: Mount Eden Road | C16: Central Isthmus
A17: 321 | B17: Otahuhu to City via Hospitals | C17: Central Isthmus
A18: 295 | B18: Gillies Ave | C18: Central Isthmus
A19: 70 | B19: Remuera Road | C19: East Isthmus
A20: 701 | B20: Remuera Road | C20: East Isthmus
A21: 703 | B21: Portland Road | C21: East Isthmus
A22: 761 | B22: Kepa Road | C22: East Isthmus
A23: 77 | B23: Tamaki Drive | C23: East Isthmus
A24: 774 & 775 | B24: Tamaki Drive | C24: East Isthmus
A25: 55 | B25: Howick | C25: East Auckland
A26: 55 peak | B26: Great South Road | C26: East Auckland
A27: 360X | B27: Papakura | C27: South Auckland
A28: NX1 | B28: NEX | C28: North Shore
A29: NX2 | B29: NEX | C29: North Shore
A30: Hibiscus Coast | B30: Hibiscus Coast Express | C30: North Shore
A31: NX3 | B31: NEX | C31: North Shore
A32: n4 & n4a | B32: Takapuna / Hillcrest | C32: North Shore
A33: n23a & b | B33: Takapuna / Hillcrest | C33: North Shore
A34: n11 | B34: North Shore peak | C34: North Shore
A35: n8a & b | B35: Onewa Road | C35: North Shore
A36: n81 | B36: North Shore peak | C36: North Shore
A37: n9a & b | B37: Onewa Road | C37: North Shore
A38: n91 | B38: North Shore peak | C38: North Shore
A39: n92 | B39: North Shore peak | C39: North Shore
A40: n93 | B40: Onewa Road | C40: North Shore
A41: 110 | B41: Westgate | C41: Northwest Auckland
A42: 125X | B42: Westgate | C42: Northwest Auckland
A43: 129 | B43: Massey West | C43: Northwest Auckland
A44: Red Hills | B44: Red Hills | C44: Northwest Auckland
A45: 132X | B45: Te Atatu Peninsula | C45: Northwest Auckland
A46: 133X | B46: Henderson | C46: Northwest Auckland
A47: 151X | B47: West Express | C47: West Auckland
A48: 171X & 172X | B48: West Express | C48: West Auckland
A49: 195 | B49: Great North Road | C49: Central Isthmus
A50: 209 | B50: Green Bay | C50: West Auckland
A51: Queen St Shuttle | B51: Queen Street LRT | C51: LRT
A52: Dominion LRT | B52: Dominion Road LRT | C52: LRT
A53: Sandringham LRT | B53: Sandringham Road LRT | C53: LRT
A54: Manukau LRT single | B54: Manukau Road LRT (single) | C54: LRT
A55: Manukau LRT double | B55: Manukau Road LRT | C55: LRT
A56: Mt Eden LRT single | B56: Mount Eden Road LRT (single) | C56: LRT
A57: Mt Eden LRT double | B57: Mount Eden Road LRT | C57: LRT
B58: Northwest Peak
B59: Howick / Great South Road

Sheet Validation Lists
A1: Trigger Type | B1: Action Subject Type | C1: Action Type | D1: Corridor Stop List | E1: Terminus Stop List | F1: Route List | G1: Route Group List
A2: Corridor stop capacity | B2: Route | C2: Remove from corridor stops | D2: Anzac Ave : North : All routes | E2: Wynyard Quarter : Isthmus/Link | F2: Airbus : Inbound | G2: Airbus
A3: Corridor stop volume (above) | B3: Route Group | C3: Add to corridor stops | D3: Anzac Ave : South : All routes | E3: Britomart West : West/Northwest | F3: Airbus : Outbound | G3: City Link
A4: Corridor stop volume (below) | B4: Stop (Corridor) | C4: Remove from terminus stops | D4: Symonds Street (Anzac to Wellesley) : North : All routes | E4: Britomart West : North Shore | F4: City Link : Inbound | G4: Inner Link
A5: Terminus stop capacity | B5: Stop (Terminus) | C5: Add to terminus stops | D5: Symonds Street (Anzac to Wellesley) : South : All routes | E5: Britomart East : Mt Eden/Hospitals | F5: Inner Link : Inbound | G5: Manukau Road
A6: Terminus stop volume (above) | C6: Change vehicle capacity | D6: Symonds Street (Wellesley to K Rd) : North : Britomart-bound | E6: Britomart East : Tamaki Drive | F6: Inner Link : Outbound | G6: Manukau Road / Jervois Road
A7: Terminus stop volume (below) | D7: Symonds Street (Wellesley to K Rd) : North : Wynyard-bound | E7: Britomart East : AMETI | F7: Crosstown 4 peak : Inbound | G7: Jervois Road
A8: Year | D8: Symonds Street (Wellesley to K Rd) : South : Grafton | E8: University : All routes | F8: Crosstown 4 : Inbound | G8: Richmond Road
D9: Symonds Street (Wellesley to K Rd) : South : Upper Symonds | E9: Victoria Park : All routes | F9: Crosstown 4 : Outbound | G9: Freemans Bay
D10: Symonds Street Upper : North : All routes | F10: 309 & 309X : Inbound | G10: Mount Eden Crosstown
D11: Symonds Street Upper : South : All routes | F11: 309 & 309X : Outbound | G11: Great North Road
D12: Wellesley Street : East : North Shore | F12: 101 : Inbound | G12: New North Road
D13: Wellesley Street : East : Isthmus | F13: 105 : Inbound | G13: Sandringham Road
D14: Wellesley Street : East : Crosstown | F14: 105 : Outbound | G14: Dominion Road
D15: Wellesley Street : West : North Shore | F15: 106 : Inbound | G15: Mount Eden Road
D16: Wellesley Street : West : Isthmus | F16: 106 : Outbound | G16: Otahuhu to City via Hospitals
D17: Wellesley Street : West : Crosstown | F17: Crosstown 5 : Inbound | G17: Gillies Ave
D18: Fanshawe Street (Halsey to Albert) : East : North Shore to Britomart | F18: Crosstown 5 : Outbound | G18: Remuera Road
D19: Fanshawe Street (Halsey to Albert) : East : Link | F19: 18 : Inbound | G19: Portland Road
D20: Fanshawe Street (Halsey to Albert) : West : North Shore | F20: 18 : Outbound | G20: Kepa Road
D21: Fanshawe Street (Halsey to Albert) : West : Link | F21: 22a & b : Inbound | G21: Tamaki Drive
D22: Fanshawe Street (Victoria Park) : East : NS to Britomart | F22: 22a & b : Outbound | G22: Howick
D23: Fanshawe Street (Victoria Park) : East : NS to University | F23: 24a & b : Inbound | G23: Papakura
D24: Fanshawe Street (Victoria Park) : East : Isthmus/Link | F24: 24a & b : Outbound | G24: NEX
D25: Fanshawe Street (Victoria Park) : West : NEX | F25: 25 & 26 : Inbound | G25: Hibiscus Coast Express
D26: Fanshawe Street (Victoria Park) : West : Isthmus/Link | F26: 25 & 26 : Outbound | G26: Takapuna / Hillcrest
D27: Fanshawe Street (Victoria Park) : West : North Shore | F27: 27 : Inbound | G27: North Shore peak
D28: Queen Street (Customs to Mayoral) : North : All routes | F28: 27 : Outbound | G28: Onewa Road
D29: Queen Street (Customs to Mayoral) : South : All routes | F29: 321 : Inbound | G29: Westgate
D30: Queen Street (Mayoral to K Rd) : North : All routes | F30: 321 : Outbound | G30: Massey West
D31: Queen Street (Mayoral to K Rd) : South : All routes | F31: 295 : Inbound | G31: Red Hills
D32: Albert Street : North : All routes | F32: 295 : Outbound | G32: Te Atatu Peninsula
D33: Albert Street : South : All routes | F33: 70 : Inbound | G33: Henderson
D34: Beach Road : East : All routes | F34: 70 : Outbound | G34: West Express
D35: Beach Road : West : All routes | F35: 701 : Inbound | G35: Green Bay
D36: Victoria Street : East : All routes | F36: 703 : Inbound
D37: Victoria Street : West : All routes | F37: 703 : Outbound
D38: College Hill : East : All routes | F38: 761 : Inbound
D39: College Hill : West : All routes | F39: 77 : Inbound
D40: Beaumont Street : North : All routes | F40: 77 : Outbound
D41: Beaumont Street : South : All routes | F41: 774 & 775 : Inbound
D42: K Road (Pitt to Ponsonby) : East : All routes | F42: 55 : Inbound
D43: K Road (Pitt to Ponsonby) : West : All routes | F43: 55 : Outbound
D44: K Road (Queen to Symonds) : East : All routes | F44: 55 peak : Inbound
D45: K Road (Queen to Symonds) : West : All routes | F45: 360X : Inbound
D46: K Road (Pitt to Queen) : East : All routes | F46: NX1 : Inbound
D47: K Road (Pitt to Queen) : West : All routes | F47: NX1 : Outbound
D48: Pitt Street : North : All routes | F48: NX2 : Inbound
D49: Pitt Street : South : All routes | F49: NX2 : Outbound
D50: Great North Road : East : All routes | F50: Hibiscus Coast : Inbound
D51: Great North Road : West : All routes | F51: NX3 : Inbound
D52: Grafton Bridge : East : Other | F52: NX3 : Outbound
D53: Grafton Bridge : East : To 277 | F53: n4 & n4a : Inbound
D54: Grafton Bridge : West : Britomart-bound | F54: n4 & n4a : Outbound
D55: Grafton Bridge : West : Wynyard/Ponsonby | F55: n23a & b : Inbound
D56: Park Road : East : Other | F56: n23a & b : Outbound
D57: Park Road : East : To 277 | F57: n11 : Inbound
D58: Park Road : West : Britomart-bound | F58: n8a & b : Inbound
D59: Park Road : West : Wynyard/Ponsonby | F59: n8a & b : Outbound
D60: Khyber Pass : East : All routes | F60: n81 : Inbound
D61: Khyber Pass : West : All routes | F61: n9a & b : Inbound
D62: Grafton Road : North : All routes | F62: n9a & b : Outbound
D63: Grafton Road : South : All routes | F63: n91 : Inbound
F64: n92 : Inbound
F65: n93 : Inbound
F66: n93 : Outbound
F67: 110 : Inbound
F68: 110 : Outbound
F69: 125X : Inbound
F70: 129 : Inbound
F71: Red Hills : Inbound
F72: 132X : Inbound
F73: 133X : Inbound
F74: 151X : Inbound
F75: 171X & 172X : Inbound
F76: 195 : Inbound
F77: 195 : Outbound
F78: 209 : Inbound
